Local authority department which incurred the expenditure,Service Division,Cost Centre,Summary of the Purpose of Expenditure,Expense Type,Expense Code,Detailed Expense Type,Date of Transaction,Transaction Number,Beneficiary,Merchant Category Number,Merchant Category,Gross Amount,VAT,Net Amount
Children and Young Peoples Services,Head of Childrens Social Care,085634,Families First Easington,Supplies and Services,304259,Equipment and Materials,01-Apr-2022,000008150726134,GEN REGISTER OFFICE,9399,Equipment-purchase and rental,-7.50,0.00,-7.50
Children and Young Peoples Services,Head of Childrens Social Care,085611,Families First Stanley,Supplies and Services,304403,Equipment and Materials,01-Apr-2022,000010010951501,AMZNMktplace,5999,Other consumables,12.99,2.17,10.82
Children and Young Peoples Services,Head of Education and Skills,071801,Selby Cottage Childcare Centre,Supplies and Services,304403,Equipment and Materials,01-Apr-2022,000010010951543,AMZNMktplace,5999,Other consumables,254.85,0.00,254.85
Children and Young Peoples Services,Head of Childrens Social Care,085334,West Rainton Satelite Home,Supplies and Services,348037,Subsistence E348,01-Apr-2022,000010010951675,Just Eat,5814,Subsistence,36.10,0.00,36.10
Children and Young Peoples Services,Head of Childrens Social Care,085623,Families First Bishop Auckland and Crook,Supplies and Services,364301,Grants to Voluntary Organisations,01-Apr-2022,000010010952211,AMZNMktplace,5999,Hardship,479.98,80.00,399.98
Regeneration Economy and Growth,Communications Management,060270,Communications and Marketing,Supplies and Services,336005,Advertising E336,01-Apr-2022,000010010952549,FACEBK ENSMBBK4B2,7311,Advertising other than for staff,216.66,0.00,216.66
Regeneration Economy and Growth,Business Durham CL0850,030689,Inward Investment and Aftercare,Supplies and Services,336005,Advertising E336,01-Apr-2022,000010017420553,LINKEDIN-771 5863884,7311,Advertising other than for staff,8.07,0.00,8.07
Children and Young Peoples Services,Head of Childrens Social Care,085611,Families First Stanley,Transport,235057,Public Transport,01-Apr-2022,000010017420585,WWW.GONORTHEAST.CO.UK,4111,Staff travelling,34.00,0.00,34.00
Children and Young Peoples Services,Head of Childrens Social Care,085611,Families First Stanley,Supplies and Services,304403,Equipment and Materials,01-Apr-2022,000010017420587,AMZNMktplace,5999,Other consumables,12.99,2.17,10.82
Resources BK0010,Digital Services,065432,Web Development Group,Supplies and Services,342033,Computers and Communications,01-Apr-2022,000010017420655,PROGRESS SOFTWARE,7372,Computer hardware,458.55,0.00,458.55
Children and Young Peoples Services,Head of Childrens Social Care,085341,High Etherley Satelite Home,Supplies and Services,324117,Provisions E324,01-Apr-2022,000010017420779,TESCO STORES 6329,5411,Catering costs - provisions,9.90,0.00,9.90
Children and Young Peoples Services,Head of Childrens Social Care,085501,Child Care Cases Legal Expenses,Supplies and Services,304403,Equipment and Materials,01-Apr-2022,000010017420797,SUNDERLAND CC,9399,Other consumables,11.00,0.00,11.00
Children and Young Peoples Services,Head of Education and Skills,075035,DurhamDirections Re-engagement,Supplies and Services,364301,Grants to Voluntary Organisations,01-Apr-2022,000010017420841,TESCO ONLINE,5999,Hardship,21.99,0.00,21.99
Children and Young Peoples Services,Head of Education and Skills,075035,DurhamDirections Re-engagement,Supplies and Services,364301,Grants to Voluntary Organisations,01-Apr-2022,000010017420843,WWW.SCREWFIX.COM,5211,Hardship,73.75,0.00,73.75
Children and Young Peoples Services,Head of Childrens Social Care,085341,High Etherley Satelite Home,Supplies and Services,328041,Clothing uniforms and laundry E328,01-Apr-2022,000010017421015,TK MAXX,5331,Clothing uniforms and laundry,61.94,0.00,61.94
Children and Young Peoples Services,Head of Childrens Social Care,085341,High Etherley Satelite Home,Supplies and Services,328041,Clothing uniforms and laundry E328,01-Apr-2022,000010017421019,TK MAXX,5331,Clothing uniforms and laundry,19.99,0.00,19.99
Children and Young Peoples Services,Head of Childrens Social Care,085341,High Etherley Satelite Home,Supplies and Services,348037,Subsistence E348,01-Apr-2022,000010017421023,Gregg Bros,5814,Subsistence,8.80,0.00,8.80
Children and Young Peoples Services,Head of Childrens Social Care,085341,High Etherley Satelite Home,Supplies and Services,328041,Clothing uniforms and laundry E328,01-Apr-2022,000010017421025,POUNDLAND LTD 1554,5310,Clothing uniforms and laundry,12.50,0.00,12.50
Children and Young Peoples Services,Head of Early Help Inclusion & Vulnerable Children.,085957,Secure Management,Supplies and Services,304999,Equipment and Materials,01-Apr-2022,000010017421269,SPECSAVERS,8043,Misc equipment tools and materials,89.00,0.00,89.00
Regeneration Economy and Growth,Development and Housing,030772,CLLD South,Supplies and Services,304403,Equipment and Materials,01-Apr-2022,000010017421329,AMZNMktplace,5999,Other consumables,6.41,0.00,6.41
Regeneration Economy and Growth,Development and Housing,030772,CLLD South,Supplies and Services,304259,Equipment and Materials,01-Apr-2022,000010017421331,Durham County CNCL,9399,Equipment-purchase and rental,11.00,0.00,11.00
Children and Young Peoples Services,Head of Childrens Social Care,085347,Solo Home The Manse,Supplies and Services,348037,Subsistence E348,01-Apr-2022,000010017421419,ANGEL FISHERIES HARBOU,5814,Subsistence,7.90,0.00,7.90
Children and Young Peoples Services,Head of Childrens Social Care,085358,Orchard House Sacriston Solo Home,Supplies and Services,324117,Provisions E324,01-Apr-2022,000010017421539,ICELAND,5411,Catering costs - provisions,37.25,0.00,37.25
Children and Young Peoples Services,Head of Education and Skills,071732,Dean Bank Childcare,Supplies and Services,304403,Equipment and Materials,01-Apr-2022,000010017421603,AMZNMktplace,5999,Other consumables,40.97,0.00,40.97
Children and Young Peoples Services,Head of Education and Skills,071732,Dean Bank Childcare,Supplies and Services,304403,Equipment and Materials,01-Apr-2022,000010017421607,AMZNMKTPLACE AMAZON.CO,5999,Other consumables,184.79,0.00,184.79
Neighbourhoods and Climate Change,Environmental Services,011060,C&G - Hardwick Park Catering,Supplies and Services,304259,Equipment and Materials,01-Apr-2022,000010017421659,WWW.NISBETS.COM,5964,Equipment-purchase and rental,34.89,0.00,34.89
Regeneration Economy and Growth,Development and Housing,031623,Rough Sleeping,Supplies and Services,324117,Provisions E324,01-Apr-2022,000010017421809,SPAR SOUTHMOOR,5499,Catering costs - provisions,27.97,0.00,27.97
Regeneration Economy and Growth,Development and Housing,030771,Durham Advance Flexible Fund,Transport,235057,Public Transport,01-Apr-2022,000010017421861,WWW.GONORTHEAST.CO.UK,4111,Staff travelling,4.00,0.00,4.00
Regeneration Economy and Growth,Development and Housing,030771,Durham Advance Flexible Fund,Transport,235057,Public Transport,01-Apr-2022,000010017421865,WWW.GONORTHEAST.CO.UK,4111,Staff travelling,4.00,0.00,4.00
Children and Young Peoples Services,Head of Early Help Inclusion & Vulnerable Children.,085965,Barnard,Transfer Payments,515002,Social Services Clients,01-Apr-2022,000010017421877,Freedom Sportsline Ltd,5661,Pocket money,94.99,0.00,94.99
Children and Young Peoples Services,Head of Early Help Inclusion & Vulnerable Children.,085957,Secure Management,Supplies and Services,340001,Postages E340,01-Apr-2022,000010017421881,AMZNMKTPLACE AMAZON.CO,5999,Postages,2.74,0.46,2.28
Children and Young Peoples Services,Head of Early Help Inclusion & Vulnerable Children.,085956,Lumley,Supplies and Services,304083,Equipment and Materials,01-Apr-2022,000010017421883,Amazon.co.uk 295YT3MW4,5969,Catering equipment,17.98,3.00,14.98
Children and Young Peoples Services,Head of Early Help Inclusion & Vulnerable Children.,085965,Barnard,Supplies and Services,324117,Provisions E324,01-Apr-2022,000010017421887,TESCO STORES 6329,5411,Catering costs - provisions,170.05,0.00,170.05
Neighbourhoods and Climate Change,Environmental Services,031200,North Pennines Core,Supplies and Services,348037,Subsistence E348,01-Apr-2022,000010017421941,HATCH LUNCHEONETTE,5812,Subsistence,23.50,0.00,23.50
Children and Young Peoples Services,Head of Education and Skills,070169,Durham SSP,Supplies and Services,304999,Equipment and Materials,01-Apr-2022,000010017421947,Microsoft Microsoft 36,5816,Misc equipment tools and materials,7.99,1.33,6.66
Children and Young Peoples Services,Head of Childrens Social Care,085623,Families First Bishop Auckland and Crook,Supplies and Services,364301,Grants to Voluntary Organisations,01-Apr-2022,000010017422331,AMZNMktplace,5999,Hardship,125.93,20.99,104.94
Children and Young Peoples Services,Head of Early Help Inclusion & Vulnerable Children.,088105,W/Close and Willington Family Centre,Supplies and Services,384302,Miscellaneous Expenses,01-Apr-2022,000010017422335,AMZNMktplace,5999,Activity expenses,11.89,1.98,9.91
Children and Young Peoples Services,Head of Childrens Social Care,085626,Families First Ferryhill and Chilton,Supplies and Services,338045,Services,01-Apr-2022,000010017422339,HM PASSPORT OFFICE,9399,Legal expenses 338045,49.00,0.00,49.00
Children and Young Peoples Services,Head of Childrens Social Care,085364,Children Looked After Team 1,Supplies and Services,338045,Services,01-Apr-2022,000010017422345,HM PASSPORT OFFICE,9399,Legal expenses 338045,75.50,0.00,75.50
Children and Young Peoples Services,Head of Childrens Social Care,085626,Families First Ferryhill and Chilton,Supplies and Services,338045,Services,01-Apr-2022,000010017422347,HM PASSPORT OFFICE,9399,Legal expenses 338045,75.50,0.00,75.50
Children and Young Peoples Services,Head of Childrens Social Care,085366,Children Looked After Team 3,Supplies and Services,384302,Miscellaneous Expenses,01-Apr-2022,000010017422349,HM PASSPORT OFFICE,9399,Activity expenses,75.50,0.00,75.50
Children and Young Peoples Services,Head of Childrens Social Care,085366,Children Looked After Team 3,Supplies and Services,338045,Services,01-Apr-2022,000010017422351,HM PASSPORT OFFICE,9399,Legal expenses 338045,49.00,0.00,49.00
Children and Young Peoples Services,Head of Early Help Inclusion & Vulnerable Children.,088104,BA/BC/Crook Intensive Family Support Team,Supplies and Services,384302,Miscellaneous Expenses,01-Apr-2022,000010017422355,ASDA STORES,5411,Activity expenses,4.00,0.00,4.00
Children and Young Peoples Services,Head of Early Help Inclusion & Vulnerable Children.,088105,W/Close and Willington Family Centre,Supplies and Services,384302,Miscellaneous Expenses,01-Apr-2022,000010017422359,ASDA STORES,5411,Activity expenses,17.70,0.00,17.70
Children and Young Peoples Services,Head of Childrens Social Care,085364,Children Looked After Team 1,Supplies and Services,338045,Services,01-Apr-2022,000010017422365,GEN REGISTER OFFICE,9399,Legal expenses 338045,11.00,0.00,11.00
Children and Young Peoples Services,Head of Education and Skills,071802,Louisa Cent Nursery,Supplies and Services,304403,Equipment and Materials,01-Apr-2022,000010017422591,AMZNMktplace,5999,Other consumables,27.98,4.66,23.32
Children and Young Peoples Services,Head of Education and Skills,071802,Louisa Cent Nursery,Supplies and Services,304403,Equipment and Materials,01-Apr-2022,000010017422595,AMZNMktplace,5999,Other consumables,21.12,3.52,17.60
Children and Young Peoples Services,Head of Education and Skills,071802,Louisa Cent Nursery,Supplies and Services,304403,Equipment and Materials,01-Apr-2022,000010017422597,AMZNMktplace,5999,Other consumables,134.99,22.50,112.49
Resources BK0010,Procurement Sales & Business Services,065503,Business Support - Spectrum,Transport,235057,Public Transport,01-Apr-2022,000010017422805,WWW.GONORTHEAST.CO.UK,4111,Staff travelling,97.50,0.00,97.50
Resources BK0010,Digital Services,065335,School Services - Implementations,Supplies and Services,304639,Equipment and Materials,01-Apr-2022,000010017422889,PAYPAL LAI QINGXIU,5732,Technicians-supplies,88.98,0.00,88.98
Children and Young Peoples Services,Head of Childrens Social Care,085342,16 Hickstead Rise (previously 9 Cedar Ave),Supplies and Services,304403,Equipment and Materials,01-Apr-2022,000010017422897,AMZNMktplace,5999,Other consumables,29.60,0.00,29.60
Children and Young Peoples Services,Head of Early Help Inclusion & Vulnerable Children.,085957,Secure Management,Supplies and Services,384302,Miscellaneous Expenses,01-Apr-2022,000010017423013,Amazon MP3,5735,Activity expenses,8.99,0.00,8.99
Children and Young Peoples Services,Head of Early Help Inclusion & Vulnerable Children.,085957,Secure Management,Supplies and Services,304083,Equipment and Materials,01-Apr-2022,000010017423015,SP STREETFOODPACKAGI,5499,Catering equipment,173.94,0.00,173.94
Neighbourhoods and Climate Change,Community Protection,010809,Community Protection Management,Supplies and Services,304403,Equipment and Materials,01-Apr-2022,000010017423131,AMZNMktplace,5999,Other consumables,161.70,27.00,134.70
Neighbourhoods and Climate Change,Community Protection,010809,Community Protection Management,Supplies and Services,304403,Equipment and Materials,01-Apr-2022,000010017423133,AMZNMKTPLACE AMAZON.CO,5999,Other consumables,119.96,20.00,99.96
Children and Young Peoples Services,Head of Childrens Social Care,085333,Coxhoe Satelite Home,Supplies and Services,324117,Provisions E324,01-Apr-2022,000010017423249,TESCO STORES 2916,5411,Catering costs - provisions,110.13,0.00,110.13
Children and Young Peoples Services,Head of Education and Skills,071802,Louisa Cent Nursery,Supplies and Services,324117,Provisions E324,01-Apr-2022,000010017423265,ASDA GROCERIES ONLINE,5411,Catering costs - provisions,200.68,0.00,200.68
Children and Young Peoples Services,Head of Education and Skills,071802,Louisa Cent Nursery,Supplies and Services,324117,Provisions E324,01-Apr-2022,000010017423267,ALDI 11 774,5411,Catering costs - provisions,2.43,0.00,2.43
Children and Young Peoples Services,Head of Education and Skills,071802,Louisa Cent Nursery,Supplies and Services,324117,Provisions E324,01-Apr-2022,000010017423271,ASDA GROCERIES ONLINE,5411,Catering costs - provisions,-4.93,0.00,-4.93
Children and Young Peoples Services,Head of Childrens Social Care,085352,New Childrens Home (previously Tow Law),Third Party Payments,430100,Rendered by Private Contractors,01-Apr-2022,000010017423519,CS ODEON GIFT CARDS,7399,Payments to sub-contractors,31.95,0.00,31.95
Regeneration Economy and Growth,Development and Housing,030776,LINKCD Flexible Fund,Supplies and Services,304403,Equipment and Materials,01-Apr-2022,000010017423579,AMZNMktplace,5999,Other consumables,6.00,1.00,5.00
Regeneration Economy and Growth,Development and Housing,030776,LINKCD Flexible Fund,Supplies and Services,304403,Equipment and Materials,01-Apr-2022,000010017423581,AMZNMktplace,5999,Other consumables,1.92,0.32,1.60
Regeneration Economy and Growth,Development and Housing,030776,LINKCD Flexible Fund,Supplies and Services,304403,Equipment and Materials,01-Apr-2022,000010017423583,AMZNMktplace,5999,Other consumables,6.99,1.17,5.82
Regeneration Economy and Growth,Development and Housing,030776,LINKCD Flexible Fund,Supplies and Services,304403,Equipment and Materials,01-Apr-2022,000010017423587,AMZNMktplace,5999,Other consumables,16.34,2.73,13.61
Regeneration Economy and Growth,Development and Housing,030776,LINKCD Flexible Fund,Supplies and Services,304403,Equipment and Materials,01-Apr-2022,000010017423589,AMZNMktplace,5999,Other consumables,27.10,4.52,22.58
Regeneration Economy and Growth,Development and Housing,030776,LINKCD Flexible Fund,Supplies and Services,304403,Equipment and Materials,01-Apr-2022,000010017423593,AMZNMktplace,5999,Other consumables,2.99,0.50,2.49
Regeneration Economy and Growth,Development and Housing,030776,LINKCD Flexible Fund,Supplies and Services,328041,Clothing uniforms and laundry E328,01-Apr-2022,000010017423597,ARGOS LTD,5310,Clothing uniforms and laundry,59.94,0.00,59.94
Children and Young Peoples Services,Head of Childrens Social Care,085331,New Lea Childrens Home,Supplies and Services,304259,Equipment and Materials,01-Apr-2022,000010017423623,COUNTY HALL CANTEEN,9399,Equipment-purchase and rental,28.45,0.00,28.45
Children and Young Peoples Services,Head of Childrens Social Care,085334,West Rainton Satelite Home,Transport,215995,Running Costs of Vehicles,01-Apr-2022,000010017423637,GULF WEST RAINTON,5541,Vehicle running expenses,48.17,0.00,48.17
Children and Young Peoples Services,Head of Childrens Social Care,085334,West Rainton Satelite Home,Supplies and Services,384237,Miscellaneous Expenses,01-Apr-2022,000010017423641,HTTPS://WWW.JUMPGIANTS,7999,Recreational exps outings parties,13.50,0.00,13.50
Children and Young Peoples Services,Head of Childrens Social Care,085334,West Rainton Satelite Home,Supplies and Services,384237,Miscellaneous Expenses,01-Apr-2022,000010017423645,JUMP GIANTS NEWCASTLE,7999,Recreational exps outings parties,8.50,0.00,8.50
Regeneration Economy and Growth,Communications Management,060270,Communications and Marketing,Supplies and Services,372009,Subscriptions E372,01-Apr-2022,000010017423687,LINKEDIN-748 4893763,7311,Subscriptions 372009,73.52,0.00,73.52
Children and Young Peoples Services,Head of Childrens Social Care,085551,Short Break Services-Park Hse Sher,Supplies and Services,324117,Provisions E324,01-Apr-2022,000010017423861,ALDI 59 774,5411,Catering costs - provisions,3.99,0.00,3.99
Children and Young Peoples Services,Head of Early Help Inclusion & Vulnerable Children.,088101,Bullion Lane & Brandon Family Centre,Supplies and Services,324117,Provisions E324,01-Apr-2022,000010017423911,WILKO.COM,5399,Catering costs - provisions,55.50,0.00,55.50
Children and Young Peoples Services,Head of Childrens Social Care,085634,Families First Easington,Supplies and Services,304259,Equipment and Materials,01-Apr-2022,000010017423967,GEN REGISTER OFFICE,9399,Equipment-purchase and rental,14.00,0.00,14.00
Regeneration Economy and Growth,Corporate Property and Land,010525,Catering - Green Lane,Supplies and Services,324117,Provisions E324,01-Apr-2022,000010017664763,FREEMAN CATERING BUTCH,5422,Catering costs - provisions,12.50,0.00,12.50
Regeneration Economy and Growth,Corporate Property and Land,011296,Catering - Crimdon Dene Hub,Supplies and Services,324117,Provisions E324,01-Apr-2022,000010017664769,JR HOLLAND FOODSERVICE,5499,Catering costs - provisions,70.00,0.00,70.00
Regeneration Economy and Growth,Corporate Property and Land,011296,Catering - Crimdon Dene Hub,Supplies and Services,384999,Miscellaneous Expenses,01-Apr-2022,000010017664773,G M PACKAGING UK LIMIT,5046,Other expenses,152.71,0.00,152.71
Regeneration Economy and Growth,Corporate Property and Land,011296,Catering - Crimdon Dene Hub,Supplies and Services,324117,Provisions E324,01-Apr-2022,000010017664775,JR HOLLAND FOODSERVICE,5499,Catering costs - provisions,-12.98,0.00,-12.98
Regeneration Economy and Growth,Corporate Property and Land,030691,Catering - Durham Dales Centre,Supplies and Services,324117,Provisions E324,01-Apr-2022,000010017664779,FREEMAN CATERING BUTCH,5422,Catering costs - provisions,91.16,0.00,91.16
Regeneration Economy and Growth,Corporate Property and Land,030691,Catering - Durham Dales Centre,Supplies and Services,324117,Provisions E324,01-Apr-2022,000010017664781,JR HOLLAND FOODSERVICE,5499,Catering costs - provisions,64.62,0.00,64.62
Adult and Health Services,Head of Adults,055643,Hawthorn House LD Respite Unit,Supplies and Services,324117,Provisions E324,01-Apr-2022,000010017664789,FREEMAN CATERING BUTCH,5422,Catering costs - provisions,24.10,0.00,24.10
Adult and Health Services,Head of Adults,055643,Hawthorn House LD Respite Unit,Supplies and Services,324117,Provisions E324,01-Apr-2022,000010017664791,JR HOLLAND FOODSERVICE,5499,Catering costs - provisions,28.86,0.00,28.86
Adult and Health Services,Head of Adults,055643,Hawthorn House LD Respite Unit,Supplies and Services,324117,Provisions E324,01-Apr-2022,000010017664793,JR HOLLAND FOODSERVICE,5499,Catering costs - provisions,24.50,0.00,24.50
Neighbourhoods and Climate Change,Environmental Services,011060,C&G - Hardwick Park Catering,Supplies and Services,324117,Provisions E324,01-Apr-2022,000010017664799,FREEMAN CATERING BUTCH,5422,Catering costs - provisions,118.04,0.00,118.04
Neighbourhoods and Climate Change,Environmental Services,011060,C&G - Hardwick Park Catering,Supplies and Services,324117,Provisions E324,01-Apr-2022,000010017664801,JR HOLLAND FOODSERVICE,5499,Catering costs - provisions,111.44,0.00,111.44
Regeneration Economy and Growth,Corporate Property and Land,021234,Catering - Locomotion,Supplies and Services,324117,Provisions E324,01-Apr-2022,000010017664803,FREEMAN CATERING BUTCH,5422,Catering costs - provisions,27.58,0.00,27.58
Regeneration Economy and Growth,Corporate Property and Land,021234,Catering - Locomotion,Supplies and Services,324117,Provisions E324,01-Apr-2022,000010017664807,JR HOLLAND FOODSERVICE,5499,Catering costs - provisions,64.70,0.00,64.70
Regeneration Economy and Growth,Corporate Property and Land,021234,Catering - Locomotion,Supplies and Services,324117,Provisions E324,01-Apr-2022,000010017664809,JR HOLLAND FOODSERVICE,5499,Catering costs - provisions,15.98,0.00,15.98
Regeneration Economy and Growth,Corporate Property and Land,021235,Catering - Wharton Park,Supplies and Services,324117,Provisions E324,01-Apr-2022,000010017664817,JR HOLLAND FOODSERVICE,5499,Catering costs - provisions,18.29,0.00,18.29
Regeneration Economy and Growth,Culture Sport and Tourism,054812,Gala Theatre - Catering etc,Supplies and Services,324117,Provisions E324,01-Apr-2022,000010017664825,FREEMAN CATERING BUTCH,5422,Catering costs - provisions,19.16,0.00,19.16
Regeneration Economy and Growth,Culture Sport and Tourism,054812,Gala Theatre - Catering etc,Supplies and Services,324117,Provisions E324,01-Apr-2022,000010017664831,JR HOLLAND FOODSERVICE,5499,Catering costs - provisions,61.86,0.00,61.86
Regeneration Economy and Growth,Corporate Property and Land,021242,Catering - County Hall,Supplies and Services,324117,Provisions E324,01-Apr-2022,000010017664845,JR HOLLAND FOODSERVICE,5499,Catering costs - provisions,30.88,0.00,30.88
Regeneration Economy and Growth,Corporate Property and Land,011275,Catering -Durham Leadership Centre,Supplies and Services,324117,Provisions E324,01-Apr-2022,000010024816255,BATLEYS PERTH,5300,Catering costs - provisions,19.20,3.20,16.00
Regeneration Economy and Growth,Corporate Property and Land,011275,Catering -Durham Leadership Centre,Supplies and Services,324117,Provisions E324,01-Apr-2022,000010024816255 - 1,BATLEYS PERTH,5300,Catering costs - provisions,66.42,,66.42
Adult and Health Services,Head of Adults,055643,Hawthorn House LD Respite Unit,Supplies and Services,324117,Provisions E324,01-Apr-2022,000010024816263,BATLEYS PERTH,5300,Catering costs - provisions,41.76,6.96,34.80
Adult and Health Services,Head of Adults,055643,Hawthorn House LD Respite Unit,Supplies and Services,324117,Provisions E324,01-Apr-2022,000010024816263 - 1,BATLEYS PERTH,5300,Catering costs - provisions,102.48,,102.48
Regeneration Economy and Growth,Business Durham CL0850,030689,Inward Investment and Aftercare,Supplies and Services,304403,Equipment and Materials,02-Apr-2022,000010017420557,ADOBE CREATIVE CLOUD,5734,Other consumables,49.94,0.00,49.94
Children and Young Peoples Services,Head of Childrens Social Care,085341,High Etherley Satelite Home,Supplies and Services,324117,Provisions E324,02-Apr-2022,000010017420571,TESCO STORES 6329,5411,Catering costs - provisions,13.73,0.00,13.73
Children and Young Peoples Services,Head of Childrens Social Care,085341,High Etherley Satelite Home,Supplies and Services,324117,Provisions E324,02-Apr-2022,000010017420575,TESCO STORES 6329,5411,Catering costs - provisions,4.00,0.00,4.00
Resources BK0010,Legal & Democratic Services,067910,Democratic Representation 067910,Supplies and Services,304259,Equipment and Materials,02-Apr-2022,000010017420651,APPLE.COM/UK,5732,Equipment-purchase and rental,19.00,0.00,19.00
Regeneration Economy and Growth,Culture Sport and Tourism,030712,VCD - Project Delivery,Supplies and Services,384199,Miscellaneous Expenses,02-Apr-2022,000010017420897,MAILCHIMP MISC,5968,Other hired and contracted services,269.54,0.00,269.54
Children and Young Peoples Services,Head of Childrens Social Care,085342,16 Hickstead Rise (previously 9 Cedar Ave),Supplies and Services,332047,Printing Stationery and Gen Off Exps,02-Apr-2022,000010017420921,Vue Cinema,7832,Stationery,14.78,0.00,14.78
Children and Young Peoples Services,Head of Childrens Social Care,085342,16 Hickstead Rise (previously 9 Cedar Ave),Supplies and Services,332047,Printing Stationery and Gen Off Exps,02-Apr-2022,000010017420925,Vue Entertainment Ltd,7832,Stationery,11.98,0.00,11.98
Children and Young Peoples Services,Head of Childrens Social Care,085342,16 Hickstead Rise (previously 9 Cedar Ave),Supplies and Services,324117,Provisions E324,02-Apr-2022,000010017420929,STARBUCKS BISHOP AUCKL,5499,Catering costs - provisions,11.15,0.00,11.15
Children and Young Peoples Services,Head of Childrens Social Care,085332,Middlestone Moor CU,Supplies and Services,304999,Equipment and Materials,02-Apr-2022,000010017421153,SAVERS HEALTH & BEAUTY,5912,Misc equipment tools and materials,6.29,0.00,6.29
Children and Young Peoples Services,Head of Childrens Social Care,085332,Middlestone Moor CU,Supplies and Services,344033,Telephones,02-Apr-2022,000010017421157,THREE,4814,Telephones general-all costs,10.00,0.00,10.00
Children and Young Peoples Services,Head of Childrens Social Care,085332,Middlestone Moor CU,Supplies and Services,304221,Equipment and Materials,02-Apr-2022,000010017421159,B & Q 1006,5200,Direct materials,6.00,0.00,6.00
Children and Young Peoples Services,Head of Childrens Social Care,085332,Middlestone Moor CU,Supplies and Services,324117,Provisions E324,02-Apr-2022,000010017421161,WM MORRISONS STORE,5411,Catering costs - provisions,33.75,0.00,33.75
Children and Young Peoples Services,Head of Childrens Social Care,085332,Middlestone Moor CU,Supplies and Services,324117,Provisions E324,02-Apr-2022,000010017421165,WM MORRISONS STORE,5411,Catering costs - provisions,7.75,0.00,7.75
Children and Young Peoples Services,Head of Early Help Inclusion & Vulnerable Children.,085957,Secure Management,Supplies and Services,304403,Equipment and Materials,02-Apr-2022,000010017421271,AMZNMktplace,5999,Other consumables,5.99,1.00,4.99
Children and Young Peoples Services,Head of Childrens Social Care,085347,Solo Home The Manse,Supplies and Services,324117,Provisions E324,02-Apr-2022,000010017421423,ASDA STORES,5411,Catering costs - provisions,15.56,0.00,15.56
Children and Young Peoples Services,Head of Early Help Inclusion & Vulnerable Children.,085962,Aycliffe Secure - Durham,Supplies and Services,324117,Provisions E324,02-Apr-2022,000010017421681,TESCO STORES 2916,5411,Catering costs - provisions,26.06,0.00,26.06
Children and Young Peoples Services,Head of Early Help Inclusion & Vulnerable Children.,085965,Barnard,Transfer Payments,515002,Social Services Clients,02-Apr-2022,000010017421891,Freedom Sportsline Ltd,5661,Pocket money,24.99,0.00,24.99
Children and Young Peoples Services,Head of Early Help Inclusion & Vulnerable Children.,085956,Lumley,Supplies and Services,324117,Provisions E324,02-Apr-2022,000010017421893,TESCO STORES 6329,5411,Catering costs - provisions,65.43,0.00,65.43
Children and Young Peoples Services,Head of Childrens Social Care,085331,New Lea Childrens Home,Supplies and Services,348037,Subsistence E348,02-Apr-2022,000010017422147,BAMBOO HOUSE,5812,Subsistence,47.00,0.00,47.00
Children and Young Peoples Services,Head of Early Help Inclusion & Vulnerable Children.,088105,W/Close and Willington Family Centre,Supplies and Services,384302,Miscellaneous Expenses,02-Apr-2022,000010017422363,W BOYES & CO LTD BISHO,5310,Activity expenses,2.10,0.00,2.10
Adult and Health Services,Head of Adults,055643,Hawthorn House LD Respite Unit,Supplies and Services,324117,Provisions E324,02-Apr-2022,000010017422557,SAINSBURYS S/MKTS,5411,Catering costs - provisions,17.68,0.00,17.68
Resources - C A C,Storm Dudley & Eunice,069004,Storm Dudley & Eunice,Supplies and Services,304221,Equipment and Materials,02-Apr-2022,000010017422613,SCREWFIX DIRECT,5211,Direct materials,"-1,499.00",-249.83,-1249.17
Children and Young Peoples Services,Head of Education and Skills,071732,Dean Bank Childcare,Supplies and Services,324117,Provisions E324,02-Apr-2022,000010017422693,ASDA STORES LTD,5411,Catering costs - provisions,8.60,0.00,8.60
Children and Young Peoples Services,Head of Childrens Social Care,085334,West Rainton Satelite Home,Supplies and Services,304259,Equipment and Materials,02-Apr-2022,000010017422849,HAVEN POINT,9399,Equipment-purchase and rental,9.85,0.00,9.85
Children and Young Peoples Services,Head of Childrens Social Care,085334,West Rainton Satelite Home,Supplies and Services,304259,Equipment and Materials,02-Apr-2022,000010017422851,HAVEN POINT,9399,Equipment-purchase and rental,5.90,0.00,5.90
Children and Young Peoples Services,Head of Early Help Inclusion & Vulnerable Children.,085957,Secure Management,Premises,108251,Service Repairs and Maintenance,02-Apr-2022,000010017423017,AMZNMKTPLACE AMAZON.CO,5999,Alarm and security maintenance,28.26,4.71,23.55
Regeneration Economy and Growth,Communications Management,060270,Communications and Marketing,Supplies and Services,336005,Advertising E336,02-Apr-2022,000010017423691,Google ADS8772529636,7311,Advertising other than for staff,201.61,0.00,201.61
Regeneration Economy and Growth,Business Durham CL0850,030689,Inward Investment and Aftercare,Supplies and Services,342222,Computers and Communications,02-Apr-2022,000010024724485,FASTHOSTS,4816,Comp hardware purch-network servers,75.06,0.00,75.06
Regeneration Economy and Growth,Business Durham CL0850,030689,Inward Investment and Aftercare,Supplies and Services,342222,Computers and Communications,02-Apr-2022,000010024724487,FASTHOSTS,4816,Comp hardware purch-network servers,63.00,0.00,63.00
Children and Young Peoples Services,Head of Education and Skills,071801,Selby Cottage Childcare Centre,Supplies and Services,304403,Equipment and Materials,03-Apr-2022,000010017420611,AMZNMktplace,5999,Other consumables,41.99,7.00,34.99
Regeneration Economy and Growth,Development and Housing,030772,CLLD South,Supplies and Services,304403,Equipment and Materials,03-Apr-2022,000010017421333,AMZNMktplace,5999,Other consumables,20.00,3.33,16.67
Regeneration Economy and Growth,Development and Housing,030772,CLLD South,Supplies and Services,304403,Equipment and Materials,03-Apr-2022,000010017421335,AMZNMktplace,5999,Other consumables,29.90,4.98,24.92
Children and Young Peoples Services,Head of Childrens Social Care,085358,Orchard House Sacriston Solo Home,Supplies and Services,324117,Provisions E324,03-Apr-2022,000010017421541,TESCO STORES 6334,5411,Catering costs - provisions,9.30,0.00,9.30
Children and Young Peoples Services,Head of Early Help Inclusion & Vulnerable Children.,085962,Aycliffe Secure - Durham,Supplies and Services,304403,Equipment and Materials,03-Apr-2022,000010017421685,AMZNBusiness 294H73QK4,5999,Other consumables,88.31,14.72,73.59
Children and Young Peoples Services,Head of Early Help Inclusion & Vulnerable Children.,085962,Aycliffe Secure - Durham,Supplies and Services,304403,Equipment and Materials,03-Apr-2022,000010017421689,AMZNBusiness 2945386D4,5999,Other consumables,8.75,1.46,7.29
Children and Young Peoples Services,Head of Early Help Inclusion & Vulnerable Children.,085954,Walworth,Supplies and Services,324117,Provisions E324,03-Apr-2022,000010017421895,TESCO STORES 6329,5411,Catering costs - provisions,91.30,0.00,91.30
Children and Young Peoples Services,Head of Childrens Social Care,085341,High Etherley Satelite Home,Supplies and Services,324117,Provisions E324,03-Apr-2022,000010017422413,ASDA STORES,5411,Catering costs - provisions,42.19,0.00,42.19
Children and Young Peoples Services,Head of Childrens Social Care,085351,Framwellgate Moor CU,Supplies and Services,324117,Provisions E324,03-Apr-2022,000010017422583,B&M 681 - DURHAM,5399,Catering costs - provisions,24.14,0.00,24.14
Children and Young Peoples Services,Head of Childrens Social Care,085333,Coxhoe Satelite Home,Supplies and Services,384999,Miscellaneous Expenses,03-Apr-2022,000010017422633,bitiba UK 239800905,5995,Other expenses,70.80,0.00,70.80
Neighbourhoods and Climate Change,Community Protection,010809,Community Protection Management,Supplies and Services,304403,Equipment and Materials,03-Apr-2022,000010017423135,AMZNMktplace,5999,Other consumables,202.80,33.93,168.87
Neighbourhoods and Climate Change,Community Protection,010809,Community Protection Management,Supplies and Services,304403,Equipment and Materials,03-Apr-2022,000010017423139,AMZNMktplace,5999,Other consumables,5.20,0.87,4.33
Neighbourhoods and Climate Change,Community Protection,010809,Community Protection Management,Supplies and Services,304403,Equipment and Materials,03-Apr-2022,000010017423141,AMZNMktplace,5999,Other consumables,26.00,4.35,21.65
Children and Young Peoples Services,Head of Childrens Social Care,085332,Middlestone Moor CU,Supplies and Services,324117,Provisions E324,03-Apr-2022,000010017423501,PPOINT_ WASHINGTON VIL,5411,Catering costs - provisions,6.25,0.00,6.25
Regeneration Economy and Growth,Business Durham CL0850,030694,Plexus 2,Supplies and Services,304403,Equipment and Materials,03-Apr-2022,000010017423929,AMZNMktplace,5999,Other consumables,25.98,0.00,25.98
Children and Young Peoples Services,Head of Childrens Social Care,085341,High Etherley Satelite Home,Transport,215995,Running Costs of Vehicles,03-Apr-2022,000010024724507,MOTOR FUEL LTD WYNYARD,5541,Vehicle running expenses,6.87,0.00,6.87
Children and Young Peoples Services,Head of Childrens Social Care,085341,High Etherley Satelite Home,Supplies and Services,348037,Subsistence E348,03-Apr-2022,000010024724511,SEATON FISHERIES,5812,Subsistence,34.10,0.00,34.10
Regeneration Economy and Growth,Culture Sport and Tourism,030705,Visit County Durham 030705,Supplies and Services,304259,Equipment and Materials,03-Apr-2022,000010024724541,FASTHOSTS,4816,Equipment-purchase and rental,7.54,1.26,6.28
Adult and Health Services,Head of Adults,055643,Hawthorn House LD Respite Unit,Supplies and Services,324117,Provisions E324,03-Apr-2022,000010024724927,SAINSBURYS S/MKTS,5411,Catering costs - provisions,7.65,0.00,7.65
Children and Young Peoples Services,Head of Childrens Social Care,085351,Framwellgate Moor CU,Supplies and Services,324117,Provisions E324,03-Apr-2022,000010024724935,CO-OP GROUP FOOD,5411,Catering costs - provisions,7.50,0.00,7.50
Resources BK0010,Procurement Sales & Business Services,065503,Business Support - Spectrum,Supplies and Services,304403,Equipment and Materials,03-Apr-2022,000010024724985,AMZNMKTPLACE AMAZON.CO,5999,Other consumables,1.91,0.32,1.59
Children and Young Peoples Services,Head of Early Help Inclusion & Vulnerable Children.,085957,Secure Management,Premises,108251,Service Repairs and Maintenance,03-Apr-2022,000010024725069,AMZNMKTPLACE AMAZON.CO,5999,Alarm and security maintenance,19.99,3.33,16.66
Children and Young Peoples Services,Head of Childrens Social Care,085634,Families First Easington,Supplies and Services,304403,Equipment and Materials,03-Apr-2022,000010024725369,AMZNMKTPLACE AMAZON.CO,5999,Other consumables,41.16,0.00,41.16
Regeneration Economy and Growth,Corporate Property and Land,010525,Catering - Green Lane,Supplies and Services,324117,Provisions E324,03-Apr-2022,000010024816249,BATLEYS PERTH,5300,Catering costs - provisions,150.36,25.06,125.30
Regeneration Economy and Growth,Corporate Property and Land,010525,Catering - Green Lane,Supplies and Services,324117,Provisions E324,03-Apr-2022,000010024816249 - 1,BATLEYS PERTH,5300,Catering costs - provisions,57.43,,57.43
Regeneration Economy and Growth,Corporate Property and Land,010525,Catering - Green Lane,Supplies and Services,324117,Provisions E324,04-Apr-2022,000008129089680,BATLEYS PERTH,5300,Catering costs - provisions,-9.30,0.00,-9.30
Resources BK0010,Digital Services,065432,Web Development Group,Supplies and Services,342033,Computers and Communications,04-Apr-2022,000010017420661,PROGRESS SOFTWARE,7372,Computer hardware,12.61,0.00,12.61
Dedicated Schools Grant BG0015,DSG Schools Block,417625,Greenfield Community College 004176-Non Stat Training,Supplies and Services,304403,Equipment and Materials,04-Apr-2022,000010017420675,Amazon.co.uk 299XY16M4,5969,Other consumables,59.85,0.00,59.85
Children and Young Peoples Services,Head of Early Help Inclusion & Vulnerable Children.,085962,Aycliffe Secure - Durham,Supplies and Services,312009,Newspapers books and periodicals E312,04-Apr-2022,000010017421691,AMZN Mktp UK 2992U46X4,5942,Newspapers books and periodicals,23.27,3.88,19.39
Dedicated Schools Grant BG0015,DSG Schools Block,417627,Greenfield Community College 004176 - School Meals,Supplies and Services,324117,Provisions E324,04-Apr-2022,000010024724503,WWW.FLEXILABELS.CO.UK,5943,Catering costs - provisions,141.26,23.54,117.72
Children and Young Peoples Services,Head of Education and Skills,075035,DurhamDirections Re-engagement,Supplies and Services,364301,Grants to Voluntary Organisations,04-Apr-2022,000010024724523,WWW.GONORTHEAST.CO.UK,4111,Hardship,25.00,0.00,25.00
Children and Young Peoples Services,Head of Education and Skills,075033,DurhamWorks 3,Supplies and Services,364301,Grants to Voluntary Organisations,04-Apr-2022,000010024724525,WWW.GONORTHEAST.CO.UK,4111,Hardship,25.00,0.00,25.00
Children and Young Peoples Services,Head of Education and Skills,075035,DurhamDirections Re-engagement,Supplies and Services,364301,Grants to Voluntary Organisations,04-Apr-2022,000010024724529,WWW.GONORTHEAST.CO.UK,4111,Hardship,25.00,0.00,25.00
Neighbourhoods and Climate Change,Environmental Services,010383,C&G - South Street Cleansing,Supplies and Services,304221,Equipment and Materials,04-Apr-2022,000010024724537,CARRS BILLINGTON SPENN,5599,Direct materials,407.61,0.00,407.61
Regeneration Economy and Growth,Culture Sport and Tourism,030712,VCD - Project Delivery,Supplies and Services,384199,Miscellaneous Expenses,04-Apr-2022,000010024724543,HOST & STAY LI BOOKING,7011,Other hired and contracted services,459.00,0.00,459.00
Children and Young Peoples Services,Head of Childrens Social Care,085342,16 Hickstead Rise (previously 9 Cedar Ave),Supplies and Services,324117,Provisions E324,04-Apr-2022,000010024724551,TESCO STORES 2916,5411,Catering costs - provisions,155.00,0.00,155.00
Children and Young Peoples Services,Head of Childrens Social Care,085334,West Rainton Satelite Home,Supplies and Services,324117,Provisions E324,04-Apr-2022,000010024724571,Selecta U.K. Limited,5499,Catering costs - provisions,1.20,0.00,1.20
Children and Young Peoples Services,Head of Childrens Social Care,085334,West Rainton Satelite Home,Supplies and Services,324117,Provisions E324,04-Apr-2022,000010024724573,Selecta U.K. Limited,5499,Catering costs - provisions,1.20,0.00,1.20
Children and Young Peoples Services,Head of Childrens Social Care,085334,West Rainton Satelite Home,Transport,235057,Public Transport,04-Apr-2022,000010024724577,PRINCE BISHOP SHOPPING,7523,Staff travelling,2.10,0.00,2.10
Children and Young Peoples Services,Head of Childrens Social Care,085334,West Rainton Satelite Home,Supplies and Services,324117,Provisions E324,04-Apr-2022,000010024724579,ASDA SUPERSTORE 4987,5411,Catering costs - provisions,6.85,0.00,6.85
Children and Young Peoples Services,Head of Childrens Social Care,085334,West Rainton Satelite Home,Supplies and Services,324117,Provisions E324,04-Apr-2022,000010024724583,TESCO STORES 2371,5411,Catering costs - provisions,119.23,0.00,119.23
Neighbourhoods and Climate Change,Environmental Services,010367,C&G - South Grounds Maintenance,Supplies and Services,304403,Equipment and Materials,04-Apr-2022,000010024724619,MAXWELLS DIY,5231,Other consumables,129.00,0.00,129.00
Regeneration Economy and Growth,Development and Housing,030776,LINKCD Flexible Fund,Transport,235057,Public Transport,04-Apr-2022,000010024724633,WWW.GONORTHEAST.CO.UK,4111,Staff travelling,20.00,0.00,20.00
Children and Young Peoples Services,Head of Early Help Inclusion & Vulnerable Children.,085957,Secure Management,Supplies and Services,304403,Equipment and Materials,04-Apr-2022,000010024724661,SP FRANKLINS,5734,Other consumables,94.00,0.00,94.00
Children and Young Peoples Services,Head of Early Help Inclusion & Vulnerable Children.,085957,Secure Management,Supplies and Services,304403,Equipment and Materials,04-Apr-2022,000010024724663,SALONS DIRECT LTD,5999,Other consumables,56.16,0.00,56.16
Children and Young Peoples Services,Head of Early Help Inclusion & Vulnerable Children.,085957,Secure Management,Supplies and Services,324117,Provisions E324,04-Apr-2022,000010024724665,TESCO STORES 6329,5411,Catering costs - provisions,117.90,0.00,117.90
Children and Young Peoples Services,Head of Early Help Inclusion & Vulnerable Children.,085957,Secure Management,Supplies and Services,384999,Miscellaneous Expenses,04-Apr-2022,000010024724669,Amazon.co.uk 290197244,5969,Other expenses,36.50,6.08,30.42
Children and Young Peoples Services,Head of Early Help Inclusion & Vulnerable Children.,085957,Secure Management,Supplies and Services,384999,Miscellaneous Expenses,04-Apr-2022,000010024724671,Amazon.co.uk 295XF22K4,5969,Other expenses,63.09,10.53,52.56
Children and Young Peoples Services,Head of Childrens Social Care,085511,Emergency Duty Team,Supplies and Services,352001,Conference Expenses,04-Apr-2022,000010024724677,TRAVELODGE,3615,Conferencesseminars fees etc,38.74,0.00,38.74
Neighbourhoods and Climate Change,Environmental Services,010367,C&G - South Grounds Maintenance,Supplies and Services,304403,Equipment and Materials,04-Apr-2022,000010024724723,SP UK MOASURE,5734,Other consumables,424.80,0.00,424.80
Children and Young Peoples Services,Head of Education and Skills,071732,Dean Bank Childcare,Supplies and Services,384999,Miscellaneous Expenses,04-Apr-2022,000010024724735,Amazon.co.uk 299WF3SP4,5969,Other expenses,21.00,0.00,21.00
Neighbourhoods and Climate Change,Environmental Services,011060,C&G - Hardwick Park Catering,Supplies and Services,304259,Equipment and Materials,04-Apr-2022,000010024724741,BHMA.CO.UK,5399,Equipment-purchase and rental,85.14,0.00,85.14
Neighbourhoods and Climate Change,Environmental Services,011060,C&G - Hardwick Park Catering,Supplies and Services,304259,Equipment and Materials,04-Apr-2022,000010024724743,AMZNMktplace,5999,Equipment-purchase and rental,55.68,9.28,46.40
Neighbourhoods and Climate Change,Environmental Services,011060,C&G - Hardwick Park Catering,Supplies and Services,304259,Equipment and Materials,04-Apr-2022,000010024724745,AMZNMktplace,5999,Equipment-purchase and rental,49.50,8.25,41.25
Neighbourhoods and Climate Change,Environmental Services,011060,C&G - Hardwick Park Catering,Supplies and Services,304259,Equipment and Materials,04-Apr-2022,000010024724749,AMZNMKTPLACE AMAZON.CO,5999,Equipment-purchase and rental,15.60,2.60,13.00
Children and Young Peoples Services,Head of Childrens Social Care,085517,Supporting Solutions Service (Edge of Care),Transport,235057,Public Transport,04-Apr-2022,000010024724767,thetrainline.com,4112,Staff travelling,69.24,0.00,69.24
Neighbourhoods and Climate Change,Environmental Services,010301,C&G - North Grounds Maintenance,Supplies and Services,304999,Equipment and Materials,04-Apr-2022,000010024724785,J G PAXTON SONS,5072,Misc equipment tools and materials,20.21,0.00,20.21
Regeneration Economy and Growth,Development and Housing,030771,Durham Advance Flexible Fund,Transport,235057,Public Transport,04-Apr-2022,000010024724805,WWW.GONORTHEAST.CO.UK,4111,Staff travelling,34.00,0.00,34.00
Regeneration Economy and Growth,Development and Housing,030771,Durham Advance Flexible Fund,Transport,235057,Public Transport,04-Apr-2022,000010024724807,WWW.GONORTHEAST.CO.UK,4111,Staff travelling,17.00,0.00,17.00
Regeneration Economy and Growth,Development and Housing,030771,Durham Advance Flexible Fund,Transport,235057,Public Transport,04-Apr-2022,000010024724809,WWW.GONORTHEAST.CO.UK,4111,Staff travelling,17.00,0.00,17.00
Regeneration Economy and Growth,Development and Housing,030771,Durham Advance Flexible Fund,Transport,235057,Public Transport,04-Apr-2022,000010024724811,WWW.GONORTHEAST.CO.UK,4111,Staff travelling,20.00,0.00,20.00
Neighbourhoods and Climate Change,Environmental Services,031200,North Pennines Core,Transport,235057,Public Transport,04-Apr-2022,000010024724817,3C_ NSL Durham WAP,7523,Staff travelling,2.00,0.00,2.00
Children and Young Peoples Services,Head of Early Help Inclusion & Vulnerable Children.,088108,Spennymoor & Shildon Intensive Family Support Team,Supplies and Services,384302,Miscellaneous Expenses,04-Apr-2022,000010024724889,AMZNMKTPLACE AMAZON.CO,5999,Activity expenses,15.25,2.54,12.71
Children and Young Peoples Services,Head of Early Help Inclusion & Vulnerable Children.,088109,Dean Bank and Tudhoe Family Centre,Supplies and Services,384302,Miscellaneous Expenses,04-Apr-2022,000010024724893,AMZNMktplace,5999,Activity expenses,13.49,2.25,11.24
Children and Young Peoples Services,Head of Childrens Social Care,085341,High Etherley Satelite Home,Supplies and Services,304403,Equipment and Materials,04-Apr-2022,000010024724895,AMZNMktplace,5999,Other consumables,2.99,0.50,2.49
Children and Young Peoples Services,Head of Education and Skills,071802,Louisa Cent Nursery,Supplies and Services,324117,Provisions E324,04-Apr-2022,000010024724939,ASDA SUPERSTORE,5411,Catering costs - provisions,9.00,0.00,9.00
Children and Young Peoples Services,Head of Childrens Social Care,085342,16 Hickstead Rise (previously 9 Cedar Ave),Supplies and Services,324117,Provisions E324,04-Apr-2022,000010024724941,TESCO STORES 2916,5411,Catering costs - provisions,90.16,0.00,90.16
Children and Young Peoples Services,Head of Childrens Social Care,085342,16 Hickstead Rise (previously 9 Cedar Ave),Supplies and Services,304999,Equipment and Materials,04-Apr-2022,000010024724943,SUPERDRUG STORES PLC,5912,Misc equipment tools and materials,44.72,0.00,44.72
Children and Young Peoples Services,Head of Childrens Social Care,085333,Coxhoe Satelite Home,Supplies and Services,324117,Provisions E324,04-Apr-2022,000010024724945,LIDL GB DURHAM,5411,Catering costs - provisions,40.09,0.00,40.09
Children and Young Peoples Services,Head of Education and Skills,071732,Dean Bank Childcare,Supplies and Services,324117,Provisions E324,04-Apr-2022,000010024724953,ASDA GROCERIES ONLINE,5411,Catering costs - provisions,68.56,0.00,68.56
Neighbourhoods and Climate Change,Environmental Services,031200,North Pennines Core,Supplies and Services,324117,Provisions E324,04-Apr-2022,000010024724987,THE GREEK KITCHEN,5811,Catering costs - provisions,15.90,0.00,15.90
Neighbourhoods and Climate Change,Environmental Services,031200,North Pennines Core,Transport,235057,Public Transport,04-Apr-2022,000010024724989,THE RIVERWALK CAR PARK,7523,Staff travelling,4.50,0.00,4.50
Neighbourhoods and Climate Change,Environmental Services,031200,North Pennines Core,Supplies and Services,324117,Provisions E324,04-Apr-2022,000010024724991,The Coffee House,5462,Catering costs - provisions,7.50,0.00,7.50
Neighbourhoods and Climate Change,Environmental Services,031200,North Pennines Core,Supplies and Services,324117,Provisions E324,04-Apr-2022,000010024724995,The Coffee House,5462,Catering costs - provisions,9.40,0.00,9.40
Dedicated Schools Grant BG0015,DSG High Needs Block,079040,HNB Management and support,Supplies and Services,324117,Provisions E324,04-Apr-2022,000010024725073,ASDA GROCERIES ONLINE,5411,Catering costs - provisions,20.75,0.00,20.75
Neighbourhoods and Climate Change,Community Protection,010809,Community Protection Management,Supplies and Services,304403,Equipment and Materials,04-Apr-2022,000010024725101,AMZNMktplace,5999,Other consumables,119.96,20.00,99.96
Neighbourhoods and Climate Change,Community Protection,010809,Community Protection Management,Supplies and Services,304403,Equipment and Materials,04-Apr-2022,000010024725105,AMZNMktplace,5999,Other consumables,77.95,0.00,77.95
Neighbourhoods and Climate Change,Community Protection,010809,Community Protection Management,Supplies and Services,304403,Equipment and Materials,04-Apr-2022,000010024725107,AMZNMktplace,5999,Other consumables,798.00,133.00,665.00
Neighbourhoods and Climate Change,Community Protection,010809,Community Protection Management,Supplies and Services,304403,Equipment and Materials,04-Apr-2022,000010024725107 - 1,AMZNMktplace,5999,Other consumables,1.00,,1.00
Neighbourhoods and Climate Change,Environmental Services,031118,E&D - Seascape,Supplies and Services,348037,Subsistence E348,04-Apr-2022,000010024725149,SIMS KITCHEN LIMITED,5814,Subsistence,51.15,0.00,51.15
Children and Young Peoples Services,Head of Education and Skills,071802,Louisa Cent Nursery,Supplies and Services,328041,Clothing uniforms and laundry E328,04-Apr-2022,000010024725153,POUNDSTRETCHER 354,5331,Clothing uniforms and laundry,1.99,0.00,1.99
Children and Young Peoples Services,Head of Education and Skills,071802,Louisa Cent Nursery,Supplies and Services,304999,Equipment and Materials,04-Apr-2022,000010024725155,HOME BARGAINS,5251,Misc equipment tools and materials,19.67,0.00,19.67
Regeneration Economy and Growth,Culture Sport and Tourism,011263,Louisa Centre 011263,Supplies and Services,324117,Provisions E324,04-Apr-2022,000010024725231,ASDA SUPERSTORE,5411,Catering costs - provisions,4.40,0.00,4.40
Regeneration Economy and Growth,Culture Sport and Tourism,011263,Louisa Centre 011263,Supplies and Services,324117,Provisions E324,04-Apr-2022,000010024725233,ASDA SUPERSTORE,5411,Catering costs - provisions,6.20,0.00,6.20
Regeneration Economy and Growth,Culture Sport and Tourism,054233,Bishop Auckland Town Hall Library,Supplies and Services,324117,Provisions E324,04-Apr-2022,000010024725241,HERON FOODS,5411,Catering costs - provisions,37.83,0.00,37.83
Children and Young Peoples Services,Head of Childrens Social Care,085352,New Childrens Home (previously Tow Law),Supplies and Services,324117,Provisions E324,04-Apr-2022,000010024725245,ASDA GROCERIES ONLINE,5411,Catering costs - provisions,150.79,0.00,150.79
Children and Young Peoples Services,Head of Childrens Social Care,085352,New Childrens Home (previously Tow Law),Supplies and Services,324117,Provisions E324,04-Apr-2022,000010024725247,ASDA GROCERIES ONLINE,5411,Catering costs - provisions,-1.16,0.00,-1.16
Children and Young Peoples Services,Head of Childrens Social Care,085334,West Rainton Satelite Home,Supplies and Services,352001,Conference Expenses,04-Apr-2022,000010024725335,AIRBNB HMNAEAFSMB,7011,Conferencesseminars fees etc,374.22,0.00,374.22
Neighbourhoods and Climate Change,Environmental Services,031200,North Pennines Core,Supplies and Services,384999,Miscellaneous Expenses,04-Apr-2022,000010024725349,Risus Ltd t/a Risus Wh,5945,Other expenses,205.47,0.00,205.47
Regeneration Economy and Growth,Corporate Property and Land,010525,Catering - Green Lane,Supplies and Services,324117,Provisions E324,04-Apr-2022,000010024816253,JR HOLLAND FOODSERVICE,5499,Catering costs - provisions,70.82,0.00,70.82
Regeneration Economy and Growth,Corporate Property and Land,011275,Catering -Durham Leadership Centre,Supplies and Services,324117,Provisions E324,04-Apr-2022,000010024816257,JR HOLLAND FOODSERVICE,5499,Catering costs - provisions,64.04,0.00,64.04
Regeneration Economy and Growth,Corporate Property and Land,011296,Catering - Crimdon Dene Hub,Supplies and Services,324117,Provisions E324,04-Apr-2022,000010024816259,JR HOLLAND FOODSERVICE,5499,Catering costs - provisions,-4.20,0.00,-4.20
Regeneration Economy and Growth,Culture Sport and Tourism,054235,Bishop Auckland Town Hall Cafe,Supplies and Services,324117,Provisions E324,04-Apr-2022,000010024816261,JR HOLLAND FOODSERVICE,5499,Catering costs - provisions,35.19,0.00,35.19
Adult and Health Services,Head of Adults,055643,Hawthorn House LD Respite Unit,Supplies and Services,324117,Provisions E324,04-Apr-2022,000010024816265,JR HOLLAND FOODSERVICE,5499,Catering costs - provisions,19.92,0.00,19.92
Adult and Health Services,Head of Adults,055643,Hawthorn House LD Respite Unit,Supplies and Services,324117,Provisions E324,04-Apr-2022,000010024816269,JR HOLLAND FOODSERVICE,5499,Catering costs - provisions,-1.75,0.00,-1.75
Neighbourhoods and Climate Change,Environmental Services,011060,C&G - Hardwick Park Catering,Supplies and Services,324117,Provisions E324,04-Apr-2022,000010024816271,JR HOLLAND FOODSERVICE,5499,Catering costs - provisions,95.85,0.00,95.85
Regeneration Economy and Growth,Corporate Property and Land,021234,Catering - Locomotion,Supplies and Services,324117,Provisions E324,04-Apr-2022,000010024816275,JR HOLLAND FOODSERVICE,5499,Catering costs - provisions,-5.10,0.00,-5.10
Regeneration Economy and Growth,Corporate Property and Land,021234,Catering - Locomotion,Supplies and Services,324117,Provisions E324,04-Apr-2022,000010024816277,JR HOLLAND FOODSERVICE,5499,Catering costs - provisions,-0.85,0.00,-0.85
Regeneration Economy and Growth,Corporate Property and Land,021242,Catering - County Hall,Supplies and Services,324117,Provisions E324,04-Apr-2022,000010024816279,JR HOLLAND FOODSERVICE,5499,Catering costs - provisions,130.31,0.00,130.31
Regeneration Economy and Growth,Corporate Property and Land,021242,Catering - County Hall,Supplies and Services,324117,Provisions E324,04-Apr-2022,000010024816281,JR HOLLAND FOODSERVICE,5499,Catering costs - provisions,51.30,0.00,51.30
Regeneration Economy and Growth,Business Durham CL0850,030689,Inward Investment and Aftercare,Supplies and Services,342222,Computers and Communications,04-Apr-2022,000010028593129,FASTHOSTS,4816,Comp hardware purch-network servers,7.54,0.00,7.54
Children and Young Peoples Services,Head of Childrens Social Care,085342,16 Hickstead Rise (previously 9 Cedar Ave),Supplies and Services,324117,Provisions E324,04-Apr-2022,000010028593313,SAINSBURYS AYCLIFF,5411,Catering costs - provisions,1.30,0.00,1.30
Children and Young Peoples Services,Head of Childrens Social Care,085334,West Rainton Satelite Home,Supplies and Services,304259,Equipment and Materials,04-Apr-2022,000010028593425,SPENNYMOOR LEISURE,9399,Equipment-purchase and rental,14.80,0.00,14.80
Regeneration Economy and Growth,Development and Housing,030771,Durham Advance Flexible Fund,Supplies and Services,304259,Equipment and Materials,04-Apr-2022,000010028593671,Durham County CNCL,9399,Equipment-purchase and rental,37.50,0.00,37.50
Children and Young Peoples Services,Head of Education and Skills,071732,Dean Bank Childcare,Supplies and Services,324117,Provisions E324,04-Apr-2022,000010028594095,Wm Morrisons Store Pic,5411,Catering costs - provisions,8.00,0.00,8.00
Neighbourhoods and Climate Change,Environmental Services,010367,C&G - South Grounds Maintenance,Supplies and Services,304221,Equipment and Materials,04-Apr-2022,000010028594401,SCREWFIX DIR LTD,5211,Direct materials,19.98,0.00,19.98
Children and Young Peoples Services,Head of Childrens Social Care,085621,Families First Newton Aycliffe and Shildon,Supplies and Services,332047,Printing Stationery and Gen Off Exps,04-Apr-2022,000010028594495,highstreetvouchers,8641,Stationery,56.50,0.00,56.50
Adult and Health Services,Head of Adults,055643,Hawthorn House LD Respite Unit,Supplies and Services,324117,Provisions E324,04-Apr-2022,000010028594727,CO-OP GROUP 010465,5411,Catering costs - provisions,2.95,0.00,2.95
Children and Young Peoples Services,Head of Childrens Social Care,085342,16 Hickstead Rise (previously 9 Cedar Ave),Supplies and Services,324117,Provisions E324,04-Apr-2022,000010028594769,SAINSBURYS S/MKTS,5411,Catering costs - provisions,26.20,0.00,26.20
Adult and Health Services,Head of Adults,052229,Countywide AMHP Team,Supplies and Services,338048,Services,04-Apr-2022,000010028594961,HMCTS GRIMSBY&SCUNTHOR,9222,Court costs 338048,81.00,0.00,81.00
Neighbourhoods and Climate Change,Environmental Services,031118,E&D - Seascape,Supplies and Services,324117,Provisions E324,04-Apr-2022,000010028595167,WM MORRISONS STORE,5411,Catering costs - provisions,9.85,0.00,9.85
Children and Young Peoples Services,Head of Education and Skills,071802,Louisa Cent Nursery,Supplies and Services,328041,Clothing uniforms and laundry E328,04-Apr-2022,000010028595199,POUNDLAND LTD 1597,5310,Clothing uniforms and laundry,7.00,0.00,7.00
Children and Young Peoples Services,Head of Early Help Inclusion & Vulnerable Children.,088113,Seaham & Laurel Avenue Family Centre,Supplies and Services,324117,Provisions E324,04-Apr-2022,000010028595767,ALDI 12 774,5411,Catering costs - provisions,13.39,0.00,13.39
Regeneration Economy and Growth,Corporate Property and Land,010525,Catering - Green Lane,Supplies and Services,324117,Provisions E324,04-Apr-2022,000010028739659,BATLEYS PERTH,5300,Catering costs - provisions,6.18,0.00,6.18
Regeneration Economy and Growth,Corporate Property and Land,030691,Catering - Durham Dales Centre,Supplies and Services,324117,Provisions E324,04-Apr-2022,000010028739665,BATLEYS PERTH,5300,Catering costs - provisions,77.28,12.88,64.40
Regeneration Economy and Growth,Corporate Property and Land,030691,Catering - Durham Dales Centre,Supplies and Services,324117,Provisions E324,04-Apr-2022,000010028739665 - 1,BATLEYS PERTH,5300,Catering costs - provisions,108.95,,108.95
Regeneration Economy and Growth,Corporate Property and Land,021235,Catering - Wharton Park,Supplies and Services,324117,Provisions E324,04-Apr-2022,000010028739685,BATLEYS PERTH,5300,Catering costs - provisions,132.66,22.11,110.55
Regeneration Economy and Growth,Corporate Property and Land,021235,Catering - Wharton Park,Supplies and Services,324117,Provisions E324,04-Apr-2022,000010028739685 - 1,BATLEYS PERTH,5300,Catering costs - provisions,0.04,,0.04
Regeneration Economy and Growth,Culture Sport and Tourism,054812,Gala Theatre - Catering etc,Supplies and Services,324117,Provisions E324,04-Apr-2022,000010028739707,BATLEYS PERTH,5300,Catering costs - provisions,84.90,14.15,70.75
Regeneration Economy and Growth,Culture Sport and Tourism,054812,Gala Theatre - Catering etc,Supplies and Services,324117,Provisions E324,04-Apr-2022,000010028739707 - 1,BATLEYS PERTH,5300,Catering costs - provisions,57.97,,57.97
Children and Young Peoples Services,Head of Early Help Inclusion & Vulnerable Children.,085956,Lumley,Supplies and Services,308011,Furniture,05-Apr-2022,000008078855784,WWW.THERANGE.CO.UK,5719,Furniture repair and replacement,31.94,0.00,31.94
Regeneration Economy and Growth,Business Durham CL0850,030689,Inward Investment and Aftercare,Supplies and Services,336005,Advertising E336,05-Apr-2022,000010024724491,Google ADS6853017821,7311,Advertising other than for staff,37.84,0.00,37.84
Children and Young Peoples Services,Head of Early Help Inclusion & Vulnerable Children.,079050,SENSS-Sensory,Supplies and Services,304403,Equipment and Materials,05-Apr-2022,000010024724555,AMZNMktplace,5999,Other consumables,16.98,2.83,14.15
Children and Young Peoples Services,Head of Early Help Inclusion & Vulnerable Children.,079050,SENSS-Sensory,Supplies and Services,304403,Equipment and Materials,05-Apr-2022,000010024724557,AMZNMktplace,5999,Other consumables,9.78,1.63,8.15
Regeneration Economy and Growth,Communications Management,060270,Communications and Marketing,Supplies and Services,336005,Advertising E336,05-Apr-2022,000010024725309,FACEBK S4TJHB75B2,7311,Advertising other than for staff,500.00,0.00,500.00
Children and Young Peoples Services,Head of Childrens Social Care,085341,High Etherley Satelite Home,Supplies and Services,348037,Subsistence E348,05-Apr-2022,000010028593145,iZ HODA LEISURE L,5812,Subsistence,10.30,0.00,10.30
Children and Young Peoples Services,Head of Education and Skills,071801,Selby Cottage Childcare Centre,Supplies and Services,324117,Provisions E324,05-Apr-2022,000010028593153,JR HOLLAND FOODSERVICE,5499,Catering costs - provisions,419.01,0.00,419.01
Regeneration Economy and Growth,Culture Sport and Tourism,010605,Woodhouse Close Leisure Complex,Supplies and Services,304259,Equipment and Materials,05-Apr-2022,000010028593281,TAHDAH VERIFIED,5734,Equipment-purchase and rental,399.00,0.00,399.00
Children and Young Peoples Services,Head of Childrens Social Care,085332,Middlestone Moor CU,Supplies and Services,324117,Provisions E324,05-Apr-2022,000010028593325,HOME BARGAINS,5251,Catering costs - provisions,76.11,0.00,76.11
Children and Young Peoples Services,Head of Childrens Social Care,085332,Middlestone Moor CU,Supplies and Services,324117,Provisions E324,05-Apr-2022,000010028593333,LIDL GB BSHP AUCKLAND,5411,Catering costs - provisions,103.87,0.00,103.87
Children and Young Peoples Services,Head of Childrens Social Care,085332,Middlestone Moor CU,Supplies and Services,324117,Provisions E324,05-Apr-2022,000010028593335,TESCO STORES 6329,5411,Catering costs - provisions,27.37,0.00,27.37
Children and Young Peoples Services,Head of Childrens Social Care,085341,High Etherley Satelite Home,Supplies and Services,324117,Provisions E324,05-Apr-2022,000010028593475,TESCO STORES 6329,5411,Catering costs - provisions,45.05,0.00,45.05
Children and Young Peoples Services,Head of Education and Skills,054640,Durham Learning Resources 054640,Supplies and Services,304403,Equipment and Materials,05-Apr-2022,000010028593509,AMZNMktplace,5999,Other consumables,4.88,0.81,4.07
Children and Young Peoples Services,Head of Childrens Social Care,085331,New Lea Childrens Home,Supplies and Services,384999,Miscellaneous Expenses,05-Apr-2022,000010028593615,TEAM SPORT KARTING,7997,Other expenses,99.90,0.00,99.90
Regeneration Economy and Growth,Development and Housing,030544,Rural Employability - Client Engagement,Transport,235057,Public Transport,05-Apr-2022,000010028593655,BLUELINE TAXIS,4121,Staff travelling,18.00,0.00,18.00
Regeneration Economy and Growth,Development and Housing,030771,Durham Advance Flexible Fund,Third Party Payments,430100,Rendered by Private Contractors,05-Apr-2022,000010028593681,BILL PLANT DRIVING SCH,7399,Payments to sub-contractors,150.00,0.00,150.00
Children and Young Peoples Services,Head of Childrens Social Care,085332,Middlestone Moor CU,Supplies and Services,304999,Equipment and Materials,05-Apr-2022,000010028593689,PLANET LEISURE,7933,Misc equipment tools and materials,11.80,0.00,11.80
Children and Young Peoples Services,Head of Childrens Social Care,085347,Solo Home The Manse,Supplies and Services,324117,Provisions E324,05-Apr-2022,000010028593913,TESCO STORES 2371,5411,Catering costs - provisions,131.98,0.00,131.98
Resources BK0010,Digital Services,065481,Technical Services 065481,Supplies and Services,372009,Subscriptions E372,05-Apr-2022,000010028594037,WEB NETWORKSOLUTIONS,5968,Subscriptions 372009,339.08,0.00,339.08
Children and Young Peoples Services,Head of Education and Skills,071732,Dean Bank Childcare,Supplies and Services,324117,Provisions E324,05-Apr-2022,000010028594101,B&M 035 - SHILDON,5399,Catering costs - provisions,6.85,0.00,6.85
Children and Young Peoples Services,Head of Early Help Inclusion & Vulnerable Children.,085962,Aycliffe Secure - Durham,Supplies and Services,304403,Equipment and Materials,05-Apr-2022,000010028594131,AMZNBusiness 299AX59S4,5999,Other consumables,27.97,4.67,23.30
Children and Young Peoples Services,Head of Early Help Inclusion & Vulnerable Children.,085962,Aycliffe Secure - Durham,Supplies and Services,304403,Equipment and Materials,05-Apr-2022,000010028594139,AMZNBusiness 292RT79O4,5999,Other consumables,6.99,1.17,5.82
Children and Young Peoples Services,Head of Early Help Inclusion & Vulnerable Children.,085962,Aycliffe Secure - Durham,Supplies and Services,304403,Equipment and Materials,05-Apr-2022,000010028594145,AMZNBusiness 293QT99T4,5999,Other consumables,2.48,0.41,2.07
Children and Young Peoples Services,Head of Early Help Inclusion & Vulnerable Children.,085962,Aycliffe Secure - Durham,Supplies and Services,304403,Equipment and Materials,05-Apr-2022,000010028594151,AMZNBusiness 296RA1944,5999,Other consumables,4.99,0.83,4.16
Children and Young Peoples Services,Head of Early Help Inclusion & Vulnerable Children.,085962,Aycliffe Secure - Durham,Supplies and Services,312009,Newspapers books and periodicals E312,05-Apr-2022,000010028594155,AMZ Amazon Warehouse,5942,Newspapers books and periodicals,-51.15,-8.53,-42.62
Adult and Health Services,Head of Adults,055202,Support and Recovery,Supplies and Services,308011,Furniture,05-Apr-2022,000010028594203,JS CARPETS,5713,Furniture repair and replacement,449.00,0.00,449.00
Neighbourhoods and Climate Change,Environmental Services,010301,C&G - North Grounds Maintenance,Supplies and Services,304999,Equipment and Materials,05-Apr-2022,000010028594211,TURFCARE SPECIALISTS L,780,Misc equipment tools and materials,241.50,0.00,241.50
Regeneration Economy and Growth,Development and Housing,030771,Durham Advance Flexible Fund,Supplies and Services,348037,Subsistence E348,05-Apr-2022,000010028594255,iZ REfUSE C I C,5812,Subsistence,1.50,0.00,1.50
Regeneration Economy and Growth,Development and Housing,030771,Durham Advance Flexible Fund,Transport,235057,Public Transport,05-Apr-2022,000010028594263,CHEVRON TAXIS,4121,Staff travelling,35.50,0.00,35.50
Children and Young Peoples Services,Head of Early Help Inclusion & Vulnerable Children.,085965,Barnard,Supplies and Services,308011,Furniture,05-Apr-2022,000010028594283,SP STEVEN BROWN ART,5399,Furniture repair and replacement,309.97,0.00,309.97
Children and Young Peoples Services,Head of Early Help Inclusion & Vulnerable Children.,085956,Lumley,Supplies and Services,312009,Newspapers books and periodicals E312,05-Apr-2022,000010028594289,Amazon.co.uk 293001784,5969,Newspapers books and periodicals,12.00,2.00,10.00
Children and Young Peoples Services,Head of Early Help Inclusion & Vulnerable Children.,085956,Lumley,Supplies and Services,312009,Newspapers books and periodicals E312,05-Apr-2022,000010028594289 - 1,Amazon.co.uk 293001784,5969,Newspapers books and periodicals,11.94,,11.94
Children and Young Peoples Services,Head of Early Help Inclusion & Vulnerable Children.,085954,Walworth,Supplies and Services,384302,Miscellaneous Expenses,05-Apr-2022,000010028594293,AMZNMktplace,5999,Activity expenses,58.95,0.00,58.95
Children and Young Peoples Services,Head of Early Help Inclusion & Vulnerable Children.,085954,Walworth,Supplies and Services,384302,Miscellaneous Expenses,05-Apr-2022,000010028594299,AMZNMktplace,5999,Activity expenses,55.92,9.32,46.60
Children and Young Peoples Services,Head of Early Help Inclusion & Vulnerable Children.,085954,Walworth,Supplies and Services,384302,Miscellaneous Expenses,05-Apr-2022,000010028594299 - 1,AMZNMktplace,5999,Activity expenses,13.79,,13.79
Children and Young Peoples Services,Head of Early Help Inclusion & Vulnerable Children.,085954,Walworth,Supplies and Services,312009,Newspapers books and periodicals E312,05-Apr-2022,000010028594301,AMZNMktplace,5999,Newspapers books and periodicals,7.80,0.00,7.80
Children and Young Peoples Services,Head of Early Help Inclusion & Vulnerable Children.,085956,Lumley,Supplies and Services,332047,Printing Stationery and Gen Off Exps,05-Apr-2022,000010028594309,Amazon.co.uk 298QK79N4,5969,Stationery,33.40,5.60,27.80
Children and Young Peoples Services,Head of Early Help Inclusion & Vulnerable Children.,085956,Lumley,Supplies and Services,312009,Newspapers books and periodicals E312,05-Apr-2022,000010028594311,Amazon.co.uk 299HR99H4,5969,Newspapers books and periodicals,12.75,2.13,10.62
Children and Young Peoples Services,Head of Early Help Inclusion & Vulnerable Children.,085954,Walworth,Supplies and Services,384302,Miscellaneous Expenses,05-Apr-2022,000010028594317,AMZNMktplace,5999,Activity expenses,31.95,5.33,26.62
Children and Young Peoples Services,Head of Early Help Inclusion & Vulnerable Children.,085954,Walworth,Supplies and Services,384302,Miscellaneous Expenses,05-Apr-2022,000010028594325,AMZNMktplace,5999,Activity expenses,15.99,2.67,13.32
Children and Young Peoples Services,Head of Early Help Inclusion & Vulnerable Children.,088104,BA/BC/Crook Intensive Family Support Team,Supplies and Services,384302,Miscellaneous Expenses,05-Apr-2022,000010028594651,AMZNMKTPLACE AMAZON.CO,5999,Activity expenses,5.49,0.00,5.49
Children and Young Peoples Services,Head of Childrens Social Care,085368,Children Looked After Team 5,Supplies and Services,384302,Miscellaneous Expenses,05-Apr-2022,000010028594657,WWW.INFINITEAIR.CO.UK,7991,Activity expenses,15.90,0.00,15.90
Children and Young Peoples Services,Head of Childrens Social Care,085365,Children Looked After Team 2,Supplies and Services,384302,Miscellaneous Expenses,05-Apr-2022,000010028594661,WWW.INFINITEAIR.CO.UK,7991,Activity expenses,35.85,0.00,35.85
Children and Young Peoples Services,Head of Childrens Social Care,085364,Children Looked After Team 1,Supplies and Services,338045,Services,05-Apr-2022,000010028594667,HM PASSPORT OFFICE,9399,Legal expenses 338045,75.50,0.00,75.50
Children and Young Peoples Services,Head of Childrens Social Care,085366,Children Looked After Team 3,Supplies and Services,338045,Services,05-Apr-2022,000010028594673,HM PASSPORT OFFICE,9399,Legal expenses 338045,49.00,0.00,49.00
Children and Young Peoples Services,Head of Childrens Social Care,085623,Families First Bishop Auckland and Crook,Supplies and Services,384302,Miscellaneous Expenses,05-Apr-2022,000010028594677,AMZNBusiness 2922K29G4,5999,Activity expenses,8.05,0.00,8.05
Children and Young Peoples Services,Head of Early Help Inclusion & Vulnerable Children.,088109,Dean Bank and Tudhoe Family Centre,Supplies and Services,384302,Miscellaneous Expenses,05-Apr-2022,000010028594681,AMZNMktplace,5999,Activity expenses,17.98,3.00,14.98
Regeneration Economy and Growth,Development and Housing,030771,Durham Advance Flexible Fund,Supplies and Services,324117,Provisions E324,05-Apr-2022,000010028594759,RAIL GOURMET U K TPE,5499,Catering costs - provisions,2.60,0.00,2.60
Regeneration Economy and Growth,Culture Sport and Tourism,010664,Freemans Quay Leisure Centre,Supplies and Services,304403,Equipment and Materials,05-Apr-2022,000010028594855,AMZNMktplace,5999,Other consumables,45.58,7.60,37.98
Children and Young Peoples Services,Head of Early Help Inclusion & Vulnerable Children.,088103,Stanley & Moorside Family Centre,Supplies and Services,384302,Miscellaneous Expenses,05-Apr-2022,000010028594871,AMZNMktplace,5999,Activity expenses,50.85,8.55,42.30
Resources BK0010,Digital Services,065323,Operations - Installations,Supplies and Services,304639,Equipment and Materials,05-Apr-2022,000010028594895,CAPITA GAS,8699,Technicians-supplies,168.00,0.00,168.00
Regeneration Economy and Growth,Business Durham CL0850,030671,Business Space 030671,Supplies and Services,304999,Equipment and Materials,05-Apr-2022,000010028595079,HOME BARGAINS,5251,Misc equipment tools and materials,11.10,0.00,11.10
Regeneration Economy and Growth,Business Durham CL0850,030671,Business Space 030671,Supplies and Services,324117,Provisions E324,05-Apr-2022,000010028595087,ASDA GEORGE COM LEEDS,5411,Catering costs - provisions,248.50,0.00,248.50
Children and Young Peoples Services,Head of Childrens Social Care,085351,Framwellgate Moor CU,Supplies and Services,352001,Conference Expenses,05-Apr-2022,000010028595139,Hotel at Booking.com,7011,Conferencesseminars fees etc,"1,729.60",0.00,1729.60
Children and Young Peoples Services,Head of Childrens Social Care,085351,Framwellgate Moor CU,Supplies and Services,304999,Equipment and Materials,05-Apr-2022,000010028595145,WWW.HCPROPERTYLTD.CO.U,6513,Misc equipment tools and materials,195.00,0.00,195.00
Children and Young Peoples Services,Head of Education and Skills,071802,Louisa Cent Nursery,Supplies and Services,324117,Provisions E324,05-Apr-2022,000010028595203,ASDA SUPERSTORE,5411,Catering costs - provisions,3.20,0.00,3.20
Children and Young Peoples Services,Head of Childrens Social Care,085614,Families First West Durham,Supplies and Services,364340,Grants to Voluntary Organisations,05-Apr-2022,000010028595281,WWW.GONORTHEAST.CO.UK,4111,Contact expenses,34.00,0.00,34.00
Children and Young Peoples Services,Head of Childrens Social Care,085614,Families First West Durham,Supplies and Services,364340,Grants to Voluntary Organisations,05-Apr-2022,000010028595287,WWW.GONORTHEAST.CO.UK,4111,Contact expenses,34.00,0.00,34.00
Children and Young Peoples Services,Head of Childrens Social Care,085332,Middlestone Moor CU,Transport,235057,Public Transport,05-Apr-2022,000010028595311,ARRIVA UK BUS,4131,Staff travelling,15.00,0.00,15.00
Regeneration Economy and Growth,Culture Sport and Tourism,011263,Louisa Centre 011263,Supplies and Services,304403,Equipment and Materials,05-Apr-2022,000010028595317,AMZNMKTPLACE AMAZON.CO,5999,Other consumables,59.99,10.00,49.99
Regeneration Economy and Growth,Culture Sport and Tourism,011263,Louisa Centre 011263,Supplies and Services,304403,Equipment and Materials,05-Apr-2022,000010028595325,AMZNMktplace,5999,Other consumables,89.88,14.98,74.90
Regeneration Economy and Growth,Culture Sport and Tourism,011263,Louisa Centre 011263,Supplies and Services,304403,Equipment and Materials,05-Apr-2022,000010028595325 - 1,AMZNMktplace,5999,Other consumables,0.06,,0.06
Regeneration Economy and Growth,Culture Sport and Tourism,054233,Bishop Auckland Town Hall Library,Supplies and Services,324117,Provisions E324,05-Apr-2022,000010028595335,WILKO RETAIL LIMITED,5399,Catering costs - provisions,10.00,0.00,10.00
Regeneration Economy and Growth,Culture Sport and Tourism,054233,Bishop Auckland Town Hall Library,Supplies and Services,324117,Provisions E324,05-Apr-2022,000010028595341,WILKO RETAIL LIMITED,5399,Catering costs - provisions,9.00,0.00,9.00
Regeneration Economy and Growth,Culture Sport and Tourism,054233,Bishop Auckland Town Hall Library,Supplies and Services,324117,Provisions E324,05-Apr-2022,000010028595345,HERON FOODS,5411,Catering costs - provisions,35.61,0.00,35.61
Regeneration Economy and Growth,Culture Sport and Tourism,054233,Bishop Auckland Town Hall Library,Supplies and Services,324117,Provisions E324,05-Apr-2022,000010028595351,HERON FOODS,5411,Catering costs - provisions,7.72,0.00,7.72
Regeneration Economy and Growth,Development and Housing,030776,LINKCD Flexible Fund,Supplies and Services,324117,Provisions E324,05-Apr-2022,000010028595525,ASDA STORES LTD,5411,Catering costs - provisions,3.10,0.00,3.10
Children and Young Peoples Services,Head of Childrens Social Care,085331,New Lea Childrens Home,Supplies and Services,324117,Provisions E324,05-Apr-2022,000010028595569,TESCO STORES 4347,5411,Catering costs - provisions,10.80,0.00,10.80
Children and Young Peoples Services,Head of Childrens Social Care,085334,West Rainton Satelite Home,Supplies and Services,372009,Subscriptions E372,05-Apr-2022,000010028595607,WOWCHER,7299,Subscriptions 372009,24.98,0.00,24.98
Children and Young Peoples Services,Head of Childrens Social Care,085334,West Rainton Satelite Home,Supplies and Services,324117,Provisions E324,05-Apr-2022,000010028595617,ASDA SUPERSTORE 4987,5411,Catering costs - provisions,60.30,0.00,60.30
Children and Young Peoples Services,Head of Childrens Social Care,085334,West Rainton Satelite Home,Supplies and Services,324117,Provisions E324,05-Apr-2022,000010028595623,TESCO STORES 2278,5411,Catering costs - provisions,7.00,0.00,7.00
Regeneration Economy and Growth,Communications Management,060270,Communications and Marketing,Supplies and Services,372009,Subscriptions E372,05-Apr-2022,000010028595643,LINKEDIN-749 6980483,7311,Subscriptions 372009,108.04,0.00,108.04
Neighbourhoods and Climate Change,Community Protection,011184,GRT,Supplies and Services,304403,Equipment and Materials,05-Apr-2022,000010028595649,AMZNMktplace,5999,Other consumables,15.98,2.66,13.32
Neighbourhoods and Climate Change,Community Protection,011184,GRT,Supplies and Services,304403,Equipment and Materials,05-Apr-2022,000010028595655,AMZNMktplace,5999,Other consumables,86.28,14.40,71.88
Adult and Health Services,Head of Adults,055310,Positive Journeys (Tudhoe),Supplies and Services,324117,Provisions E324,05-Apr-2022,000010028595661,ASDA SUPERSTORE 4987,5411,Catering costs - provisions,2.85,0.00,2.85
Regeneration Economy and Growth,Development and Housing,030735,Economic Development - Employability,Supplies and Services,304403,Equipment and Materials,05-Apr-2022,000010028595705,AMZNMktplace,5999,Other consumables,39.98,6.66,33.32
Regeneration Economy and Growth,Development and Housing,031634,LOCAL LETTINGS AGENCY,Employees,040149,Recruitment Instruction and Training,05-Apr-2022,000010028595713,HF RESOLUTION LTD,8999,Training-all costs,264.00,0.00,264.00
Regeneration Economy and Growth,Development and Housing,031634,LOCAL LETTINGS AGENCY,Supplies and Services,324117,Provisions E324,05-Apr-2022,000010028595719,PPOINT_ ELDON LANE CON,5499,Catering costs - provisions,10.00,0.00,10.00
Regeneration Economy and Growth,Development and Housing,031634,LOCAL LETTINGS AGENCY,Supplies and Services,324117,Provisions E324,05-Apr-2022,000010028595727,PPOINT_ ELDON LANE CON,5499,Catering costs - provisions,10.00,0.00,10.00
Regeneration Economy and Growth,Development and Housing,031634,LOCAL LETTINGS AGENCY,Supplies and Services,324117,Provisions E324,05-Apr-2022,000010028595731,PPOINT_ ELDON LANE CON,5499,Catering costs - provisions,10.00,0.00,10.00
Children and Young Peoples Services,Head of Early Help Inclusion & Vulnerable Children.,088113,Seaham & Laurel Avenue Family Centre,Supplies and Services,324117,Provisions E324,05-Apr-2022,000010028595769,ASDA STORES,5411,Catering costs - provisions,42.51,0.00,42.51
Regeneration Economy and Growth,Development and Housing,030771,Durham Advance Flexible Fund,Supplies and Services,304403,Equipment and Materials,05-Apr-2022,000010028595785,AMZNMktplace,5999,Other consumables,12.98,2.17,10.81
Regeneration Economy and Growth,Development and Housing,030771,Durham Advance Flexible Fund,Supplies and Services,304403,Equipment and Materials,05-Apr-2022,000010028595791,AMZNMktplace,5999,Other consumables,6.60,1.10,5.50
Regeneration Economy and Growth,Development and Housing,030771,Durham Advance Flexible Fund,Supplies and Services,304403,Equipment and Materials,05-Apr-2022,000010028595795,AMZNMktplace,5999,Other consumables,24.79,4.13,20.66
Resources BK0010,Procurement Sales & Business Services,065503,Business Support - Spectrum,Supplies and Services,304403,Equipment and Materials,05-Apr-2022,000010028595831,AMZNMktplace,5999,Other consumables,36.97,6.17,30.80
Regeneration Economy and Growth,Culture Sport and Tourism,054235,Bishop Auckland Town Hall Cafe,Supplies and Services,324117,Provisions E324,05-Apr-2022,000010028739673,JR HOLLAND FOODSERVICE,5499,Catering costs - provisions,519.15,0.00,519.15
Regeneration Economy and Growth,Corporate Property and Land,021234,Catering - Locomotion,Supplies and Services,384999,Miscellaneous Expenses,05-Apr-2022,000010028739681,ON A ROLL SANDWICH COM,5199,Other expenses,157.20,0.00,157.20
Regeneration Economy and Growth,Corporate Property and Land,021235,Catering - Wharton Park,Supplies and Services,384999,Miscellaneous Expenses,05-Apr-2022,000010028739689,ON A ROLL SANDWICH COM,5199,Other expenses,80.15,0.00,80.15
Regeneration Economy and Growth,Corporate Property and Land,021235,Catering - Wharton Park,Supplies and Services,324117,Provisions E324,05-Apr-2022,000010028739693,JR HOLLAND FOODSERVICE,5499,Catering costs - provisions,25.74,0.00,25.74
Regeneration Economy and Growth,Culture Sport and Tourism,011263,Louisa Centre 011263,Supplies and Services,324117,Provisions E324,05-Apr-2022,000010028739699,JR HOLLAND FOODSERVICE,5499,Catering costs - provisions,64.02,0.00,64.02
Regeneration Economy and Growth,Culture Sport and Tourism,054812,Gala Theatre - Catering etc,Supplies and Services,324117,Provisions E324,05-Apr-2022,000010028739713,JR HOLLAND FOODSERVICE,5499,Catering costs - provisions,10.99,0.00,10.99
Regeneration Economy and Growth,Culture Sport and Tourism,054812,Gala Theatre - Catering etc,Supplies and Services,324117,Provisions E324,05-Apr-2022,000010028739719,JR HOLLAND FOODSERVICE,5499,Catering costs - provisions,33.82,0.00,33.82
Regeneration Economy and Growth,Corporate Property and Land,021242,Catering - County Hall,Supplies and Services,324117,Provisions E324,05-Apr-2022,000010028739725,JR HOLLAND FOODSERVICE,5499,Catering costs - provisions,87.29,0.00,87.29
Children and Young Peoples Services,Head of Childrens Social Care,085332,Middlestone Moor CU,Supplies and Services,324117,Provisions E324,05-Apr-2022,000010033222685,SAINSBURYS S/MKTS,5411,Catering costs - provisions,6.00,0.00,6.00
Regeneration Economy and Growth,Development and Housing,030544,Rural Employability - Client Engagement,Transport,235057,Public Transport,05-Apr-2022,000010033222835,ACT TRADING LTD,7523,Staff travelling,0.60,0.00,0.60
Children and Young Peoples Services,Head of Childrens Social Care,085332,Middlestone Moor CU,Supplies and Services,348037,Subsistence E348,05-Apr-2022,000010033222873,MCDONALD`S,5812,Subsistence,2.58,0.00,2.58
Children and Young Peoples Services,Head of Childrens Social Care,085511,Emergency Duty Team,Supplies and Services,352001,Conference Expenses,05-Apr-2022,000010033222939,Roadchef Durham,7011,Conferencesseminars fees etc,55.00,0.00,55.00
Children and Young Peoples Services,Head of Childrens Social Care,085347,Solo Home The Manse,Supplies and Services,324117,Provisions E324,05-Apr-2022,000010033222963,CO-OP GROUP 310016,5411,Catering costs - provisions,20.19,0.00,20.19
Neighbourhoods and Climate Change,Environmental Services,011060,C&G - Hardwick Park Catering,Supplies and Services,304259,Equipment and Materials,05-Apr-2022,000010033223091,WWW.NISBETS.COM,5964,Equipment-purchase and rental,491.98,0.00,491.98
Children and Young Peoples Services,Head of Childrens Social Care,085364,Children Looked After Team 1,Supplies and Services,328041,Clothing uniforms and laundry E328,05-Apr-2022,000010033223219,ARGOS LTD,5310,Clothing uniforms and laundry,115.00,0.00,115.00
Neighbourhoods and Climate Change,Environmental Services,031228,North Pennines - Fellfoot Forward,Supplies and Services,324117,Provisions E324,05-Apr-2022,000010033223317,CO-OP GROUP FOOD,5411,Catering costs - provisions,6.00,0.00,6.00
Children and Young Peoples Services,Head of Childrens Social Care,085551,Short Break Services-Park Hse Sher,Supplies and Services,324117,Provisions E324,05-Apr-2022,000010033223433,ICELAND FOODS,5411,Catering costs - provisions,164.68,0.00,164.68
Regeneration Economy and Growth,Development and Housing,030776,LINKCD Flexible Fund,Transport,235057,Public Transport,05-Apr-2022,000010033223593,NEXUS TRAVEL SHOP,4131,Staff travelling,40.00,0.00,40.00
Resources BK0010,Procurement Sales & Business Services,069800,Corporate Procurement 069800,Employees,040149,Recruitment Instruction and Training,05-Apr-2022,000010033223603,WWW.CIPS.ORG,8699,Training-all costs,80.00,0.00,80.00
Neighbourhoods and Climate Change,Environmental Services,010301,C&G - North Grounds Maintenance,Supplies and Services,304221,Equipment and Materials,05-Apr-2022,000010033223855,BREWERS,5211,Direct materials,99.70,0.00,99.70
Children and Young Peoples Services,Head of Early Help Inclusion & Vulnerable Children.,088115,Young Parents Programme 088115,Supplies and Services,384302,Miscellaneous Expenses,05-Apr-2022,000010033223917,WWW.THEWORKS.CO.UK,5310,Activity expenses,49.00,0.00,49.00
Neighbourhoods and Climate Change,Environmental Services,011060,C&G - Hardwick Park Catering,Supplies and Services,324117,Provisions E324,05-Apr-2022,000010033359859,BATLEYS PERTH,5300,Catering costs - provisions,196.08,32.68,163.40
Neighbourhoods and Climate Change,Environmental Services,011060,C&G - Hardwick Park Catering,Supplies and Services,324117,Provisions E324,05-Apr-2022,000010033359859 - 1,BATLEYS PERTH,5300,Catering costs - provisions,150.19,,150.19
Regeneration Economy and Growth,Corporate Property and Land,021234,Catering - Locomotion,Supplies and Services,324117,Provisions E324,05-Apr-2022,000010033359867,BATLEYS PERTH,5300,Catering costs - provisions,217.02,36.17,180.85
Regeneration Economy and Growth,Corporate Property and Land,021234,Catering - Locomotion,Supplies and Services,324117,Provisions E324,05-Apr-2022,000010033359867 - 1,BATLEYS PERTH,5300,Catering costs - provisions,78.19,,78.19
Neighbourhoods and Climate Change,Environmental Services,026591,C&G - Hardwick Park,Supplies and Services,332047,Printing Stationery and Gen Off Exps,06-Apr-2022,000008078855566,WILKO.COM,5399,Stationery,-8.00,0.00,-8.00
Neighbourhoods and Climate Change,Environmental Services,026591,C&G - Hardwick Park,Supplies and Services,332047,Printing Stationery and Gen Off Exps,06-Apr-2022,000008086141966,WILKO.COM,5399,Stationery,-6.00,0.00,-6.00
Regeneration Economy and Growth,Development and Housing,030772,CLLD South,Supplies and Services,304403,Equipment and Materials,06-Apr-2022,000010028593805,AMZNMktplace,5999,Other consumables,13.78,0.00,13.78
Resources BK0010,Digital Services,065481,Technical Services 065481,Supplies and Services,372009,Subscriptions E372,06-Apr-2022,000010028594045,WEB NETWORKSOLUTIONS,5968,Subscriptions 372009,9.32,0.00,9.32
Children and Young Peoples Services,Head of Early Help Inclusion & Vulnerable Children.,085956,Lumley,Supplies and Services,384302,Miscellaneous Expenses,06-Apr-2022,000010028594331,AMZNMktplace,5999,Activity expenses,17.62,2.94,14.68
Children and Young Peoples Services,Head of Early Help Inclusion & Vulnerable Children.,085956,Lumley,Supplies and Services,384302,Miscellaneous Expenses,06-Apr-2022,000010028594335,AMZNMktplace,5999,Activity expenses,16.62,2.77,13.85
Regeneration Economy and Growth,Business Durham CL0850,030689,Inward Investment and Aftercare,Supplies and Services,342033,Computers and Communications,06-Apr-2022,000010033222515,STK Shutterstock,7333,Computer hardware,19.00,0.00,19.00
Children and Young Peoples Services,Head of Childrens Social Care,085611,Families First Stanley,Supplies and Services,304403,Equipment and Materials,06-Apr-2022,000010033222531,AMZNMktplace,5999,Other consumables,12.99,2.17,10.82
Children and Young Peoples Services,Head of Education and Skills,071801,Selby Cottage Childcare Centre,Supplies and Services,304999,Equipment and Materials,06-Apr-2022,000010033222541,Costco Wholesale #109,7278,Misc equipment tools and materials,17.48,0.00,17.48
Children and Young Peoples Services,Head of Education and Skills,071801,Selby Cottage Childcare Centre,Supplies and Services,324117,Provisions E324,06-Apr-2022,000010033222545,B&M 373 - GATESHEAD,5399,Catering costs - provisions,80.93,0.00,80.93
Children and Young Peoples Services,Head of Education and Skills,071801,Selby Cottage Childcare Centre,Supplies and Services,304999,Equipment and Materials,06-Apr-2022,000010033222547,HOME BARGAINS,5251,Misc equipment tools and materials,46.94,0.00,46.94
Children and Young Peoples Services,Head of Education and Skills,071801,Selby Cottage Childcare Centre,Supplies and Services,324117,Provisions E324,06-Apr-2022,000010033222557,ASDA GROCERIES ONLINE,5411,Catering costs - provisions,104.75,0.00,104.75
Children and Young Peoples Services,Head of Education and Skills,071801,Selby Cottage Childcare Centre,Supplies and Services,324117,Provisions E324,06-Apr-2022,000010033222559,ASDA GROCERIES ONLINE,5411,Catering costs - provisions,-29.90,0.00,-29.90
Regeneration Economy and Growth,Communications Management,060206,Comms & Marketing - City of Culture,Supplies and Services,372009,Subscriptions E372,06-Apr-2022,000010033222583,WWW.FLAGSANDFLAGPOLES.,2741,Subscriptions 372009,330.00,0.00,330.00
Children and Young Peoples Services,Head of Childrens Social Care - Excluded Services,085001,Durham Safeguarding Childrens Partnership,Supplies and Services,304999,Equipment and Materials,06-Apr-2022,000010033222585,PADDLE.NET SHAPEDPLUG,5817,Misc equipment tools and materials,21.35,0.00,21.35
Dedicated Schools Grant BG0015,DSG Schools Block,417611,Greenfield Community College 004176 - Technology,Supplies and Services,304403,Equipment and Materials,06-Apr-2022,000010033222605,AMZNMKTPLACE AMAZON.CO,5999,Other consumables,25.87,4.32,21.55
Regeneration Economy and Growth,Culture Sport and Tourism,054731,Killhope Lead Mining Centre,Supplies and Services,324117,Provisions E324,06-Apr-2022,000010033222649,AMZNMktplace,5999,Catering costs - provisions,3.98,0.66,3.32
Regeneration Economy and Growth,Culture Sport and Tourism,054820,Gala Theatre - Overheads,Supplies and Services,304252,Equipment and Materials,06-Apr-2022,000010033222653,AMZNBusiness 298JC6RF4,5999,Equipment-repairsserviceinsurance,15.09,2.52,12.57
Regeneration Economy and Growth,Culture Sport and Tourism,054820,Gala Theatre - Overheads,Supplies and Services,304252,Equipment and Materials,06-Apr-2022,000010033222657,AMZNMktplace,5999,Equipment-repairsserviceinsurance,21.98,3.66,18.32
Regeneration Economy and Growth,Culture Sport and Tourism,030712,VCD - Project Delivery,Supplies and Services,384199,Miscellaneous Expenses,06-Apr-2022,000010033222667,THE MAGIC CORNER,7929,Other hired and contracted services,40.00,0.00,40.00
Children and Young Peoples Services,Head of Childrens Social Care,085332,Middlestone Moor CU,Supplies and Services,324117,Provisions E324,06-Apr-2022,000010033222689,HOME BARGAINS SPENNYMO,5251,Catering costs - provisions,19.66,0.00,19.66
Children and Young Peoples Services,Head of Childrens Social Care,085332,Middlestone Moor CU,Supplies and Services,324117,Provisions E324,06-Apr-2022,000010033222695,ASDA SUPERSTORE 4987,5411,Catering costs - provisions,4.85,0.00,4.85
Children and Young Peoples Services,Head of Childrens Social Care,085332,Middlestone Moor CU,Supplies and Services,304999,Equipment and Materials,06-Apr-2022,000010033222699,ASDA SUPERSTORE 4987,5411,Misc equipment tools and materials,24.45,0.00,24.45
Children and Young Peoples Services,Head of Childrens Social Care,085332,Middlestone Moor CU,Supplies and Services,324117,Provisions E324,06-Apr-2022,000010033222703,ASDA SUPERSTORE 4987,5411,Catering costs - provisions,12.84,0.00,12.84
Children and Young Peoples Services,Head of Childrens Social Care,085332,Middlestone Moor CU,Supplies and Services,324117,Provisions E324,06-Apr-2022,000010033222705,TESCO STORES 2371,5411,Catering costs - provisions,188.90,0.00,188.90
Children and Young Peoples Services,Head of Childrens Social Care,085341,High Etherley Satelite Home,Supplies and Services,332047,Printing Stationery and Gen Off Exps,06-Apr-2022,000010033222731,WWW.RYMAN.CO.UK,5943,Stationery,28.90,0.00,28.90
Neighbourhoods and Climate Change,Environmental Services,010367,C&G - South Grounds Maintenance,Supplies and Services,304403,Equipment and Materials,06-Apr-2022,000010033222785,MAXWELLS DIY,5231,Other consumables,136.00,0.00,136.00
Children and Young Peoples Services,Head of Childrens Social Care,085331,New Lea Childrens Home,Supplies and Services,328041,Clothing uniforms and laundry E328,06-Apr-2022,000010033222805,Freedom Sportsline Ltd,5661,Clothing uniforms and laundry,99.99,0.00,99.99
Children and Young Peoples Services,Head of Childrens Social Care,085380,Operations Manager LAC Resources,Supplies and Services,342033,Computers and Communications,06-Apr-2022,000010033222845,SurveyMonkey,7372,Computer hardware,384.00,0.00,384.00
Children and Young Peoples Services,Head of Childrens Social Care,085380,Operations Manager LAC Resources,Supplies and Services,304403,Equipment and Materials,06-Apr-2022,000010033222849,AMZNMktplace,5999,Other consumables,44.97,7.50,37.47
Children and Young Peoples Services,Head of Childrens Social Care,085380,Operations Manager LAC Resources,Supplies and Services,304403,Equipment and Materials,06-Apr-2022,000010033222851,AMZNMktplace,5999,Other consumables,23.19,3.87,19.32
Regeneration Economy and Growth,Culture Sport and Tourism,054233,Bishop Auckland Town Hall Library,Supplies and Services,304403,Equipment and Materials,06-Apr-2022,000010033222857,AMZNBusiness 299JE6RX4,5999,Other consumables,22.65,3.78,18.87
Regeneration Economy and Growth,Culture Sport and Tourism,054233,Bishop Auckland Town Hall Library,Supplies and Services,304403,Equipment and Materials,06-Apr-2022,000010033222867,AMZNBusiness 299056R44,5999,Other consumables,90.60,15.12,75.48
Neighbourhoods and Climate Change,Environmental Services,010367,C&G - South Grounds Maintenance,Supplies and Services,304221,Equipment and Materials,06-Apr-2022,000010033222887,JT ATKINSON & SONS LTD,5211,Direct materials,22.87,0.00,22.87
Children and Young Peoples Services,Head of Early Help Inclusion & Vulnerable Children.,079599,Psychological-HQ,Employees,040149,Recruitment Instruction and Training,06-Apr-2022,000010033222909,emotioncoachinguk.com,8299,Training-all costs,375.00,0.00,375.00
Children and Young Peoples Services,Head of Early Help Inclusion & Vulnerable Children.,085957,Secure Management,Supplies and Services,304403,Equipment and Materials,06-Apr-2022,000010033222925,AMZNMktplace,5999,Other consumables,43.92,7.32,36.60
Children and Young Peoples Services,Head of Early Help Inclusion & Vulnerable Children.,085957,Secure Management,Supplies and Services,304403,Equipment and Materials,06-Apr-2022,000010033222925 - 1,AMZNMktplace,5999,Other consumables,0.04,,0.04
Children and Young Peoples Services,Head of Childrens Social Care,085511,Emergency Duty Team,Transport,235057,Public Transport,06-Apr-2022,000010033222943,CURB,4121,Staff travelling,43.00,0.00,43.00
Children and Young Peoples Services,Head of Childrens Social Care,085347,Solo Home The Manse,Supplies and Services,324117,Provisions E324,06-Apr-2022,000010033222969,B&M 740 SEAHAM,5399,Catering costs - provisions,14.97,0.00,14.97
Children and Young Peoples Services,Head of Childrens Social Care,085347,Solo Home The Manse,Supplies and Services,324117,Provisions E324,06-Apr-2022,000010033222971,WILKO RETAIL LIMITED,5399,Catering costs - provisions,28.10,0.00,28.10
Children and Young Peoples Services,Head of Childrens Social Care,085347,Solo Home The Manse,Supplies and Services,324117,Provisions E324,06-Apr-2022,000010033222977,ASDA SUPERSTORE,5411,Catering costs - provisions,32.04,0.00,32.04
Children and Young Peoples Services,Head of Childrens Social Care,085347,Solo Home The Manse,Supplies and Services,348037,Subsistence E348,06-Apr-2022,000010033222981,Lickety Split Creamery,5812,Subsistence,11.55,0.00,11.55
Children and Young Peoples Services,Head of Education and Skills,071732,Dean Bank Childcare,Supplies and Services,324117,Provisions E324,06-Apr-2022,000010033223061,ASDA GROCERIES ONLINE,5411,Catering costs - provisions,40.00,0.00,40.00
Children and Young Peoples Services,Head of Education and Skills,071732,Dean Bank Childcare,Supplies and Services,324117,Provisions E324,06-Apr-2022,000010033223067,ASDA GROCERIES ONLINE,5411,Catering costs - provisions,17.69,0.00,17.69
Children and Young Peoples Services,Head of Education and Skills,071732,Dean Bank Childcare,Supplies and Services,324117,Provisions E324,06-Apr-2022,000010033223071,ASDA SUPERSTORE 4987,5411,Catering costs - provisions,77.28,0.00,77.28
Neighbourhoods and Climate Change,Environmental Services,011060,C&G - Hardwick Park Catering,Supplies and Services,304259,Equipment and Materials,06-Apr-2022,000010033223095,BHMA.CO.UK,5399,Equipment-purchase and rental,111.54,0.00,111.54
Neighbourhoods and Climate Change,Environmental Services,026591,C&G - Hardwick Park,Supplies and Services,332047,Printing Stationery and Gen Off Exps,06-Apr-2022,000010033223099,WILKO.COM,5399,Stationery,14.00,0.00,14.00
Children and Young Peoples Services,Head of Childrens Social Care,085341,High Etherley Satelite Home,Supplies and Services,324117,Provisions E324,06-Apr-2022,000010033223107,SCOTMID CO-OP STANHOPE,5411,Catering costs - provisions,35.54,0.00,35.54
Regeneration Economy and Growth,Development and Housing,031623,Rough Sleeping,Transport,235057,Public Transport,06-Apr-2022,000010033223189,GO NORTH EAST LIMITED,4131,Staff travelling,30.00,0.00,30.00
Children and Young Peoples Services,Head of Early Help Inclusion & Vulnerable Children.,085954,Walworth,Supplies and Services,312009,Newspapers books and periodicals E312,06-Apr-2022,000010033223229,AMZNMktplace,5999,Newspapers books and periodicals,4.99,0.00,4.99
Children and Young Peoples Services,Head of Early Help Inclusion & Vulnerable Children.,085956,Lumley,Supplies and Services,308011,Furniture,06-Apr-2022,000010033223233,AMZNMKTPLACE AMAZON.CO,5999,Furniture repair and replacement,10.05,1.68,8.37
Children and Young Peoples Services,Head of Early Help Inclusion & Vulnerable Children.,085956,Lumley,Supplies and Services,308011,Furniture,06-Apr-2022,000010033223235,AMZNMktplace,5999,Furniture repair and replacement,27.99,4.67,23.32
Children and Young Peoples Services,Head of Early Help Inclusion & Vulnerable Children.,085956,Lumley,Supplies and Services,384302,Miscellaneous Expenses,06-Apr-2022,000010033223237,AMZNMktplace,5999,Activity expenses,6.16,1.03,5.13
Children and Young Peoples Services,Head of Early Help Inclusion & Vulnerable Children.,085962,Aycliffe Secure - Durham,Transfer Payments,515002,Social Services Clients,06-Apr-2022,000010033223243,AMZNMktplace,5999,Pocket money,7.86,1.31,6.55
Children and Young Peoples Services,Head of Early Help Inclusion & Vulnerable Children.,085956,Lumley,Transfer Payments,515002,Social Services Clients,06-Apr-2022,000010033223247,SHEIN.COM,5399,Pocket money,34.47,0.00,34.47
Children and Young Peoples Services,Head of Early Help Inclusion & Vulnerable Children.,085956,Lumley,Supplies and Services,308011,Furniture,06-Apr-2022,000010033223249,WAYFAIR UK3729908394,5712,Furniture repair and replacement,145.98,0.00,145.98
Children and Young Peoples Services,Head of Early Help Inclusion & Vulnerable Children.,085954,Walworth,Transfer Payments,515002,Social Services Clients,06-Apr-2022,000010033223255,BOOHOO.COM,5691,Pocket money,84.19,0.00,84.19
Children and Young Peoples Services,Head of Early Help Inclusion & Vulnerable Children.,085962,Aycliffe Secure - Durham,Supplies and Services,324117,Provisions E324,06-Apr-2022,000010033223257,TESCO STORES 6329,5411,Catering costs - provisions,54.13,0.00,54.13
Neighbourhoods and Climate Change,Environmental Services,010367,C&G - South Grounds Maintenance,Supplies and Services,304999,Equipment and Materials,06-Apr-2022,000010033223309,GUSTHARTS,5072,Misc equipment tools and materials,227.46,0.00,227.46
Children and Young Peoples Services,Head of Education and Skills,078561,DurhamEnable,Supplies and Services,384199,Miscellaneous Expenses,06-Apr-2022,000010033223343,EB DURHAM PRIDE 2022,7399,Other hired and contracted services,14.12,0.00,14.12
Children and Young Peoples Services,Head of Education and Skills,078554,Adult Skills-Main,Supplies and Services,384199,Miscellaneous Expenses,06-Apr-2022,000010033223347,EB DURHAM PRIDE 2022,7399,Other hired and contracted services,28.24,0.00,28.24
Regeneration Economy and Growth,Transport and Contracted Services,024611,Strategic Highways - Road Safety ETP 024611,Supplies and Services,304259,Equipment and Materials,06-Apr-2022,000010033223355,HALFORDS 0550,5940,Equipment-purchase and rental,74.49,0.00,74.49
Children and Young Peoples Services,Head of Childrens Social Care,085621,Families First Newton Aycliffe and Shildon,Supplies and Services,304403,Equipment and Materials,06-Apr-2022,000010033223377,AMZNBusiness 294YA0R74,5999,Other consumables,74.80,0.00,74.80
Children and Young Peoples Services,Head of Childrens Social Care,085621,Families First Newton Aycliffe and Shildon,Supplies and Services,304403,Equipment and Materials,06-Apr-2022,000010033223381,AMZNBusiness 295AO3RG4,5999,Other consumables,17.99,0.00,17.99
Regeneration Economy and Growth,Development and Housing,030771,Durham Advance Flexible Fund,Supplies and Services,304403,Equipment and Materials,06-Apr-2022,000010033223425,AMZNMktplace,5999,Other consumables,50.89,0.00,50.89
Children and Young Peoples Services,Head of Childrens Social Care,085551,Short Break Services-Park Hse Sher,Supplies and Services,324117,Provisions E324,06-Apr-2022,000010033223439,TESCO STORES 2371,5411,Catering costs - provisions,83.82,0.00,83.82
Children and Young Peoples Services,Head of Childrens Social Care,085551,Short Break Services-Park Hse Sher,Supplies and Services,304259,Equipment and Materials,06-Apr-2022,000010033223445,CURRYS DURHAM RET PK,5732,Equipment-purchase and rental,12.99,0.00,12.99
Children and Young Peoples Services,Head of Early Help Inclusion & Vulnerable Children.,088109,Dean Bank and Tudhoe Family Centre,Supplies and Services,384302,Miscellaneous Expenses,06-Apr-2022,000010033223481,POUNDSTRETCHER 692,5331,Activity expenses,10.97,0.00,10.97
Children and Young Peoples Services,Head of Early Help Inclusion & Vulnerable Children.,088108,Spennymoor & Shildon Intensive Family Support Team,Supplies and Services,384302,Miscellaneous Expenses,06-Apr-2022,000010033223485,WILKO RETAIL LIMITED,5399,Activity expenses,3.60,0.00,3.60
Children and Young Peoples Services,Head of Childrens Social Care,085365,Children Looked After Team 2,Supplies and Services,338045,Services,06-Apr-2022,000010033223487,HM PASSPORT OFFICE,9399,Legal expenses 338045,49.00,0.00,49.00
Children and Young Peoples Services,Head of Childrens Social Care,085365,Children Looked After Team 2,Supplies and Services,338045,Services,06-Apr-2022,000010033223491,HM PASSPORT OFFICE,9399,Legal expenses 338045,49.00,0.00,49.00
Children and Young Peoples Services,Head of Childrens Social Care,085364,Children Looked After Team 1,Supplies and Services,384302,Miscellaneous Expenses,06-Apr-2022,000010033223493,HM PASSPORT OFFICE,9399,Activity expenses,75.50,0.00,75.50
Children and Young Peoples Services,Head of Early Help Inclusion & Vulnerable Children.,088108,Spennymoor & Shildon Intensive Family Support Team,Supplies and Services,384302,Miscellaneous Expenses,06-Apr-2022,000010033223497,HOME BARGAINS,5251,Activity expenses,38.01,0.00,38.01
Children and Young Peoples Services,Head of Early Help Inclusion & Vulnerable Children.,088109,Dean Bank and Tudhoe Family Centre,Supplies and Services,384302,Miscellaneous Expenses,06-Apr-2022,000010033223501,HOME BARGAINS,5251,Activity expenses,30.78,0.00,30.78
Neighbourhoods and Climate Change,Environmental Services,010367,C&G - South Grounds Maintenance,Supplies and Services,304999,Equipment and Materials,06-Apr-2022,000010033223515,RICKERBY,5251,Misc equipment tools and materials,95.75,0.00,95.75
Adult and Health Services,Head of Adults,055643,Hawthorn House LD Respite Unit,Supplies and Services,304403,Equipment and Materials,06-Apr-2022,000010033223555,AMZNMktplace,5999,Other consumables,31.94,5.32,26.62
Adult and Health Services,Head of Adults,055643,Hawthorn House LD Respite Unit,Supplies and Services,304999,Equipment and Materials,06-Apr-2022,000010033223559,"BOOTS, 6551",5912,Misc equipment tools and materials,6.00,0.00,6.00
Resources BK0010,Procurement Sales & Business Services,069800,Corporate Procurement 069800,Supplies and Services,342053,Computers and Communications,06-Apr-2022,000010033223605,DIGITAL ID,5045,Computer software,70.72,0.00,70.72
Resources BK0010,Procurement Sales & Business Services,065503,Business Support - Spectrum,Transport,235057,Public Transport,06-Apr-2022,000010033223659,thetrainline.com,4112,Staff travelling,65.27,0.00,65.27
Neighbourhoods and Climate Change,Environmental Services,031200,North Pennines Core,Transport,235057,Public Transport,06-Apr-2022,000010033223671,Weardale Motor Service,4111,Staff travelling,80.00,0.00,80.00
Children and Young Peoples Services,Head of Education and Skills,070264,EDC Premises,Supplies and Services,304403,Equipment and Materials,06-Apr-2022,000010033223703,H.G. Stephenson Ltd,5999,Other consumables,174.66,0.00,174.66
Children and Young Peoples Services,Head of Early Help Inclusion & Vulnerable Children.,088115,Young Parents Programme 088115,Supplies and Services,384302,Miscellaneous Expenses,06-Apr-2022,000010033223725,AMZNMktplace,5999,Activity expenses,21.49,3.58,17.91
Children and Young Peoples Services,Head of Early Help Inclusion & Vulnerable Children.,088103,Stanley & Moorside Family Centre,Supplies and Services,384302,Miscellaneous Expenses,06-Apr-2022,000010033223731,AMZNMktplace,5999,Activity expenses,54.90,9.15,45.75
Children and Young Peoples Services,Head of Early Help Inclusion & Vulnerable Children.,088115,Young Parents Programme 088115,Supplies and Services,384302,Miscellaneous Expenses,06-Apr-2022,000010033223731 - 1,AMZNMktplace,5999,Activity expenses,0.30,,0.30
Children and Young Peoples Services,Head of Early Help Inclusion & Vulnerable Children.,088103,Stanley & Moorside Family Centre,Supplies and Services,384302,Miscellaneous Expenses,06-Apr-2022,000010033223733,AMZNMktplace,5999,Activity expenses,59.90,10.00,49.90
Children and Young Peoples Services,Head of Early Help Inclusion & Vulnerable Children.,088103,Stanley & Moorside Family Centre,Supplies and Services,384302,Miscellaneous Expenses,06-Apr-2022,000010033223735,AMZNMktplace,5999,Activity expenses,87.96,14.68,73.28
Children and Young Peoples Services,Head of Early Help Inclusion & Vulnerable Children.,088103,Stanley & Moorside Family Centre,Supplies and Services,384302,Miscellaneous Expenses,06-Apr-2022,000010033223741,HOME BARGAINS,5251,Activity expenses,25.50,0.00,25.50
Children and Young Peoples Services,Head of Early Help Inclusion & Vulnerable Children.,088103,Stanley & Moorside Family Centre,Supplies and Services,384302,Miscellaneous Expenses,06-Apr-2022,000010033223745,AMZNMktplace,5999,Activity expenses,21.96,3.66,18.30
Children and Young Peoples Services,Head of Early Help Inclusion & Vulnerable Children.,088115,Young Parents Programme 088115,Supplies and Services,384302,Miscellaneous Expenses,06-Apr-2022,000010033223751,AMZNMktplace,5999,Activity expenses,13.98,2.34,11.64
Children and Young Peoples Services,Head of Early Help Inclusion & Vulnerable Children.,088103,Stanley & Moorside Family Centre,Supplies and Services,384302,Miscellaneous Expenses,06-Apr-2022,000010033223753,AMZNMktplace,5999,Activity expenses,149.90,25.00,124.90
Children and Young Peoples Services,Head of Early Help Inclusion & Vulnerable Children.,088115,Young Parents Programme 088115,Supplies and Services,384302,Miscellaneous Expenses,06-Apr-2022,000010033223755,AMZNMktplace,5999,Activity expenses,83.94,14.02,69.92
Resources BK0010,Digital Services,065323,Operations - Installations,Supplies and Services,304639,Equipment and Materials,06-Apr-2022,000010033223769,Connect Distribution S,5722,Technicians-supplies,41.97,0.00,41.97
Resources BK0010,Digital Services,065335,School Services - Implementations,Supplies and Services,304639,Equipment and Materials,06-Apr-2022,000010033223775,REPLACEBASE,5732,Technicians-supplies,125.26,0.00,125.26
Children and Young Peoples Services,Head of Early Help Inclusion & Vulnerable Children.,085957,Secure Management,Premises,108099,Service Repairs and Maintenance,06-Apr-2022,000010033223801,AMZNMKTPLACE AMAZON.CO,5999,General repairs 108099,11.72,1.96,9.76
Children and Young Peoples Services,Head of Early Help Inclusion & Vulnerable Children.,085957,Secure Management,Premises,108251,Service Repairs and Maintenance,06-Apr-2022,000010033223805,FAST KEY SERVICES LIMI,7399,Alarm and security maintenance,7.48,0.00,7.48
Children and Young Peoples Services,Head of Early Help Inclusion & Vulnerable Children.,085961,Themed Week Activity,Supplies and Services,384302,Miscellaneous Expenses,06-Apr-2022,000010033223809,SMJ FALCONRY & CRAFTS,7399,Activity expenses,474.00,0.00,474.00
Neighbourhoods and Climate Change,Environmental Services,010367,C&G - South Grounds Maintenance,Supplies and Services,308011,Furniture,06-Apr-2022,000010033223845,DIRECT CARPETS,5713,Furniture repair and replacement,5.00,0.00,5.00
Neighbourhoods and Climate Change,Environmental Services,010301,C&G - North Grounds Maintenance,Third Party Payments,430100,Rendered by Private Contractors,06-Apr-2022,000010033223849,WILLOWCRETE MAN,5039,Payments to sub-contractors,324.00,0.00,324.00
Regeneration Economy and Growth,Business Durham CL0850,030671,Business Space 030671,Supplies and Services,324117,Provisions E324,06-Apr-2022,000010033223863,ASDA GEORGE COM LEEDS,5411,Catering costs - provisions,-4.50,0.00,-4.50
Children and Young Peoples Services,Head of Education and Skills,071802,Louisa Cent Nursery,Supplies and Services,324117,Provisions E324,06-Apr-2022,000010033223905,ASDA SUPERSTORE,5411,Catering costs - provisions,4.93,0.00,4.93
Children and Young Peoples Services,Head of Early Help Inclusion & Vulnerable Children.,088115,Young Parents Programme 088115,Supplies and Services,384302,Miscellaneous Expenses,06-Apr-2022,000010033223919,AMZNMKTPLACE AMAZON.CO,5999,Activity expenses,64.98,10.83,54.15
Children and Young Peoples Services,Head of Early Help Inclusion & Vulnerable Children.,088115,Young Parents Programme 088115,Supplies and Services,384302,Miscellaneous Expenses,06-Apr-2022,000010033223923,AMZNMKTPLACE AMAZON.CO,5999,Activity expenses,86.64,14.44,72.20
Children and Young Peoples Services,Head of Early Help Inclusion & Vulnerable Children.,088115,Young Parents Programme 088115,Supplies and Services,384302,Miscellaneous Expenses,06-Apr-2022,000010033223927,AMZNMKTPLACE AMAZON.CO,5999,Activity expenses,26.81,4.48,22.33
Neighbourhoods and Climate Change,Community Protection,011184,GRT,Supplies and Services,304403,Equipment and Materials,06-Apr-2022,000010033224023,AMZNMktplace,5999,Other consumables,52.72,8.80,43.92
Neighbourhoods and Climate Change,Community Protection,011184,GRT,Supplies and Services,304403,Equipment and Materials,06-Apr-2022,000010033224029,AMZNMktplace,5999,Other consumables,32.95,5.50,27.45
Neighbourhoods and Climate Change,Environmental Services,031200,North Pennines Core,Premises,120037,Energy Costs,06-Apr-2022,000010033224093,GRAHAMS LOGS,5983,Other fuels,80.00,0.00,80.00
Regeneration Economy and Growth,Development and Housing,030771,Durham Advance Flexible Fund,Supplies and Services,304403,Equipment and Materials,06-Apr-2022,000010033224109,AMZNMktplace,5999,Other consumables,61.98,10.33,51.65
Children and Young Peoples Services,Head of Early Help Inclusion & Vulnerable Children.,088101,Bullion Lane & Brandon Family Centre,Supplies and Services,384999,Miscellaneous Expenses,06-Apr-2022,000010033224113,BAKER ROSS,5970,Other expenses,308.91,0.00,308.91
Regeneration Economy and Growth,Development and Housing,030770,Durham Advance,Supplies and Services,304259,Equipment and Materials,06-Apr-2022,000010033224155,CITY OF NEWCASTLE INTE,9399,Equipment-purchase and rental,11.00,0.00,11.00
Resources BK0010,Procurement Sales & Business Services,065503,Business Support - Spectrum,Supplies and Services,304403,Equipment and Materials,06-Apr-2022,000010033224159,AMZNMktplace,5999,Other consumables,21.93,3.66,18.27
Resources BK0010,Procurement Sales & Business Services,065503,Business Support - Spectrum,Supplies and Services,304403,Equipment and Materials,06-Apr-2022,000010033224165,AMZNBUSINESS 292X81IK4,5999,Other consumables,21.16,0.00,21.16
Resources BK0010,Procurement Sales & Business Services,065503,Business Support - Spectrum,Supplies and Services,304403,Equipment and Materials,06-Apr-2022,000010033224167,AMZNBusiness 299A24IJ4,5999,Other consumables,12.29,0.00,12.29
Resources BK0010,Procurement Sales & Business Services,065503,Business Support - Spectrum,Supplies and Services,304403,Equipment and Materials,06-Apr-2022,000010033224171,AMZNMktplace,5999,Other consumables,8.99,1.50,7.49
Regeneration Economy and Growth,Corporate Property and Land,010525,Catering - Green Lane,Supplies and Services,324117,Provisions E324,06-Apr-2022,000010033359811,JR HOLLAND FOODSERVICE,5499,Catering costs - provisions,36.60,0.00,36.60
Regeneration Economy and Growth,Corporate Property and Land,011296,Catering - Crimdon Dene Hub,Supplies and Services,324117,Provisions E324,06-Apr-2022,000010033359819,JR HOLLAND FOODSERVICE,5499,Catering costs - provisions,56.75,0.00,56.75
Regeneration Economy and Growth,Corporate Property and Land,011296,Catering - Crimdon Dene Hub,Supplies and Services,324117,Provisions E324,06-Apr-2022,000010033359827,JR HOLLAND FOODSERVICE,5499,Catering costs - provisions,-6.80,0.00,-6.80
Regeneration Economy and Growth,Corporate Property and Land,030691,Catering - Durham Dales Centre,Supplies and Services,324117,Provisions E324,06-Apr-2022,000010033359833,JR HOLLAND FOODSERVICE,5499,Catering costs - provisions,165.62,0.00,165.62
Regeneration Economy and Growth,Culture Sport and Tourism,054235,Bishop Auckland Town Hall Cafe,Supplies and Services,324117,Provisions E324,06-Apr-2022,000010033359839,JR HOLLAND FOODSERVICE,5499,Catering costs - provisions,-32.80,0.00,-32.80
Adult and Health Services,Head of Adults,055643,Hawthorn House LD Respite Unit,Supplies and Services,324117,Provisions E324,06-Apr-2022,000010033359847,JR HOLLAND FOODSERVICE,5499,Catering costs - provisions,3.94,0.00,3.94
Adult and Health Services,Head of Adults,055643,Hawthorn House LD Respite Unit,Supplies and Services,324117,Provisions E324,06-Apr-2022,000010033359851,JR HOLLAND FOODSERVICE,5499,Catering costs - provisions,12.27,0.00,12.27
Adult and Health Services,Head of Adults,055643,Hawthorn House LD Respite Unit,Supplies and Services,324117,Provisions E324,06-Apr-2022,000010033359855,JR HOLLAND FOODSERVICE,5499,Catering costs - provisions,10.63,0.00,10.63
Regeneration Economy and Growth,Corporate Property and Land,021234,Catering - Locomotion,Supplies and Services,324117,Provisions E324,06-Apr-2022,000010033359875,JR HOLLAND FOODSERVICE,5499,Catering costs - provisions,37.47,0.00,37.47
Regeneration Economy and Growth,Culture Sport and Tourism,011263,Louisa Centre 011263,Supplies and Services,324117,Provisions E324,06-Apr-2022,000010033359879,JR HOLLAND FOODSERVICE,5499,Catering costs - provisions,16.40,0.00,16.40
Regeneration Economy and Growth,Corporate Property and Land,021242,Catering - County Hall,Supplies and Services,324117,Provisions E324,06-Apr-2022,000010033359885,JR HOLLAND FOODSERVICE,5499,Catering costs - provisions,16.93,0.00,16.93
Regeneration Economy and Growth,Corporate Property and Land,021242,Catering - County Hall,Supplies and Services,324117,Provisions E324,06-Apr-2022,000010033359889,JR HOLLAND FOODSERVICE,5499,Catering costs - provisions,58.60,0.00,58.60
Children and Young Peoples Services,Head of Education and Skills,071801,Selby Cottage Childcare Centre,Supplies and Services,304403,Equipment and Materials,06-Apr-2022,000010038149245,AMZNMKTPLACE AMAZON.CO,5999,Other consumables,31.26,5.21,26.05
Children and Young Peoples Services,Head of Education and Skills,071801,Selby Cottage Childcare Centre,Supplies and Services,304403,Equipment and Materials,06-Apr-2022,000010038149245 - 1,AMZNMKTPLACE AMAZON.CO,5999,Other consumables,0.03,,0.03
Dedicated Schools Grant BG0015,DSG Schools Block,417611,Greenfield Community College 004176 - Technology,Supplies and Services,304403,Equipment and Materials,06-Apr-2022,000010038149347,AMZNMKTPLACE AMAZON.CO,5999,Other consumables,17.18,2.86,14.32
Neighbourhoods and Climate Change,Environmental Services,031202,North Pennines - Peatscapes,Supplies and Services,372009,Subscriptions E372,06-Apr-2022,000010038149517,CUMBRIA COUNTY COU,7375,Subscriptions 372009,84.00,0.00,84.00
Regeneration Economy and Growth,Development and Housing,030776,LINKCD Flexible Fund,Supplies and Services,304259,Equipment and Materials,06-Apr-2022,000010038149543,WWW.DURHAM.GOV.UK,9399,Equipment-purchase and rental,11.00,0.00,11.00
Regeneration Economy and Growth,Development and Housing,030772,CLLD South,Supplies and Services,304403,Equipment and Materials,06-Apr-2022,000010038149641,AMZNBUSINESS 297300RL4,5999,Other consumables,25.99,4.33,21.66
Children and Young Peoples Services,Head of Childrens Social Care,085347,Solo Home The Manse,Supplies and Services,308011,Furniture,06-Apr-2022,000010038149661,The Range,5719,Furniture repair and replacement,33.41,0.00,33.41
Children and Young Peoples Services,Head of Childrens Social Care,085347,Solo Home The Manse,Supplies and Services,308011,Furniture,06-Apr-2022,000010038149669,The Range,5719,Furniture repair and replacement,17.11,0.00,17.11
Children and Young Peoples Services,Head of Early Help Inclusion & Vulnerable Children.,085962,Aycliffe Secure - Durham,Supplies and Services,304403,Equipment and Materials,06-Apr-2022,000010038149833,AMZNMKTPLACE AMAZON.CO,5999,Other consumables,28.79,4.80,23.99
Children and Young Peoples Services,Head of Early Help Inclusion & Vulnerable Children.,085957,Secure Management,Supplies and Services,328041,Clothing uniforms and laundry E328,06-Apr-2022,000010038149919,AMZNMKTPLACE AMAZON.CO,5999,Clothing uniforms and laundry,14.40,2.40,12.00
Children and Young Peoples Services,Head of Early Help Inclusion & Vulnerable Children.,085957,Secure Management,Supplies and Services,328041,Clothing uniforms and laundry E328,06-Apr-2022,000010038149919 - 1,AMZNMKTPLACE AMAZON.CO,5999,Clothing uniforms and laundry,0.05,,0.05
Children and Young Peoples Services,Head of Education and Skills,070169,Durham SSP,Supplies and Services,384999,Miscellaneous Expenses,06-Apr-2022,000010038149967,FINDEL EDUCATION,5969,Other expenses,424.62,70.77,353.85
Children and Young Peoples Services,Head of Education and Skills,075035,DurhamDirections Re-engagement,Supplies and Services,364301,Grants to Voluntary Organisations,06-Apr-2022,000010038149981,WWW.DURHAM.GOV.UK,9399,Hardship,11.00,0.00,11.00
Children and Young Peoples Services,Head of Childrens Social Care,085551,Short Break Services-Park Hse Sher,Supplies and Services,324117,Provisions E324,06-Apr-2022,000010038150039,ALDI 59 774,5411,Catering costs - provisions,74.85,0.00,74.85
Children and Young Peoples Services,Head of Childrens Social Care,085366,Children Looked After Team 3,Supplies and Services,384302,Miscellaneous Expenses,06-Apr-2022,000010038150091,GEN REGISTER OFFICE,9399,Activity expenses,22.00,0.00,22.00
Adult and Health Services,Head of Adults,055643,Hawthorn House LD Respite Unit,Supplies and Services,324117,Provisions E324,06-Apr-2022,000010038150145,SAINSBURYS S/MKTS,5411,Catering costs - provisions,29.15,0.00,29.15
Children and Young Peoples Services,Head of Early Help Inclusion & Vulnerable Children.,088103,Stanley & Moorside Family Centre,Supplies and Services,384302,Miscellaneous Expenses,06-Apr-2022,000010038150269,HALL HILL FARM ENTERPR,7929,Activity expenses,122.35,0.00,122.35
Children and Young Peoples Services,Head of Early Help Inclusion & Vulnerable Children.,085957,Secure Management,Premises,108099,Service Repairs and Maintenance,06-Apr-2022,000010038150363,WWW.SCREWFIX.COM,5211,General repairs 108099,61.76,0.00,61.76
Children and Young Peoples Services,Head of Early Help Inclusion & Vulnerable Children.,088115,Young Parents Programme 088115,Supplies and Services,384302,Miscellaneous Expenses,06-Apr-2022,000010038150485,AMZNMKTPLACE AMAZON.CO,5999,Activity expenses,10.20,1.70,8.50
Children and Young Peoples Services,Head of Early Help Inclusion & Vulnerable Children.,085962,Aycliffe Secure - Durham,Supplies and Services,324117,Provisions E324,06-Apr-2022,000010038150537,SAINSBURYS S/MKTS,5411,Catering costs - provisions,45.83,0.00,45.83
Adult and Health Services,Head of Adults,052229,Countywide AMHP Team,Supplies and Services,338048,Services,06-Apr-2022,000010038150607,HMCTS GRIMSBY&SCUNTHOR,9222,Court costs 338048,81.00,0.00,81.00
Regeneration Economy and Growth,Development and Housing,031634,LOCAL LETTINGS AGENCY,Supplies and Services,304221,Equipment and Materials,06-Apr-2022,000010038150649,B & Q 1120,5200,Direct materials,32.85,0.00,32.85
Resources BK0010,Procurement Sales & Business Services,065503,Business Support - Spectrum,Supplies and Services,304403,Equipment and Materials,06-Apr-2022,000010038150787,AMZNBUSINESS 299A27RK4,5999,Other consumables,13.93,0.00,13.93
Regeneration Economy and Growth,Business Durham CL0850,030689,Inward Investment and Aftercare,Supplies and Services,342222,Computers and Communications,07-Apr-2022,000008078854788,FASTHOSTS,4816,Comp hardware purch-network servers,6.34,0.00,6.34
Children and Young Peoples Services,Head of Childrens Social Care,085611,Families First Stanley,Supplies and Services,304259,Equipment and Materials,07-Apr-2022,000008078854808,Durham County CNCL,9399,Equipment-purchase and rental,11.00,0.00,11.00
Regeneration Economy and Growth,Culture Sport and Tourism,030705,Visit County Durham 030705,Supplies and Services,304259,Equipment and Materials,07-Apr-2022,000008078854970,FASTHOSTS,4816,Equipment-purchase and rental,6.34,1.06,5.28
Children and Young Peoples Services,Head of Childrens Social Care,085334,West Rainton Satelite Home,Supplies and Services,304259,Equipment and Materials,07-Apr-2022,000008078855056,SPENNYMOOR LEISURE,9399,Equipment-purchase and rental,11.00,0.00,11.00
Children and Young Peoples Services,Head of Early Help Inclusion & Vulnerable Children.,071569,Woodhouse Close Childrens Centre,Supplies and Services,304259,Equipment and Materials,07-Apr-2022,000008078855240,AMZNMKTPLACE AMAZON.CO,5999,Equipment-purchase and rental,12.98,2.16,10.82
Children and Young Peoples Services,Head of Early Help Inclusion & Vulnerable Children.,079599,Psychological-HQ,Supplies and Services,304403,Equipment and Materials,07-Apr-2022,000008078855310,AMZNBUSINESS 2E8A66CK4,5999,Other consumables,39.98,0.00,39.98
Regeneration Economy and Growth,Corporate Property and Land,021242,Catering - County Hall,Supplies and Services,324117,Provisions E324,07-Apr-2022,000008078855350,SAINSBURYS LOCAL,5411,Catering costs - provisions,8.00,0.00,8.00
Children and Young Peoples Services,Head of Childrens Social Care,085511,Emergency Duty Team,Supplies and Services,352001,Conference Expenses,07-Apr-2022,000008078855358,Roadchef Durham,7011,Conferencesseminars fees etc,49.00,0.00,49.00
Children and Young Peoples Services,Head of Childrens Social Care,085358,Orchard House Sacriston Solo Home,Supplies and Services,328041,Clothing uniforms and laundry E328,07-Apr-2022,000008078855452,POUNDLAND LTD,5310,Clothing uniforms and laundry,4.00,0.00,4.00
Children and Young Peoples Services,Head of Childrens Social Care,085358,Orchard House Sacriston Solo Home,Supplies and Services,324117,Provisions E324,07-Apr-2022,000008078855456,SAINSBURYS S/MKTS,5411,Catering costs - provisions,14.03,0.00,14.03
Neighbourhoods and Climate Change,Environmental Services,026591,C&G - Hardwick Park,Supplies and Services,332047,Printing Stationery and Gen Off Exps,07-Apr-2022,000008078855550,AMZNMKTPLACE AMAZON.CO,5999,Stationery,39.94,6.66,33.28
Neighbourhoods and Climate Change,Environmental Services,010314,Nei.Prot - Bereavement Services,Supplies and Services,304259,Equipment and Materials,07-Apr-2022,000008078855572,Durham County CNCL,9399,Equipment-purchase and rental,11.00,0.00,11.00
Neighbourhoods and Climate Change,Environmental Services,010314,Nei.Prot - Bereavement Services,Supplies and Services,304259,Equipment and Materials,07-Apr-2022,000008078855580,Durham County CNCL,9399,Equipment-purchase and rental,11.00,0.00,11.00
Regeneration Economy and Growth,Development and Housing,030771,Durham Advance Flexible Fund,Transport,235057,Public Transport,07-Apr-2022,000008078855726,Northern.COM,4112,Staff travelling,6.20,0.00,6.20
Children and Young Peoples Services,Head of Early Help Inclusion & Vulnerable Children.,085957,Secure Management,Supplies and Services,328041,Clothing uniforms and laundry E328,07-Apr-2022,000008078855760,AMZNMKTPLACE AMAZON.CO,5999,Clothing uniforms and laundry,27.36,4.60,22.76
Children and Young Peoples Services,Head of Early Help Inclusion & Vulnerable Children.,085957,Secure Management,Supplies and Services,328041,Clothing uniforms and laundry E328,07-Apr-2022,000008078855768,AMZNMKTPLACE AMAZON.CO,5999,Clothing uniforms and laundry,19.20,3.20,16.00
Children and Young Peoples Services,Head of Early Help Inclusion & Vulnerable Children.,085957,Secure Management,Supplies and Services,328041,Clothing uniforms and laundry E328,07-Apr-2022,000008078855768 - 1,AMZNMKTPLACE AMAZON.CO,5999,Clothing uniforms and laundry,0.05,,0.05
Children and Young Peoples Services,Head of Early Help Inclusion & Vulnerable Children.,085956,Lumley,Supplies and Services,308011,Furniture,07-Apr-2022,000008078855774,AMZNMKTPLACE AMAZON.CO,5999,Furniture repair and replacement,6.92,1.15,5.77
Neighbourhoods and Climate Change,Environmental Services,031228,North Pennines - Fellfoot Forward,Supplies and Services,324117,Provisions E324,07-Apr-2022,000008078855850,CO-OP GROUP FOOD,5411,Catering costs - provisions,7.25,0.00,7.25
Resources BK0010,Transactional & Customer Services,065187,Debtors,Supplies and Services,340001,Postages E340,07-Apr-2022,000008078855996,Durham County CNCL,9399,Postages,11.00,0.00,11.00
Children and Young Peoples Services,Head of Early Help Inclusion & Vulnerable Children.,088109,Dean Bank and Tudhoe Family Centre,Supplies and Services,304259,Equipment and Materials,07-Apr-2022,000008078856052,ARGOS LTD,5310,Equipment-purchase and rental,75.00,0.00,75.00
Adult and Health Services,Head of Adults,055643,Hawthorn House LD Respite Unit,Supplies and Services,324117,Provisions E324,07-Apr-2022,000008078856168,SAINSBURYS S/MKTS,5411,Catering costs - provisions,20.30,0.00,20.30
Adult and Health Services,Head of Adults,055643,Hawthorn House LD Respite Unit,Supplies and Services,324117,Provisions E324,07-Apr-2022,000008078856174,SAINSBURYS S/MKTS,5411,Catering costs - provisions,9.20,0.00,9.20
Resources BK0010,Procurement Sales & Business Services,069800,Corporate Procurement 069800,Employees,040149,Recruitment Instruction and Training,07-Apr-2022,000008078856288,WWW.CIPS.ORG,8699,Training-all costs,191.00,0.00,191.00
Children and Young Peoples Services,Head of Childrens Social Care,085363,Childrens Permanence Team,Supplies and Services,338045,Services,07-Apr-2022,000008078856478,HARTLEPOOL BC,9399,Legal expenses 338045,11.00,0.00,11.00
Children and Young Peoples Services,Head of Early Help Inclusion & Vulnerable Children.,085801,CDYJS - Support,Supplies and Services,304221,Equipment and Materials,07-Apr-2022,000008078856718,B&Q LTD,5211,Direct materials,60.00,0.00,60.00
Children and Young Peoples Services,Head of Childrens Social Care,085351,Framwellgate Moor CU,Supplies and Services,324117,Provisions E324,07-Apr-2022,000008078856746,SAINSBURYS S/MKTS,5411,Catering costs - provisions,76.90,0.00,76.90
Children and Young Peoples Services,Head of Childrens Social Care,085351,Framwellgate Moor CU,Transport,215995,Running Costs of Vehicles,07-Apr-2022,000008078856750,GULF FIR TREE,5541,Vehicle running expenses,20.04,0.00,20.04
Children and Young Peoples Services,Head of Childrens Social Care,085331,New Lea Childrens Home,Supplies and Services,328041,Clothing uniforms and laundry E328,07-Apr-2022,000008078857150,ARGOS LTD,5310,Clothing uniforms and laundry,306.95,0.00,306.95
Regeneration Economy and Growth,Corporate Property and Land,010525,Catering - Green Lane,Supplies and Services,324117,Provisions E324,07-Apr-2022,000008079033632,BATLEYS PERTH,5300,Catering costs - provisions,72.54,12.09,60.45
Regeneration Economy and Growth,Corporate Property and Land,010525,Catering - Green Lane,Supplies and Services,324117,Provisions E324,07-Apr-2022,000008079033632 - 1,BATLEYS PERTH,5300,Catering costs - provisions,39.09,,39.09
Neighbourhoods and Climate Change,Environmental Services,011060,C&G - Hardwick Park Catering,Supplies and Services,324117,Provisions E324,07-Apr-2022,000008079033704,BATLEYS PERTH,5300,Catering costs - provisions,227.46,37.91,189.55
Neighbourhoods and Climate Change,Environmental Services,011060,C&G - Hardwick Park Catering,Supplies and Services,324117,Provisions E324,07-Apr-2022,000008079033704 - 1,BATLEYS PERTH,5300,Catering costs - provisions,154.67,,154.67
Regeneration Economy and Growth,Culture Sport and Tourism,054812,Gala Theatre - Catering etc,Supplies and Services,324117,Provisions E324,07-Apr-2022,000008079033772,BATLEYS PERTH,5300,Catering costs - provisions,45.42,7.57,37.85
Regeneration Economy and Growth,Culture Sport and Tourism,054812,Gala Theatre - Catering etc,Supplies and Services,324117,Provisions E324,07-Apr-2022,000008079033772 - 1,BATLEYS PERTH,5300,Catering costs - provisions,88.14,,88.14
Regeneration Economy and Growth,Corporate Property and Land,021242,Catering - County Hall,Supplies and Services,324117,Provisions E324,07-Apr-2022,000008079033784,BATLEYS PERTH,5300,Catering costs - provisions,332.64,55.44,277.20
Regeneration Economy and Growth,Corporate Property and Land,021242,Catering - County Hall,Supplies and Services,324117,Provisions E324,07-Apr-2022,000008079033784 - 1,BATLEYS PERTH,5300,Catering costs - provisions,154.14,,154.14
Children and Young Peoples Services,Head of Childrens Social Care - Excluded Services,085001,Durham Safeguarding Childrens Partnership,Supplies and Services,304999,Equipment and Materials,07-Apr-2022,000010033222589,PADDLE.NET SHAPEDPLUG,5817,Misc equipment tools and materials,0.59,0.00,0.59
Children and Young Peoples Services,Head of Childrens Social Care,085358,Orchard House Sacriston Solo Home,Supplies and Services,372009,Subscriptions E372,07-Apr-2022,000010033223001,NETFLIX.COM,4899,Subscriptions 372009,13.99,0.00,13.99
Adult and Health Services,Commissioning inc Supporting People,052100,Supporting the Provider Market,Supplies and Services,384999,Miscellaneous Expenses,07-Apr-2022,000010033223041,Amazon.co.uk 293976WY4,5969,Other expenses,129.90,0.00,129.90
Children and Young Peoples Services,Head of Education and Skills,071801,Selby Cottage Childcare Centre,Supplies and Services,304403,Equipment and Materials,07-Apr-2022,000010038149251,AMZNMktplace,5999,Other consumables,21.00,3.50,17.50
Children and Young Peoples Services,Head of Education and Skills,071801,Selby Cottage Childcare Centre,Supplies and Services,304403,Equipment and Materials,07-Apr-2022,000010038149257,AMZNMktplace,5999,Other consumables,16.99,2.83,14.16
Children and Young Peoples Services,Head of Education and Skills,071801,Selby Cottage Childcare Centre,Supplies and Services,304403,Equipment and Materials,07-Apr-2022,000010038149261,AMZNMktplace,5999,Other consumables,29.99,5.00,24.99
Children and Young Peoples Services,Head of Education and Skills,071801,Selby Cottage Childcare Centre,Supplies and Services,304403,Equipment and Materials,07-Apr-2022,000010038149265,AMZNMktplace,5999,Other consumables,14.99,2.50,12.49
Children and Young Peoples Services,Head of Education and Skills,071801,Selby Cottage Childcare Centre,Supplies and Services,304403,Equipment and Materials,07-Apr-2022,000010038149269,AMZNMktplace,5999,Other consumables,26.98,4.50,22.48
Children and Young Peoples Services,Head of Education and Skills,071801,Selby Cottage Childcare Centre,Supplies and Services,304403,Equipment and Materials,07-Apr-2022,000010038149275,AMZNMktplace,5999,Other consumables,10.51,1.75,8.76
Children and Young Peoples Services,Head of Education and Skills,071801,Selby Cottage Childcare Centre,Supplies and Services,304403,Equipment and Materials,07-Apr-2022,000010038149279,AMZNMktplace,5999,Other consumables,27.35,4.56,22.79
Children and Young Peoples Services,Head of Education and Skills,071801,Selby Cottage Childcare Centre,Supplies and Services,324117,Provisions E324,07-Apr-2022,000010038149283,WILKO RETAIL LIMITED,5399,Catering costs - provisions,18.85,0.00,18.85
Children and Young Peoples Services,Head of Education and Skills,071801,Selby Cottage Childcare Centre,Supplies and Services,324117,Provisions E324,07-Apr-2022,000010038149285,ASDA GROCERIES ONLINE,5411,Catering costs - provisions,56.70,0.00,56.70
Children and Young Peoples Services,Head of Education and Skills,071801,Selby Cottage Childcare Centre,Supplies and Services,304403,Equipment and Materials,07-Apr-2022,000010038149287,AMZNBusiness 2E2KB3C34,5999,Other consumables,89.99,15.00,74.99
Children and Young Peoples Services,Head of Education and Skills,071801,Selby Cottage Childcare Centre,Supplies and Services,304403,Equipment and Materials,07-Apr-2022,000010038149289,AMZNMktplace,5999,Other consumables,10.51,4.50,6.01
Children and Young Peoples Services,Head of Education and Skills,071801,Selby Cottage Childcare Centre,Supplies and Services,304403,Equipment and Materials,07-Apr-2022,000010038149293,AMZNMktplace,5999,Other consumables,16.48,4.50,11.98
Children and Young Peoples Services,Head of Education and Skills,071801,Selby Cottage Childcare Centre,Supplies and Services,304403,Equipment and Materials,07-Apr-2022,000010038149297,AMZNMktplace,5999,Other consumables,13.99,2.33,11.66
Children and Young Peoples Services,Head of Education and Skills,071801,Selby Cottage Childcare Centre,Supplies and Services,304403,Equipment and Materials,07-Apr-2022,000010038149301,AMZNMktplace,5999,Other consumables,53.34,8.89,44.45
Children and Young Peoples Services,Head of Education and Skills,071801,Selby Cottage Childcare Centre,Supplies and Services,304403,Equipment and Materials,07-Apr-2022,000010038149303,AMZNMktplace,5999,Other consumables,35.99,6.00,29.99
Children and Young Peoples Services,Head of Childrens Social Care,085404,COMF bid Targeted interventions for CYPS,Supplies and Services,304403,Equipment and Materials,07-Apr-2022,000010038149321,AMZNMktplace,5999,Other consumables,149.90,25.00,124.90
Children and Young Peoples Services,Head of Childrens Social Care - Excluded Services,085001,Durham Safeguarding Childrens Partnership,Supplies and Services,304403,Equipment and Materials,07-Apr-2022,000010038149325,WWW.WPDOWNLOADMANAGER.,5734,Other consumables,45.24,0.00,45.24
Resources BK0010,Digital Services,065432,Web Development Group,Supplies and Services,342033,Computers and Communications,07-Apr-2022,000010038149329,WPMU DEV INCSUBFEE.COM,7372,Computer hardware,14.57,0.00,14.57
Children and Young Peoples Services,Head of Childrens Social Care,085404,COMF bid Targeted interventions for CYPS,Supplies and Services,304403,Equipment and Materials,07-Apr-2022,000010038149333,AMZNBusiness 2E02V8CU4,5999,Other consumables,179.20,29.92,149.28
Children and Young Peoples Services,Head of Childrens Social Care,085404,COMF bid Targeted interventions for CYPS,Supplies and Services,304403,Equipment and Materials,07-Apr-2022,000010038149335,AMZNMktplace,5999,Other consumables,89.94,15.00,74.94
Dedicated Schools Grant BG0015,DSG Schools Block,417611,Greenfield Community College 004176 - Technology,Supplies and Services,304403,Equipment and Materials,07-Apr-2022,000010038149353,AMZNMKTPLACE AMAZON.CO,5999,Other consumables,8.78,1.46,7.32
Children and Young Peoples Services,Head of Childrens Social Care,085501,Child Care Cases Legal Expenses,Supplies and Services,304403,Equipment and Materials,07-Apr-2022,000010038149371,SUNDERLAND CC,7523,Other consumables,11.00,0.00,11.00
Children and Young Peoples Services,Head of Education and Skills,078100,Curric and Professional Development 078100,Supplies and Services,342033,Computers and Communications,07-Apr-2022,000010038149419,STK Shutterstock,7333,Computer hardware,22.80,0.00,22.80
Children and Young Peoples Services,Head of Childrens Social Care,085334,West Rainton Satelite Home,Supplies and Services,328041,Clothing uniforms and laundry E328,07-Apr-2022,000010038149423,TK MAXX,5331,Clothing uniforms and laundry,10.19,0.00,10.19
Children and Young Peoples Services,Head of Childrens Social Care,085334,West Rainton Satelite Home,Supplies and Services,304999,Equipment and Materials,07-Apr-2022,000010038149429,SUPERDRUG STORES PLC,5912,Misc equipment tools and materials,16.87,0.00,16.87
Children and Young Peoples Services,Head of Early Help Inclusion & Vulnerable Children.,071670,Willington Childrens Centre,Supplies and Services,304259,Equipment and Materials,07-Apr-2022,000010038149551,AMZNMktplace,5999,Equipment-purchase and rental,12.98,2.16,10.82
Children and Young Peoples Services,Head of Early Help Inclusion & Vulnerable Children.,088105,W/Close and Willington Family Centre,Supplies and Services,304259,Equipment and Materials,07-Apr-2022,000010038149555,AMZNMktplace,5999,Equipment-purchase and rental,33.98,0.00,33.98
Children and Young Peoples Services,Head of Childrens Social Care,085347,Solo Home The Manse,Supplies and Services,304403,Equipment and Materials,07-Apr-2022,000010038149671,AMZNMKTPLACE AMAZON.CO,5999,Other consumables,149.18,0.00,149.18
Children and Young Peoples Services,Head of Childrens Social Care,085347,Solo Home The Manse,Supplies and Services,324117,Provisions E324,07-Apr-2022,000010038149675,B&M 740 SEAHAM,5399,Catering costs - provisions,35.82,0.00,35.82
Children and Young Peoples Services,Head of Childrens Social Care,085347,Solo Home The Manse,Supplies and Services,324117,Provisions E324,07-Apr-2022,000010038149681,WILKO RETAIL LIMITED,5399,Catering costs - provisions,50.00,0.00,50.00
Children and Young Peoples Services,Head of Childrens Social Care,085347,Solo Home The Manse,Supplies and Services,304999,Equipment and Materials,07-Apr-2022,000010038149685,PLANET LEISURE,7933,Misc equipment tools and materials,8.00,0.00,8.00
Children and Young Peoples Services,Head of Childrens Social Care,085347,Solo Home The Manse,Supplies and Services,324117,Provisions E324,07-Apr-2022,000010038149689,ASDA STORES,5411,Catering costs - provisions,33.15,0.00,33.15
Neighbourhoods and Climate Change,Environmental Services,010367,C&G - South Grounds Maintenance,Third Party Payments,430100,Rendered by Private Contractors,07-Apr-2022,000010038149711,SQ CATHEDRAL LOCK AND,1520,Payments to sub-contractors,8.40,0.00,8.40
Children and Young Peoples Services,Head of Childrens Social Care,085358,Orchard House Sacriston Solo Home,Supplies and Services,332047,Printing Stationery and Gen Off Exps,07-Apr-2022,000010038149735,ODEON CINEMAS,7832,Stationery,23.08,0.00,23.08
Children and Young Peoples Services,Head of Childrens Social Care,085358,Orchard House Sacriston Solo Home,Transport,235057,Public Transport,07-Apr-2022,000010038149745,THE RIVERWALK CAR PARK,7523,Staff travelling,1.50,0.00,1.50
Adult and Health Services,Commissioning inc Supporting People,052100,Supporting the Provider Market,Supplies and Services,384999,Miscellaneous Expenses,07-Apr-2022,000010038149757,Amazon.co.uk 2E6YA1CW4,5969,Other expenses,15.00,0.00,15.00
Children and Young Peoples Services,Head of Childrens Social Care,085342,16 Hickstead Rise (previously 9 Cedar Ave),Supplies and Services,344033,Telephones,07-Apr-2022,000010038149765,Lebara Mobile Limited,4814,Telephones general-all costs,20.00,0.00,20.00
Children and Young Peoples Services,Head of Education and Skills,071732,Dean Bank Childcare,Supplies and Services,304403,Equipment and Materials,07-Apr-2022,000010038149777,AMZNMKTPLACE AMAZON.CO,5999,Other consumables,19.75,0.00,19.75
Regeneration Economy and Growth,Culture Sport and Tourism,054967,Theatre - Technical Staffing,Supplies and Services,340001,Postages E340,07-Apr-2022,000010038149781,TNT DIRECT WL,4215,Postages,8.94,0.00,8.94
Adult and Health Services,Head of Adults,052953,Training - Social Work,Supplies and Services,304999,Equipment and Materials,07-Apr-2022,000010038149809,360 digital events,5817,Misc equipment tools and materials,35.00,0.00,35.00
Adult and Health Services,Head of Adults,052953,Training - Social Work,Supplies and Services,304999,Equipment and Materials,07-Apr-2022,000010038149813,360 digital events,5817,Misc equipment tools and materials,35.00,0.00,35.00
Adult and Health Services,Head of Adults,052953,Training - Social Work,Supplies and Services,304999,Equipment and Materials,07-Apr-2022,000010038149815,360 digital events,5817,Misc equipment tools and materials,35.00,0.00,35.00
Adult and Health Services,Head of Adults,052953,Training - Social Work,Supplies and Services,304999,Equipment and Materials,07-Apr-2022,000010038149819,360 digital events,5817,Misc equipment tools and materials,35.00,0.00,35.00
Adult and Health Services,Head of Adults,052953,Training - Social Work,Supplies and Services,304999,Equipment and Materials,07-Apr-2022,000010038149827,360 digital events,5817,Misc equipment tools and materials,35.00,0.00,35.00
Children and Young Peoples Services,Head of Early Help Inclusion & Vulnerable Children.,085962,Aycliffe Secure - Durham,Supplies and Services,304403,Equipment and Materials,07-Apr-2022,000010038149839,AMZNMktplace,5999,Other consumables,14.99,2.50,12.49
Regeneration Economy and Growth,Development and Housing,030771,Durham Advance Flexible Fund,Transport,235057,Public Transport,07-Apr-2022,000010038149891,WWW.GONORTHEAST.CO.UK,4111,Staff travelling,-5.30,0.00,-5.30
Regeneration Economy and Growth,Development and Housing,030771,Durham Advance Flexible Fund,Transport,235057,Public Transport,07-Apr-2022,000010038149895,WWW.GONORTHEAST.CO.UK,4111,Staff travelling,-5.30,0.00,-5.30
Children and Young Peoples Services,Head of Childrens Social Care,085364,Children Looked After Team 1,Supplies and Services,304403,Equipment and Materials,07-Apr-2022,000010038149903,AMZNMktplace,5999,Other consumables,186.60,31.10,155.50
Children and Young Peoples Services,Head of Childrens Social Care,085364,Children Looked After Team 1,Supplies and Services,304403,Equipment and Materials,07-Apr-2022,000010038149903 - 1,AMZNMktplace,5999,Other consumables,0.20,,0.20
Children and Young Peoples Services,Head of Childrens Social Care,085364,Children Looked After Team 1,Transport,235057,Public Transport,07-Apr-2022,000010038149909,CHEVRON TAXIS,4121,Staff travelling,42.50,0.00,42.50
Children and Young Peoples Services,Head of Early Help Inclusion & Vulnerable Children.,085956,Lumley,Supplies and Services,384302,Miscellaneous Expenses,07-Apr-2022,000010038149925,AMZNMktplace,5999,Activity expenses,5.25,0.88,4.37
Children and Young Peoples Services,Head of Early Help Inclusion & Vulnerable Children.,085956,Lumley,Supplies and Services,384302,Miscellaneous Expenses,07-Apr-2022,000010038149931,AMZNMktplace,5999,Activity expenses,17.99,3.00,14.99
Children and Young Peoples Services,Head of Early Help Inclusion & Vulnerable Children.,085957,Secure Management,Supplies and Services,328041,Clothing uniforms and laundry E328,07-Apr-2022,000010038149937,AMZNMKTPLACE AMAZON.CO,5999,Clothing uniforms and laundry,18.45,0.00,18.45
Children and Young Peoples Services,Head of Early Help Inclusion & Vulnerable Children.,085956,Lumley,Supplies and Services,308011,Furniture,07-Apr-2022,000010038149941,AMZNMktplace,5999,Furniture repair and replacement,11.99,2.00,9.99
Children and Young Peoples Services,Head of Early Help Inclusion & Vulnerable Children.,085956,Lumley,Supplies and Services,384302,Miscellaneous Expenses,07-Apr-2022,000010038149945,AMZNMktplace,5999,Activity expenses,7.63,1.27,6.36
Neighbourhoods and Climate Change,Environmental Services,010367,C&G - South Grounds Maintenance,Supplies and Services,304403,Equipment and Materials,07-Apr-2022,000010038149969,MAXWELLS DIY,5231,Other consumables,77.00,0.00,77.00
Children and Young Peoples Services,Head of Education and Skills,075033,DurhamWorks 3,Supplies and Services,364301,Grants to Voluntary Organisations,07-Apr-2022,000010038149983,WWW.GONORTHEAST.CO.UK,4111,Hardship,20.00,0.00,20.00
Children and Young Peoples Services,Head of Childrens Social Care,085621,Families First Newton Aycliffe and Shildon,Supplies and Services,304403,Equipment and Materials,07-Apr-2022,000010038149991,AMZNBusiness 295OX9YK4,5999,Other consumables,15.99,2.67,13.32
Children and Young Peoples Services,Head of Childrens Social Care,085621,Families First Newton Aycliffe and Shildon,Supplies and Services,304403,Equipment and Materials,07-Apr-2022,000010038149993,AMZNBusiness 298NH8YW4,5999,Other consumables,20.00,3.33,16.67
Children and Young Peoples Services,Head of Childrens Social Care,085626,Families First Ferryhill and Chilton,Supplies and Services,340001,Postages E340,07-Apr-2022,000010038150077,POST OFFICE COUNTER,9402,Postages,2.45,0.00,2.45
Children and Young Peoples Services,Head of Childrens Social Care,085366,Children Looked After Team 3,Supplies and Services,340001,Postages E340,07-Apr-2022,000010038150081,POST OFFICE COUNTER,9402,Postages,2.45,0.00,2.45
Children and Young Peoples Services,Head of Childrens Social Care,085365,Children Looked After Team 2,Supplies and Services,340001,Postages E340,07-Apr-2022,000010038150085,POST OFFICE COUNTER,9402,Postages,9.06,0.00,9.06
Children and Young Peoples Services,Head of Childrens Social Care,085366,Children Looked After Team 3,Supplies and Services,384302,Miscellaneous Expenses,07-Apr-2022,000010038150087,WWW.INFINITEAIR.CO.UK,7991,Activity expenses,23.90,0.00,23.90
Children and Young Peoples Services,Head of Early Help Inclusion & Vulnerable Children.,088108,Spennymoor & Shildon Intensive Family Support Team,Supplies and Services,384302,Miscellaneous Expenses,07-Apr-2022,000010038150093,AMZNBusiness 2E1QI2CI4,5999,Activity expenses,18.99,3.17,15.82
Children and Young Peoples Services,Head of Early Help Inclusion & Vulnerable Children.,088108,Spennymoor & Shildon Intensive Family Support Team,Supplies and Services,384302,Miscellaneous Expenses,07-Apr-2022,000010038150095,AMZNBusiness 2E9SX5C14,5999,Activity expenses,82.12,13.70,68.42
Neighbourhoods and Climate Change,Environmental Services,010367,C&G - South Grounds Maintenance,Supplies and Services,304999,Equipment and Materials,07-Apr-2022,000010038150101,Snowballs,5251,Misc equipment tools and materials,89.34,0.00,89.34
Adult and Health Services,Head of Adults,055643,Hawthorn House LD Respite Unit,Supplies and Services,324117,Provisions E324,07-Apr-2022,000010038150157,B&M 681 - DURHAM,5399,Catering costs - provisions,5.25,0.00,5.25
Children and Young Peoples Services,Head of Childrens Social Care,085342,16 Hickstead Rise (previously 9 Cedar Ave),Supplies and Services,324117,Provisions E324,07-Apr-2022,000010038150167,TESCO STORES 2916,5411,Catering costs - provisions,146.39,0.00,146.39
Children and Young Peoples Services,Head of Childrens Social Care,085331,New Lea Childrens Home,Supplies and Services,384999,Miscellaneous Expenses,07-Apr-2022,000010038150179,Amazon.co.uk 2E94O6CS4,5969,Other expenses,41.91,0.00,41.91
Regeneration Economy and Growth,Culture Sport and Tourism,054399,Local Delivery-Libraries,Supplies and Services,312009,Newspapers books and periodicals E312,07-Apr-2022,000010038150229,AMZNBUSINESS 298Y09YD4,5999,Newspapers books and periodicals,190.80,0.00,190.80
Regeneration Economy and Growth,Culture Sport and Tourism,010664,Freemans Quay Leisure Centre,Supplies and Services,304403,Equipment and Materials,07-Apr-2022,000010038150259,AMZNBUSINESS 2953L0YP4,5999,Other consumables,19.98,3.34,16.64
Children and Young Peoples Services,Head of Early Help Inclusion & Vulnerable Children.,088102,Consett & Stanley Intensive Family Support Team,Supplies and Services,384302,Miscellaneous Expenses,07-Apr-2022,000010038150271,AMZNMktplace,5999,Activity expenses,25.99,4.33,21.66
Children and Young Peoples Services,Head of Childrens Social Care,085363,Childrens Permanence Team,Supplies and Services,338045,Services,07-Apr-2022,000010038150273,HM PASSPORT OFFICE,9399,Legal expenses 338045,49.00,0.00,49.00
Children and Young Peoples Services,Head of Childrens Social Care,085363,Childrens Permanence Team,Supplies and Services,338045,Services,07-Apr-2022,000010038150279,HM PASSPORT OFFICE,9399,Legal expenses 338045,49.00,0.00,49.00
Children and Young Peoples Services,Head of Childrens Social Care,085363,Childrens Permanence Team,Supplies and Services,338045,Services,07-Apr-2022,000010038150283,SUNDERLAND CC,7523,Legal expenses 338045,22.00,0.00,22.00
Resources BK0010,Digital Services,065335,School Services - Implementations,Supplies and Services,304639,Equipment and Materials,07-Apr-2022,000010038150339,AMZNMktplace,5999,Technicians-supplies,63.83,10.64,53.19
Resources BK0010,Digital Services,065236,Operations - Desktop Services,Supplies and Services,342033,Computers and Communications,07-Apr-2022,000010038150341,AMZNMKTPLACE AMAZON.CO,5999,Computer hardware,14.95,2.49,12.46
Children and Young Peoples Services,Head of Early Help Inclusion & Vulnerable Children.,085957,Secure Management,Premises,108251,Service Repairs and Maintenance,07-Apr-2022,000010038150367,AMZNMktplace,5999,Alarm and security maintenance,5.99,0.00,5.99
Dedicated Schools Grant BG0015,DSG High Needs Block,079040,HNB Management and support,Supplies and Services,304403,Equipment and Materials,07-Apr-2022,000010038150371,AMZNMktplace,5999,Other consumables,11.18,1.86,9.32
Dedicated Schools Grant BG0015,DSG High Needs Block,079040,HNB Management and support,Supplies and Services,304403,Equipment and Materials,07-Apr-2022,000010038150375,AMZNBusiness 2E1KX3CN4,5999,Other consumables,12.95,0.00,12.95
Neighbourhoods and Climate Change,Environmental Services,010301,C&G - North Grounds Maintenance,Supplies and Services,304999,Equipment and Materials,07-Apr-2022,000010038150423,Harelaw sawmill delive,5251,Misc equipment tools and materials,17.93,0.00,17.93
Resources BK0010,HR & Employee Services,066820,Occupational Health Service,Supplies and Services,340001,Postages E340,07-Apr-2022,000010038150611,PARCELFORCE WL,4215,Postages,47.15,0.00,47.15
Regeneration Economy and Growth,Development and Housing,030771,Durham Advance Flexible Fund,Supplies and Services,304403,Equipment and Materials,07-Apr-2022,000010038150715,AMZNMktplace,5999,Other consumables,100.98,16.84,84.14
Regeneration Economy and Growth,Development and Housing,030771,Durham Advance Flexible Fund,Supplies and Services,384999,Miscellaneous Expenses,07-Apr-2022,000010038150719,WAREHOUSE HAIR AND BEA,7230,Other expenses,167.13,0.00,167.13
Children and Young Peoples Services,Head of Childrens Social Care,085634,Families First Easington,Supplies and Services,352001,Conference Expenses,07-Apr-2022,000010038150785,AIRBNB HMTYF3FEJY,7011,Conferencesseminars fees etc,479.46,0.00,479.46
Resources BK0010,Procurement Sales & Business Services,065503,Business Support - Spectrum,Supplies and Services,304403,Equipment and Materials,07-Apr-2022,000010038150789,AMZNMktplace,5999,Other consumables,17.10,2.85,14.25
Resources BK0010,Procurement Sales & Business Services,065503,Business Support - Spectrum,Supplies and Services,304403,Equipment and Materials,07-Apr-2022,000010038150789 - 1,AMZNMktplace,5999,Other consumables,0.03,,0.03
Resources BK0010,Procurement Sales & Business Services,065503,Business Support - Spectrum,Supplies and Services,324117,Provisions E324,07-Apr-2022,000010038150799,ASDA STORES LTD,5411,Catering costs - provisions,39.00,0.00,39.00
Resources BK0010,Procurement Sales & Business Services,065503,Business Support - Spectrum,Supplies and Services,304403,Equipment and Materials,07-Apr-2022,000010038150805,AMZNMktplace,5999,Other consumables,8.10,1.35,6.75
Resources BK0010,Procurement Sales & Business Services,065503,Business Support - Spectrum,Supplies and Services,304403,Equipment and Materials,07-Apr-2022,000010038150805 - 1,AMZNMktplace,5999,Other consumables,0.06,,0.06
Resources BK0010,Procurement Sales & Business Services,065503,Business Support - Spectrum,Supplies and Services,304403,Equipment and Materials,07-Apr-2022,000010038150809,AMZNMktplace,5999,Other consumables,17.97,3.00,14.97
Regeneration Economy and Growth,Corporate Property and Land,011296,Catering - Crimdon Dene Hub,Supplies and Services,324117,Provisions E324,07-Apr-2022,000010038255473,JR HOLLAND FOODSERVICE,5499,Catering costs - provisions,141.56,0.00,141.56
Regeneration Economy and Growth,Culture Sport and Tourism,054235,Bishop Auckland Town Hall Cafe,Supplies and Services,324117,Provisions E324,07-Apr-2022,000010038255477,JR HOLLAND FOODSERVICE,5499,Catering costs - provisions,5.00,0.00,5.00
Neighbourhoods and Climate Change,Environmental Services,011060,C&G - Hardwick Park Catering,Supplies and Services,324117,Provisions E324,07-Apr-2022,000010038255479,JR HOLLAND FOODSERVICE,5499,Catering costs - provisions,83.38,0.00,83.38
Regeneration Economy and Growth,Culture Sport and Tourism,011263,Louisa Centre 011263,Supplies and Services,324117,Provisions E324,07-Apr-2022,000010038255483,JR HOLLAND FOODSERVICE,5499,Catering costs - provisions,-9.95,0.00,-9.95
Regeneration Economy and Growth,Corporate Property and Land,021242,Catering - County Hall,Supplies and Services,324117,Provisions E324,07-Apr-2022,000010038255487,JR HOLLAND FOODSERVICE,5499,Catering costs - provisions,28.96,0.00,28.96
Children and Young Peoples Services,Head of Childrens Social Care,085611,Families First Stanley,Transport,235057,Public Transport,08-Apr-2022,000008078854810,WWW.GONORTHEAST.CO.UK,4111,Staff travelling,34.00,0.00,34.00
Children and Young Peoples Services,Head of Childrens Social Care,085611,Families First Stanley,Supplies and Services,304259,Equipment and Materials,08-Apr-2022,000008078854814,HM PASSPORT OFFICE,9399,Equipment-purchase and rental,49.00,0.00,49.00
Children and Young Peoples Services,Head of Childrens Social Care,085611,Families First Stanley,Supplies and Services,328041,Clothing uniforms and laundry E328,08-Apr-2022,000008078854822,ARGOS LTD,5310,Clothing uniforms and laundry,29.99,0.00,29.99
Children and Young Peoples Services,Head of Education and Skills,071801,Selby Cottage Childcare Centre,Supplies and Services,304999,Equipment and Materials,08-Apr-2022,000008078854844,Amazon Prime 2E2YO0FE4,5968,Misc equipment tools and materials,7.99,0.00,7.99
Children and Young Peoples Services,Head of Education and Skills,071801,Selby Cottage Childcare Centre,Supplies and Services,304403,Equipment and Materials,08-Apr-2022,000008078854852,AMZNMktplace,5999,Other consumables,7.40,1.23,6.17
Children and Young Peoples Services,Head of Education and Skills,071801,Selby Cottage Childcare Centre,Supplies and Services,324117,Provisions E324,08-Apr-2022,000008078854856,TESCO STORES 2278,5411,Catering costs - provisions,46.75,0.00,46.75
Adult and Health Services,Head of Adults,052229,Countywide AMHP Team,Supplies and Services,338048,Services,08-Apr-2022,000008078854870,HMCTS DURHAM012,9222,Court costs 338048,81.00,0.00,81.00
Children and Young Peoples Services,Head of Childrens Social Care,085341,High Etherley Satelite Home,Supplies and Services,304999,Equipment and Materials,08-Apr-2022,000008078854930,HOME BARGAINS,5251,Misc equipment tools and materials,9.99,0.00,9.99
Children and Young Peoples Services,Head of Childrens Social Care,085341,High Etherley Satelite Home,Supplies and Services,324117,Provisions E324,08-Apr-2022,000008078854934,TESCO STORES 6329,5411,Catering costs - provisions,2.50,0.00,2.50
Children and Young Peoples Services,Head of Education and Skills,075035,DurhamDirections Re-engagement,Supplies and Services,364301,Grants to Voluntary Organisations,08-Apr-2022,000008078854962,WWW.SCREWFIX.COM,5211,Hardship,20.79,0.00,20.79
Regeneration Economy and Growth,Culture Sport and Tourism,030712,VCD - Project Delivery,Supplies and Services,384199,Miscellaneous Expenses,08-Apr-2022,000008078854976,PAYPAL WEBALON,5817,Other hired and contracted services,5.99,0.00,5.99
Regeneration Economy and Growth,Culture Sport and Tourism,030712,VCD - Project Delivery,Supplies and Services,384199,Miscellaneous Expenses,08-Apr-2022,000008078854984,LNK.BIO,5734,Other hired and contracted services,19.15,0.00,19.15
Regeneration Economy and Growth,Development and Housing,030776,LINKCD Flexible Fund,Supplies and Services,328041,Clothing uniforms and laundry E328,08-Apr-2022,000008078855182,NEW LOOK INTERNET,5621,Clothing uniforms and laundry,55.18,0.00,55.18
Children and Young Peoples Services,Head of Childrens Social Care,085331,New Lea Childrens Home,Supplies and Services,304403,Equipment and Materials,08-Apr-2022,000008078855196,Stanley,5999,Other consumables,3.00,0.00,3.00
Children and Young Peoples Services,Head of Childrens Social Care,085331,New Lea Childrens Home,Supplies and Services,348037,Subsistence E348,08-Apr-2022,000008078855200,Classic Pizza,5814,Subsistence,28.60,0.00,28.60
Children and Young Peoples Services,Head of Childrens Social Care,085331,New Lea Childrens Home,Supplies and Services,348037,Subsistence E348,08-Apr-2022,000008078855204,Classic Pizza,5814,Subsistence,2.00,0.00,2.00
Children and Young Peoples Services,Head of Childrens Social Care,085380,Operations Manager LAC Resources,Supplies and Services,328041,Clothing uniforms and laundry E328,08-Apr-2022,000008078855250,ARGOS LTD,5310,Clothing uniforms and laundry,209.95,0.00,209.95
Regeneration Economy and Growth,Development and Housing,030771,Durham Advance Flexible Fund,Supplies and Services,304403,Equipment and Materials,08-Apr-2022,000008078855264,AMZNMktplace,5999,Other consumables,54.98,9.16,45.82
Regeneration Economy and Growth,Development and Housing,030771,Durham Advance Flexible Fund,Transport,235057,Public Transport,08-Apr-2022,000008078855270,SQ LENNYS TAXIS,4121,Staff travelling,34.00,0.00,34.00
Children and Young Peoples Services,Head of Early Help Inclusion & Vulnerable Children.,085957,Secure Management,Supplies and Services,304403,Equipment and Materials,08-Apr-2022,000008078855326,AMZNMktplace,5999,Other consumables,24.00,4.00,20.00
Children and Young Peoples Services,Head of Early Help Inclusion & Vulnerable Children.,085957,Secure Management,Supplies and Services,304403,Equipment and Materials,08-Apr-2022,000008078855328,AMZNMktplace,5999,Other consumables,86.40,14.40,72.00
Children and Young Peoples Services,Head of Early Help Inclusion & Vulnerable Children.,085957,Secure Management,Supplies and Services,304403,Equipment and Materials,08-Apr-2022,000008078855328 - 1,AMZNMktplace,5999,Other consumables,0.10,,0.10
Children and Young Peoples Services,Head of Childrens Social Care,085358,Orchard House Sacriston Solo Home,Supplies and Services,332047,Printing Stationery and Gen Off Exps,08-Apr-2022,000008078855460,VIKING UK,5111,Stationery,267.08,0.00,267.08
Children and Young Peoples Services,Head of Education and Skills,071732,Dean Bank Childcare,Supplies and Services,384999,Miscellaneous Expenses,08-Apr-2022,000008078855496,Amazon.co.uk 2E0ZG9FZ4,5969,Other expenses,19.63,0.00,19.63
Neighbourhoods and Climate Change,Environmental Services,026591,C&G - Hardwick Park,Supplies and Services,332047,Printing Stationery and Gen Off Exps,08-Apr-2022,000008078855542,AMZNMktplace,5999,Stationery,26.99,4.50,22.49
Neighbourhoods and Climate Change,Environmental Services,011060,C&G - Hardwick Park Catering,Supplies and Services,324117,Provisions E324,08-Apr-2022,000008078855556,HOME CHOCOLATE FACTORY,5046,Catering costs - provisions,170.58,0.00,170.58
Neighbourhoods and Climate Change,Environmental Services,011060,C&G - Hardwick Park Catering,Supplies and Services,324117,Provisions E324,08-Apr-2022,000008078855560,THOMAS RIDLEY FOODSERV,5499,Catering costs - provisions,41.45,0.00,41.45
Regeneration Economy and Growth,Development and Housing,030770,Durham Advance,Supplies and Services,328041,Clothing uniforms and laundry E328,08-Apr-2022,000008078855648,ARGOS LTD,5310,Clothing uniforms and laundry,79.99,0.00,79.99
Children and Young Peoples Services,Head of Childrens Social Care,085517,Supporting Solutions Service (Edge of Care),Supplies and Services,328041,Clothing uniforms and laundry E328,08-Apr-2022,000008078855674,ARGOS LTD,5310,Clothing uniforms and laundry,36.99,0.00,36.99
Regeneration Economy and Growth,Development and Housing,030771,Durham Advance Flexible Fund,Transport,235057,Public Transport,08-Apr-2022,000008078855718,Northern.COM,4112,Staff travelling,6.20,0.00,6.20
Regeneration Economy and Growth,Development and Housing,030771,Durham Advance Flexible Fund,Transport,235057,Public Transport,08-Apr-2022,000008078855734,WWW.GONORTHEAST.CO.UK,4111,Staff travelling,4.00,0.00,4.00
Regeneration Economy and Growth,Development and Housing,030771,Durham Advance Flexible Fund,Transport,235057,Public Transport,08-Apr-2022,000008078855740,WWW.GONORTHEAST.CO.UK,4111,Staff travelling,4.00,0.00,4.00
Children and Young Peoples Services,Head of Early Help Inclusion & Vulnerable Children.,085965,Barnard,Supplies and Services,324117,Provisions E324,08-Apr-2022,000008078855780,TESCO STORES 6329,5411,Catering costs - provisions,164.94,0.00,164.94
Neighbourhoods and Climate Change,Environmental Services,010367,C&G - South Grounds Maintenance,Supplies and Services,304221,Equipment and Materials,08-Apr-2022,000008078855830,CARRS BILLINGTON SPENN,5599,Direct materials,170.00,0.00,170.00
Neighbourhoods and Climate Change,Environmental Services,011058,C&G - Wharton Park,Supplies and Services,304221,Equipment and Materials,08-Apr-2022,000008078855890,WWW.SCREWFIX.COM,5211,Direct materials,13.76,0.00,13.76
Neighbourhoods and Climate Change,Environmental Services,011058,C&G - Wharton Park,Supplies and Services,304221,Equipment and Materials,08-Apr-2022,000008078855908,PAYPAL ALS,5169,Direct materials,163.50,0.00,163.50
Regeneration Economy and Growth,Transport and Contracted Services,024611,Strategic Highways - Road Safety ETP 024611,Supplies and Services,332047,Printing Stationery and Gen Off Exps,08-Apr-2022,000008078855914,THE BIKEABILITY TRUST,5111,Stationery,474.96,0.00,474.96
Dedicated Schools Grant BG0015,DSG Schools Block,418516,Belmont Community School 004185 - Marketing,Supplies and Services,384985,Miscellaneous Expenses,08-Apr-2022,000008078856042,TESCO STORES 2916,5411,Miscellaneous-special facilities,6.90,0.00,6.90
Children and Young Peoples Services,Head of Childrens Social Care,085368,Children Looked After Team 5,Supplies and Services,384302,Miscellaneous Expenses,08-Apr-2022,000008078856060,WWW.INFINITEAIR.CO.UK,7991,Activity expenses,75.90,0.00,75.90
Children and Young Peoples Services,Head of Childrens Social Care,085626,Families First Ferryhill and Chilton,Supplies and Services,364301,Grants to Voluntary Organisations,08-Apr-2022,000008078856064,ARGOS LTD,5310,Hardship,49.99,0.00,49.99
Neighbourhoods and Climate Change,Environmental Services,010367,C&G - South Grounds Maintenance,Supplies and Services,304221,Equipment and Materials,08-Apr-2022,000008078856094,CARRS BILLINGTON SPENN,5599,Direct materials,487.19,0.00,487.19
Adult and Health Services,Head of Adults,055643,Hawthorn House LD Respite Unit,Supplies and Services,304403,Equipment and Materials,08-Apr-2022,000008078856178,AMZNMktplace,5999,Other consumables,169.99,28.33,141.66
Regeneration Economy and Growth,Development and Housing,030771,Durham Advance Flexible Fund,Supplies and Services,308011,Furniture,08-Apr-2022,000008078856208,Dunelm,5712,Furniture repair and replacement,-79.00,0.00,-79.00
Regeneration Economy and Growth,Corporate Property and Land,010814,Bldg Serv - R&M General,Supplies and Services,304221,Equipment and Materials,08-Apr-2022,000008078856222,AMZNMKTPLACE AMAZON.CO,5999,Direct materials,14.95,2.49,12.46
Regeneration Economy and Growth,Corporate Property and Land,020041,Bldg Serv - Business Development - General,Supplies and Services,304259,Equipment and Materials,08-Apr-2022,000008078856226,AMZNMKTPLACE AMAZON.CO,5999,Equipment-purchase and rental,2.99,0.50,2.49
Regeneration Economy and Growth,Corporate Property and Land,020041,Bldg Serv - Business Development - General,Supplies and Services,304259,Equipment and Materials,08-Apr-2022,000008078856228,AMZNMKTPLACE AMAZON.CO,5999,Equipment-purchase and rental,23.78,3.96,19.82
Children and Young Peoples Services,Head of Early Help Inclusion & Vulnerable Children.,088115,Young Parents Programme 088115,Supplies and Services,384302,Miscellaneous Expenses,08-Apr-2022,000008078856482,WILKO.COM,5399,Activity expenses,84.90,0.00,84.90
Children and Young Peoples Services,Head of Childrens Social Care,085342,16 Hickstead Rise (previously 9 Cedar Ave),Supplies and Services,384999,Miscellaneous Expenses,08-Apr-2022,000008078856570,Amazon.co.uk 2E5N25FU4,5969,Other expenses,139.99,0.00,139.99
Children and Young Peoples Services,Head of Early Help Inclusion & Vulnerable Children.,085957,Secure Management,Premises,145015,Cleaning and Domestic Supplies,08-Apr-2022,000008078856608,WWW.NISBETS.COM,5964,Cleaning and domestic equipment,37.29,0.00,37.29
Regeneration Economy and Growth,Transport and Contracted Services,031704,Care Connect - CCTV Countywide,Supplies and Services,384956,Miscellaneous Expenses,08-Apr-2022,000008078856660,SECURITY INDUSTRY AUTH,9399,Licences,190.00,0.00,190.00
Neighbourhoods and Climate Change,Environmental Services,010301,C&G - North Grounds Maintenance,Supplies and Services,304221,Equipment and Materials,08-Apr-2022,000008078856678,GREENHAM TRADING LTD,5085,Direct materials,346.56,57.76,288.80
Neighbourhoods and Climate Change,Environmental Services,010301,C&G - North Grounds Maintenance,Supplies and Services,304221,Equipment and Materials,08-Apr-2022,000008078856678 - 1,GREENHAM TRADING LTD,5085,Direct materials,0.08,,0.08
Neighbourhoods and Climate Change,Environmental Services,010301,C&G - North Grounds Maintenance,Supplies and Services,304999,Equipment and Materials,08-Apr-2022,000008078856688,TURFCARE SPECIALISTS L,780,Misc equipment tools and materials,483.00,0.00,483.00
Children and Young Peoples Services,Head of Education and Skills,071802,Louisa Cent Nursery,Supplies and Services,324117,Provisions E324,08-Apr-2022,000008078856788,ASDA GROCERIES ONLINE,5411,Catering costs - provisions,168.27,0.00,168.27
Children and Young Peoples Services,Head of Childrens Social Care,085332,Middlestone Moor CU,Supplies and Services,304999,Equipment and Materials,08-Apr-2022,000008078856890,FREEPRINTS,7395,Misc equipment tools and materials,20.74,0.00,20.74
Children and Young Peoples Services,Head of Childrens Social Care,085332,Middlestone Moor CU,Supplies and Services,304403,Equipment and Materials,08-Apr-2022,000008078856900,MAX SPIELMANN LTD,5999,Other consumables,8.00,0.00,8.00
Children and Young Peoples Services,Head of Early Help Inclusion & Vulnerable Children.,088107,Wheatley Hill & N. Aycliffe Family Centre,Supplies and Services,324117,Provisions E324,08-Apr-2022,000008078856940,ASDA GROCERIES ONLINE,5411,Catering costs - provisions,60.11,0.00,60.11
Children and Young Peoples Services,Head of Childrens Social Care,085332,Middlestone Moor CU,Supplies and Services,348037,Subsistence E348,08-Apr-2022,000008078856950,SODEXO PRESTIGE,5812,Subsistence,5.80,0.00,5.80
Children and Young Peoples Services,Head of Early Help Inclusion & Vulnerable Children.,085962,Aycliffe Secure - Durham,Supplies and Services,304403,Equipment and Materials,08-Apr-2022,000008078857006,AMZNBusiness 2E31734P4,5999,Other consumables,7.95,1.33,6.62
Regeneration Economy and Growth,Culture Sport and Tourism,054233,Bishop Auckland Town Hall Library,Supplies and Services,324117,Provisions E324,08-Apr-2022,000008078857016,WM MORRISONS STORE,5411,Catering costs - provisions,36.19,0.00,36.19
Resources BK0010,Resources Management CK0450,069000,Resources Management 069000,Supplies and Services,304259,Equipment and Materials,08-Apr-2022,000008078857156,APPLE.COM/BILL,5735,Equipment-purchase and rental,0.79,0.00,0.79
Regeneration Economy and Growth,Culture Sport and Tourism,060131,County Records,Supplies and Services,340001,Postages E340,08-Apr-2022,000008078857168,PARCELFORCE WL,4215,Postages,8.95,0.00,8.95
Children and Young Peoples Services,Head of Childrens Social Care,085334,West Rainton Satelite Home,Supplies and Services,342033,Computers and Communications,08-Apr-2022,000008078857246,DURHAMCLIMBINGCENTRE,7372,Computer hardware,22.00,0.00,22.00
Children and Young Peoples Services,Head of Childrens Social Care,085334,West Rainton Satelite Home,Supplies and Services,338099,Services,08-Apr-2022,000008078857254,FLAMINGOLAND,7033,Other services,112.50,0.00,112.50
Children and Young Peoples Services,Head of Early Help Inclusion & Vulnerable Children.,088101,Bullion Lane & Brandon Family Centre,Supplies and Services,324117,Provisions E324,08-Apr-2022,000008078857326,ASDA GROCERIES ONLINE,5411,Catering costs - provisions,224.40,0.00,224.40
Children and Young Peoples Services,Head of Early Help Inclusion & Vulnerable Children.,088101,Bullion Lane & Brandon Family Centre,Supplies and Services,324117,Provisions E324,08-Apr-2022,000008078857334,ASDA GROCERIES ONLINE,5411,Catering costs - provisions,-10.00,0.00,-10.00
Adult and Health Services,Head of Adults,055310,Positive Journeys (Tudhoe),Supplies and Services,324117,Provisions E324,08-Apr-2022,000008078857364,TESCO STORES 4358,5411,Catering costs - provisions,45.58,0.00,45.58
Children and Young Peoples Services,Head of Childrens Social Care,085634,Families First Easington,Supplies and Services,304999,Equipment and Materials,08-Apr-2022,000008078857396,WWW.BEAMISH.ORG.UK,7991,Misc equipment tools and materials,51.00,0.00,51.00
Children and Young Peoples Services,Head of Childrens Social Care,085634,Families First Easington,Supplies and Services,328041,Clothing uniforms and laundry E328,08-Apr-2022,000008078857400,ARGOS LTD,5310,Clothing uniforms and laundry,34.99,0.00,34.99
Regeneration Economy and Growth,Corporate Property and Land,010525,Catering - Green Lane,Supplies and Services,324117,Provisions E324,08-Apr-2022,000008079033636,FREEMAN CATERING BUTCH,5422,Catering costs - provisions,41.68,0.00,41.68
Regeneration Economy and Growth,Corporate Property and Land,010525,Catering - Green Lane,Supplies and Services,324117,Provisions E324,08-Apr-2022,000008079033638,HOPWELLS LTD,5811,Catering costs - provisions,51.51,0.00,51.51
Regeneration Economy and Growth,Corporate Property and Land,010525,Catering - Green Lane,Supplies and Services,324117,Provisions E324,08-Apr-2022,000008079033642,HOPWELLS LTD,5811,Catering costs - provisions,24.91,0.00,24.91
Regeneration Economy and Growth,Corporate Property and Land,010525,Catering - Green Lane,Supplies and Services,384999,Miscellaneous Expenses,08-Apr-2022,000008079033644,G M PACKAGING UK LIMIT,5046,Other expenses,182.34,0.00,182.34
Regeneration Economy and Growth,Corporate Property and Land,010525,Catering - Green Lane,Supplies and Services,324117,Provisions E324,08-Apr-2022,000008079033648,HOPWELLS LTD,5811,Catering costs - provisions,-9.43,0.00,-9.43
Regeneration Economy and Growth,Corporate Property and Land,011275,Catering -Durham Leadership Centre,Supplies and Services,324117,Provisions E324,08-Apr-2022,000008079033652,HOPWELLS LTD,5811,Catering costs - provisions,196.64,0.00,196.64
Regeneration Economy and Growth,Corporate Property and Land,011275,Catering -Durham Leadership Centre,Supplies and Services,324117,Provisions E324,08-Apr-2022,000008079033656,HOPWELLS LTD,5811,Catering costs - provisions,121.35,0.00,121.35
Regeneration Economy and Growth,Corporate Property and Land,011275,Catering -Durham Leadership Centre,Supplies and Services,324117,Provisions E324,08-Apr-2022,000008079033660,HOPWELLS LTD,5811,Catering costs - provisions,-18.66,0.00,-18.66
Regeneration Economy and Growth,Corporate Property and Land,030691,Catering - Durham Dales Centre,Supplies and Services,324117,Provisions E324,08-Apr-2022,000008079033664,FREEMAN CATERING BUTCH,5422,Catering costs - provisions,75.77,0.00,75.77
Regeneration Economy and Growth,Corporate Property and Land,030691,Catering - Durham Dales Centre,Supplies and Services,324117,Provisions E324,08-Apr-2022,000008079033668,HOPWELLS LTD,5811,Catering costs - provisions,66.17,0.00,66.17
Regeneration Economy and Growth,Corporate Property and Land,030691,Catering - Durham Dales Centre,Supplies and Services,324117,Provisions E324,08-Apr-2022,000008079033672,HOPWELLS LTD,5811,Catering costs - provisions,242.39,0.00,242.39
Regeneration Economy and Growth,Corporate Property and Land,030691,Catering - Durham Dales Centre,Supplies and Services,324117,Provisions E324,08-Apr-2022,000008079033676,HOPWELLS LTD,5811,Catering costs - provisions,135.69,0.00,135.69
Regeneration Economy and Growth,Corporate Property and Land,030691,Catering - Durham Dales Centre,Supplies and Services,324117,Provisions E324,08-Apr-2022,000008079033678,JR HOLLAND FOODSERVICE,5499,Catering costs - provisions,120.61,0.00,120.61
Regeneration Economy and Growth,Culture Sport and Tourism,054235,Bishop Auckland Town Hall Cafe,Supplies and Services,324117,Provisions E324,08-Apr-2022,000008079033682,HOPWELLS LTD,5811,Catering costs - provisions,141.85,0.00,141.85
Regeneration Economy and Growth,Culture Sport and Tourism,054235,Bishop Auckland Town Hall Cafe,Supplies and Services,324117,Provisions E324,08-Apr-2022,000008079033686,JR HOLLAND FOODSERVICE,5499,Catering costs - provisions,-26.96,0.00,-26.96
Adult and Health Services,Head of Adults,055643,Hawthorn House LD Respite Unit,Supplies and Services,324117,Provisions E324,08-Apr-2022,000008079033690,FREEMAN CATERING BUTCH,5422,Catering costs - provisions,39.01,0.00,39.01
Adult and Health Services,Head of Adults,055643,Hawthorn House LD Respite Unit,Supplies and Services,324117,Provisions E324,08-Apr-2022,000008079033694,HOPWELLS LTD,5811,Catering costs - provisions,93.24,0.00,93.24
Adult and Health Services,Head of Adults,055643,Hawthorn House LD Respite Unit,Supplies and Services,324117,Provisions E324,08-Apr-2022,000008079033696,JR HOLLAND FOODSERVICE,5499,Catering costs - provisions,19.43,0.00,19.43
Adult and Health Services,Head of Adults,055643,Hawthorn House LD Respite Unit,Supplies and Services,324117,Provisions E324,08-Apr-2022,000008079033700,JR HOLLAND FOODSERVICE,5499,Catering costs - provisions,24.50,0.00,24.50
Neighbourhoods and Climate Change,Environmental Services,011060,C&G - Hardwick Park Catering,Supplies and Services,324117,Provisions E324,08-Apr-2022,000008079033710,FREEMAN CATERING BUTCH,5422,Catering costs - provisions,64.14,0.00,64.14
Neighbourhoods and Climate Change,Environmental Services,011060,C&G - Hardwick Park Catering,Supplies and Services,324117,Provisions E324,08-Apr-2022,000008079033714,HOPWELLS LTD,5811,Catering costs - provisions,975.54,162.59,812.95
Neighbourhoods and Climate Change,Environmental Services,011060,C&G - Hardwick Park Catering,Supplies and Services,324117,Provisions E324,08-Apr-2022,000008079033714 - 1,HOPWELLS LTD,5811,Catering costs - provisions,115.09,,115.09
Neighbourhoods and Climate Change,Environmental Services,011060,C&G - Hardwick Park Catering,Supplies and Services,324117,Provisions E324,08-Apr-2022,000008079033718,HOPWELLS LTD,5811,Catering costs - provisions,712.56,118.76,593.80
Neighbourhoods and Climate Change,Environmental Services,011060,C&G - Hardwick Park Catering,Supplies and Services,324117,Provisions E324,08-Apr-2022,000008079033718 - 1,HOPWELLS LTD,5811,Catering costs - provisions,172.00,,172.00
Neighbourhoods and Climate Change,Environmental Services,011060,C&G - Hardwick Park Catering,Supplies and Services,324117,Provisions E324,08-Apr-2022,000008079033726,JR HOLLAND FOODSERVICE,5499,Catering costs - provisions,-1.95,0.00,-1.95
Regeneration Economy and Growth,Corporate Property and Land,021234,Catering - Locomotion,Supplies and Services,324117,Provisions E324,08-Apr-2022,000008079033730,FREEMAN CATERING BUTCH,5422,Catering costs - provisions,54.42,0.00,54.42
Regeneration Economy and Growth,Corporate Property and Land,021234,Catering - Locomotion,Supplies and Services,324117,Provisions E324,08-Apr-2022,000008079033734,HOPWELLS LTD,5811,Catering costs - provisions,60.72,10.12,50.60
Regeneration Economy and Growth,Corporate Property and Land,021234,Catering - Locomotion,Supplies and Services,324117,Provisions E324,08-Apr-2022,000008079033734 - 1,HOPWELLS LTD,5811,Catering costs - provisions,97.95,,97.95
Regeneration Economy and Growth,Corporate Property and Land,021234,Catering - Locomotion,Supplies and Services,324117,Provisions E324,08-Apr-2022,000008079033738,HOPWELLS LTD,5811,Catering costs - provisions,37.62,6.27,31.35
Regeneration Economy and Growth,Corporate Property and Land,021234,Catering - Locomotion,Supplies and Services,324117,Provisions E324,08-Apr-2022,000008079033738 - 1,HOPWELLS LTD,5811,Catering costs - provisions,301.45,,301.45
Regeneration Economy and Growth,Corporate Property and Land,021234,Catering - Locomotion,Supplies and Services,324117,Provisions E324,08-Apr-2022,000008079033742,JR HOLLAND FOODSERVICE,5499,Catering costs - provisions,32.04,0.00,32.04
Regeneration Economy and Growth,Corporate Property and Land,021234,Catering - Locomotion,Supplies and Services,324117,Provisions E324,08-Apr-2022,000008079033744,JR HOLLAND FOODSERVICE,5499,Catering costs - provisions,9.45,0.00,9.45
Regeneration Economy and Growth,Corporate Property and Land,021234,Catering - Locomotion,Supplies and Services,384999,Miscellaneous Expenses,08-Apr-2022,000008079033748,G M PACKAGING UK LIMIT,5046,Other expenses,36.44,0.00,36.44
Regeneration Economy and Growth,Corporate Property and Land,021234,Catering - Locomotion,Supplies and Services,324117,Provisions E324,08-Apr-2022,000008079033750,HOPWELLS LTD,5811,Catering costs - provisions,-15.24,0.00,-15.24
Regeneration Economy and Growth,Corporate Property and Land,021235,Catering - Wharton Park,Supplies and Services,324117,Provisions E324,08-Apr-2022,000008079033756,HOPWELLS LTD,5811,Catering costs - provisions,410.52,68.42,342.10
Regeneration Economy and Growth,Corporate Property and Land,021235,Catering - Wharton Park,Supplies and Services,324117,Provisions E324,08-Apr-2022,000008079033756 - 1,HOPWELLS LTD,5811,Catering costs - provisions,151.05,,151.05
Regeneration Economy and Growth,Corporate Property and Land,021235,Catering - Wharton Park,Supplies and Services,324117,Provisions E324,08-Apr-2022,000008079033762,HOPWELLS LTD,5811,Catering costs - provisions,-18.41,-3.07,-15.34
Regeneration Economy and Growth,Culture Sport and Tourism,011263,Louisa Centre 011263,Supplies and Services,324117,Provisions E324,08-Apr-2022,000008079033766,JR HOLLAND FOODSERVICE,5499,Catering costs - provisions,0.57,0.00,0.57
Regeneration Economy and Growth,Culture Sport and Tourism,011263,Louisa Centre 011263,Supplies and Services,324117,Provisions E324,08-Apr-2022,000008079033768,JR HOLLAND FOODSERVICE,5499,Catering costs - provisions,52.73,0.00,52.73
Regeneration Economy and Growth,Culture Sport and Tourism,054812,Gala Theatre - Catering etc,Supplies and Services,324117,Provisions E324,08-Apr-2022,000008079033776,FREEMAN CATERING BUTCH,5422,Catering costs - provisions,37.62,0.00,37.62
Regeneration Economy and Growth,Culture Sport and Tourism,054812,Gala Theatre - Catering etc,Supplies and Services,324117,Provisions E324,08-Apr-2022,000008079033778,HOPWELLS LTD,5811,Catering costs - provisions,50.77,0.00,50.77
Regeneration Economy and Growth,Culture Sport and Tourism,054812,Gala Theatre - Catering etc,Supplies and Services,324117,Provisions E324,08-Apr-2022,000008079033782,JR HOLLAND FOODSERVICE,5499,Catering costs - provisions,79.66,0.00,79.66
Regeneration Economy and Growth,Corporate Property and Land,021242,Catering - County Hall,Supplies and Services,324117,Provisions E324,08-Apr-2022,000008079033790,HOPWELLS LTD,5811,Catering costs - provisions,135.55,0.00,135.55
Regeneration Economy and Growth,Corporate Property and Land,021242,Catering - County Hall,Supplies and Services,324117,Provisions E324,08-Apr-2022,000008079033794,HOPWELLS LTD,5811,Catering costs - provisions,109.72,0.00,109.72
Regeneration Economy and Growth,Corporate Property and Land,021242,Catering - County Hall,Supplies and Services,324117,Provisions E324,08-Apr-2022,000008079033796,HOPWELLS LTD,5811,Catering costs - provisions,133.29,0.00,133.29
Regeneration Economy and Growth,Corporate Property and Land,021242,Catering - County Hall,Supplies and Services,324117,Provisions E324,08-Apr-2022,000008079033800,HOPWELLS LTD,5811,Catering costs - provisions,144.71,0.00,144.71
Regeneration Economy and Growth,Corporate Property and Land,021242,Catering - County Hall,Supplies and Services,384999,Miscellaneous Expenses,08-Apr-2022,000008079033804,G M PACKAGING UK LIMIT,5046,Other expenses,279.50,0.00,279.50
Regeneration Economy and Growth,Corporate Property and Land,021242,Catering - County Hall,Supplies and Services,324117,Provisions E324,08-Apr-2022,000008079033808,HOPWELLS LTD,5811,Catering costs - provisions,-11.41,0.00,-11.41
Resources BK0010,Digital Services,065335,School Services - Implementations,Supplies and Services,304639,Equipment and Materials,08-Apr-2022,000008086142722,justprojectorlamps.co.,5732,Technicians-supplies,283.36,0.00,283.36
Regeneration Economy and Growth,Corporate Property and Land,011296,Catering - Crimdon Dene Hub,Supplies and Services,324117,Provisions E324,08-Apr-2022,000008086266304,BATLEYS PERTH,5300,Catering costs - provisions,166.26,27.71,138.55
Regeneration Economy and Growth,Corporate Property and Land,011296,Catering - Crimdon Dene Hub,Supplies and Services,324117,Provisions E324,08-Apr-2022,000008086266304 - 1,BATLEYS PERTH,5300,Catering costs - provisions,61.86,,61.86
Adult and Health Services,Head of Adults,055643,Hawthorn House LD Respite Unit,Supplies and Services,324117,Provisions E324,08-Apr-2022,000008086266330,BATLEYS PERTH,5300,Catering costs - provisions,77.40,12.90,64.50
Adult and Health Services,Head of Adults,055643,Hawthorn House LD Respite Unit,Supplies and Services,324117,Provisions E324,08-Apr-2022,000008086266330 - 1,BATLEYS PERTH,5300,Catering costs - provisions,94.34,,94.34
Neighbourhoods and Climate Change,Environmental Services,011060,C&G - Hardwick Park Catering,Supplies and Services,324117,Provisions E324,08-Apr-2022,000008086266346,BATLEYS PERTH,5300,Catering costs - provisions,362.88,60.48,302.40
Neighbourhoods and Climate Change,Environmental Services,011060,C&G - Hardwick Park Catering,Supplies and Services,324117,Provisions E324,08-Apr-2022,000008086266346 - 1,BATLEYS PERTH,5300,Catering costs - provisions,154.11,,154.11
Regeneration Economy and Growth,Development and Housing,030776,LINKCD Flexible Fund,Supplies and Services,328041,Clothing uniforms and laundry E328,08-Apr-2022,000008110328554,WWW.SIMPLYBE.CO.UK,5691,Clothing uniforms and laundry,3.99,0.00,3.99
Regeneration Economy and Growth,Development and Housing,030776,LINKCD Flexible Fund,Supplies and Services,328041,Clothing uniforms and laundry E328,08-Apr-2022,000008110328556,WWW.SIMPLYBE.CO.UK,5691,Clothing uniforms and laundry,19.60,0.00,19.60
Children and Young Peoples Services,Head of Childrens Social Care - Excluded Services,085001,Durham Safeguarding Childrens Partnership,Supplies and Services,304403,Equipment and Materials,08-Apr-2022,000010038149341,WWW.WPDOWNLOADMANAGER.,5734,Other consumables,1.24,0.00,1.24
Children and Young Peoples Services,Head of Childrens Social Care - Excluded Services,085001,Durham Safeguarding Childrens Partnership,Supplies and Services,342033,Computers and Communications,08-Apr-2022,000010038149343,WPMU DEV INCSUBFEE.COM,7372,Computer hardware,0.40,0.00,0.40
Children and Young Peoples Services,Head of Early Help Inclusion & Vulnerable Children.,085957,Secure Management,Supplies and Services,384999,Miscellaneous Expenses,08-Apr-2022,000010038149571,Amazon.co.uk 2E68E0C14,5969,Other expenses,10.02,1.67,8.35
Regeneration Economy and Growth,Business Durham CL0850,030689,Inward Investment and Aftercare,Supplies and Services,304999,Equipment and Materials,09-Apr-2022,000008078854792,MAILCHIMP MISC,5968,Misc equipment tools and materials,90.59,0.00,90.59
Children and Young Peoples Services,Head of Childrens Social Care,085341,High Etherley Satelite Home,Supplies and Services,324117,Provisions E324,09-Apr-2022,000008078855112,ASDA STORES,5411,Catering costs - provisions,28.17,0.00,28.17
Children and Young Peoples Services,Head of Childrens Social Care,085331,New Lea Childrens Home,Supplies and Services,324117,Provisions E324,09-Apr-2022,000008078855210,ASDA GROCERIES ONLINE,5411,Catering costs - provisions,11.56,0.00,11.56
Children and Young Peoples Services,Head of Childrens Social Care,085331,New Lea Childrens Home,Supplies and Services,324117,Provisions E324,09-Apr-2022,000008078855214,ASDA GROCERIES ONLINE,5411,Catering costs - provisions,213.14,0.00,213.14
Children and Young Peoples Services,Head of Early Help Inclusion & Vulnerable Children.,085957,Secure Management,Supplies and Services,384999,Miscellaneous Expenses,09-Apr-2022,000008078855332,Amazon.co.uk 2E4R51ZD4,5969,Other expenses,16.74,0.00,16.74
Children and Young Peoples Services,Head of Education and Skills,071732,Dean Bank Childcare,Supplies and Services,304259,Equipment and Materials,09-Apr-2022,000008078855504,Amazon Music 2E7R59LB4,5735,Equipment-purchase and rental,14.99,0.00,14.99
Children and Young Peoples Services,Head of Education and Skills,071732,Dean Bank Childcare,Supplies and Services,304403,Equipment and Materials,09-Apr-2022,000008078855508,AMZNMktplace,5999,Other consumables,20.14,0.00,20.14
Children and Young Peoples Services,Head of Early Help Inclusion & Vulnerable Children.,085956,Lumley,Supplies and Services,324117,Provisions E324,09-Apr-2022,000008078855788,TESCO STORES 6329,5411,Catering costs - provisions,53.17,0.00,53.17
Neighbourhoods and Climate Change,Environmental Services,011058,C&G - Wharton Park,Supplies and Services,304221,Equipment and Materials,09-Apr-2022,000008078855896,AMZNMktplace,5999,Direct materials,16.99,2.83,14.16
Neighbourhoods and Climate Change,Environmental Services,011058,C&G - Wharton Park,Supplies and Services,304221,Equipment and Materials,09-Apr-2022,000008078855900,AMZNMktplace,5999,Direct materials,8.99,1.50,7.49
Neighbourhoods and Climate Change,Environmental Services,011058,C&G - Wharton Park,Supplies and Services,304221,Equipment and Materials,09-Apr-2022,000008078855904,AMZNMktplace,5999,Direct materials,27.50,4.58,22.92
Children and Young Peoples Services,Head of Childrens Social Care,085342,16 Hickstead Rise (previously 9 Cedar Ave),Supplies and Services,372009,Subscriptions E372,09-Apr-2022,000008078856244,NETFLIX.COM,4899,Subscriptions 372009,13.99,0.00,13.99
Children and Young Peoples Services,Head of Education and Skills,078550,Discretionary Learning Support,Supplies and Services,304259,Equipment and Materials,09-Apr-2022,000008078856516,SMARTY CO UK,4814,Equipment-purchase and rental,6.00,0.00,6.00
Children and Young Peoples Services,Head of Early Help Inclusion & Vulnerable Children.,085957,Secure Management,Supplies and Services,384302,Miscellaneous Expenses,09-Apr-2022,000008078856600,Microsoft Ultimate 1 M,5816,Activity expenses,10.99,0.00,10.99
Dedicated Schools Grant BG0015,DSG High Needs Block,079040,HNB Management and support,Supplies and Services,304403,Equipment and Materials,09-Apr-2022,000008078856630,AMZNMktplace,5999,Other consumables,3.35,0.00,3.35
Regeneration Economy and Growth,Business Durham CL0850,030671,Business Space 030671,Supplies and Services,304999,Equipment and Materials,09-Apr-2022,000008078856708,HOME BARGAINS,5251,Misc equipment tools and materials,9.95,0.00,9.95
Regeneration Economy and Growth,Business Durham CL0850,030671,Business Space 030671,Supplies and Services,308011,Furniture,09-Apr-2022,000008078856712,IKEA LTD 143 GATESHEAD,5712,Furniture repair and replacement,6.00,0.00,6.00
Children and Young Peoples Services,Head of Childrens Social Care,085351,Framwellgate Moor CU,Supplies and Services,328041,Clothing uniforms and laundry E328,09-Apr-2022,000008078856754,Footasylum Limited,5651,Clothing uniforms and laundry,89.99,0.00,89.99
Children and Young Peoples Services,Head of Childrens Social Care,085351,Framwellgate Moor CU,Supplies and Services,348037,Subsistence E348,09-Apr-2022,000008078856756,NANDOS.CO.UK,5812,Subsistence,66.55,0.00,66.55
Children and Young Peoples Services,Head of Childrens Social Care,085351,Framwellgate Moor CU,Supplies and Services,304999,Equipment and Materials,09-Apr-2022,000008078856760,PHOTO ME INTERNATIONAL,7395,Misc equipment tools and materials,8.00,0.00,8.00
Children and Young Peoples Services,Head of Childrens Social Care,085351,Framwellgate Moor CU,Supplies and Services,304999,Equipment and Materials,09-Apr-2022,000008078856764,Namco Uk Ltd,7929,Misc equipment tools and materials,43.50,0.00,43.50
Children and Young Peoples Services,Head of Childrens Social Care,085351,Framwellgate Moor CU,Supplies and Services,328041,Clothing uniforms and laundry E328,09-Apr-2022,000008078856768,PRIMARK 670 GATESHEAD,5651,Clothing uniforms and laundry,2.50,0.00,2.50
Children and Young Peoples Services,Head of Childrens Social Care,085332,Middlestone Moor CU,Supplies and Services,348037,Subsistence E348,09-Apr-2022,000008078856946,Just Eat,5814,Subsistence,14.00,0.00,14.00
Children and Young Peoples Services,Head of Childrens Social Care,085352,New Childrens Home (previously Tow Law),Supplies and Services,384999,Miscellaneous Expenses,09-Apr-2022,000008078857056,CRAFTY CORNER,5970,Other expenses,27.00,0.00,27.00
Children and Young Peoples Services,Head of Childrens Social Care,085352,New Childrens Home (previously Tow Law),Supplies and Services,332047,Printing Stationery and Gen Off Exps,09-Apr-2022,000008078857060,ODEON CINEMAS,7832,Stationery,1.90,0.00,1.90
Children and Young Peoples Services,Head of Childrens Social Care,085352,New Childrens Home (previously Tow Law),Transport,215995,Running Costs of Vehicles,09-Apr-2022,000008078857064,ESSO SIMONSIDE SERVICE,5541,Vehicle running expenses,26.69,0.00,26.69
Resources BK0010,Legal & Democratic Services,067910,Democratic Representation 067910,Supplies and Services,304259,Equipment and Materials,09-Apr-2022,000008078857164,APPLE.COM/UK,5732,Equipment-purchase and rental,19.00,0.00,19.00
Adult and Health Services,Head of Adults,055310,Positive Journeys (Tudhoe),Supplies and Services,324117,Provisions E324,09-Apr-2022,000008078857368,ASDA STORES,5411,Catering costs - provisions,5.50,0.00,5.50
Regeneration Economy and Growth,Corporate Property and Land,021242,Catering - County Hall,Supplies and Services,328041,Clothing uniforms and laundry E328,09-Apr-2022,000008089886010,MATALAN.CO.UK,5691,Clothing uniforms and laundry,55.20,0.00,55.20
Regeneration Economy and Growth,Business Durham CL0850,030689,Inward Investment and Aftercare,Supplies and Services,342033,Computers and Communications,10-Apr-2022,000008078854796,BLS MONDAY.COM12017784,7372,Computer hardware,148.80,0.00,148.80
Children and Young Peoples Services,Head of Childrens Social Care,085404,COMF bid Targeted interventions for CYPS,Supplies and Services,304403,Equipment and Materials,10-Apr-2022,000008078854876,AMZNMktplace,5999,Other consumables,8.99,1.50,7.49
Children and Young Peoples Services,Head of Childrens Social Care,085341,High Etherley Satelite Home,Supplies and Services,384237,Miscellaneous Expenses,10-Apr-2022,000008078854938,iZ SIM KING LTD,7999,Recreational exps outings parties,7.50,0.00,7.50
Children and Young Peoples Services,Head of Childrens Social Care,085341,High Etherley Satelite Home,Supplies and Services,384237,Miscellaneous Expenses,10-Apr-2022,000008078854940,ZTL SIM KING LTD,7999,Recreational exps outings parties,21.00,0.00,21.00
Children and Young Peoples Services,Head of Early Help Inclusion & Vulnerable Children.,085957,Secure Management,Supplies and Services,324117,Provisions E324,10-Apr-2022,000008078855338,TESCO STORES 6329,5411,Catering costs - provisions,87.40,0.00,87.40
Regeneration Economy and Growth,Culture Sport and Tourism,054967,Theatre - Technical Staffing,Third Party Payments,430100,Rendered by Private Contractors,10-Apr-2022,000008078855512,SPROUTVIDEO LLC,7399,Payments to sub-contractors,154.07,0.00,154.07
Regeneration Economy and Growth,Culture Sport and Tourism,054967,Theatre - Technical Staffing,Supplies and Services,304403,Equipment and Materials,10-Apr-2022,000008078855516,AMZNMktplace,5999,Other consumables,24.78,4.13,20.65
Regeneration Economy and Growth,Culture Sport and Tourism,054967,Theatre - Technical Staffing,Supplies and Services,304403,Equipment and Materials,10-Apr-2022,000008078855516 - 1,AMZNMktplace,5999,Other consumables,0.06,,0.06
Children and Young Peoples Services,Head of Early Help Inclusion & Vulnerable Children.,085962,Aycliffe Secure - Durham,Supplies and Services,324117,Provisions E324,10-Apr-2022,000008078855632,TESCO STORES 2916,5411,Catering costs - provisions,29.66,0.00,29.66
Children and Young Peoples Services,Head of Childrens Social Care,085621,Families First Newton Aycliffe and Shildon,Supplies and Services,304403,Equipment and Materials,10-Apr-2022,000008078855926,AMZNMktplace,5999,Other consumables,41.76,6.96,34.80
Children and Young Peoples Services,Head of Childrens Social Care,085621,Families First Newton Aycliffe and Shildon,Supplies and Services,304403,Equipment and Materials,10-Apr-2022,000008078855926 - 1,AMZNMktplace,5999,Other consumables,0.16,,0.16
Children and Young Peoples Services,Head of Childrens Social Care,085352,New Childrens Home (previously Tow Law),Supplies and Services,384237,Miscellaneous Expenses,10-Apr-2022,000008078856012,iZ SIM KING LTD,7999,Recreational exps outings parties,2.00,0.00,2.00
Children and Young Peoples Services,Head of Childrens Social Care,085334,West Rainton Satelite Home,Supplies and Services,328041,Clothing uniforms and laundry E328,10-Apr-2022,000008078856400,FLANNELS.COM,5691,Clothing uniforms and laundry,286.99,0.00,286.99
Children and Young Peoples Services,Head of Childrens Social Care,085334,West Rainton Satelite Home,Supplies and Services,348037,Subsistence E348,10-Apr-2022,000008078856402,iZ Laylas Italian,5812,Subsistence,12.20,0.00,12.20
Children and Young Peoples Services,Head of Childrens Social Care,085334,West Rainton Satelite Home,Supplies and Services,384999,Miscellaneous Expenses,10-Apr-2022,000008078856406,WARREN JAMES,5944,Other expenses,99.00,0.00,99.00
Children and Young Peoples Services,Head of Childrens Social Care,085334,West Rainton Satelite Home,Supplies and Services,328041,Clothing uniforms and laundry E328,10-Apr-2022,000008078856408,OCEAN BEACH PLEASURE P,7996,Clothing uniforms and laundry,20.00,0.00,20.00
Children and Young Peoples Services,Head of Childrens Social Care,085334,West Rainton Satelite Home,Supplies and Services,304403,Equipment and Materials,10-Apr-2022,000008078856412,SumUp South Shields,5999,Other consumables,6.00,0.00,6.00
Children and Young Peoples Services,Head of Childrens Social Care,085334,West Rainton Satelite Home,Supplies and Services,324117,Provisions E324,10-Apr-2022,000008078856414,TESCO STORES 2371,5411,Catering costs - provisions,195.38,0.00,195.38
Children and Young Peoples Services,Head of Early Help Inclusion & Vulnerable Children.,088115,Young Parents Programme 088115,Supplies and Services,384302,Miscellaneous Expenses,10-Apr-2022,000008078856488,AMZNMktplace,5999,Activity expenses,55.20,9.20,46.00
Children and Young Peoples Services,Head of Early Help Inclusion & Vulnerable Children.,088115,Young Parents Programme 088115,Supplies and Services,384302,Miscellaneous Expenses,10-Apr-2022,000008078856488 - 1,AMZNMktplace,5999,Activity expenses,0.10,,0.10
Children and Young Peoples Services,Head of Early Help Inclusion & Vulnerable Children.,088115,Young Parents Programme 088115,Supplies and Services,384302,Miscellaneous Expenses,10-Apr-2022,000008078856492,AMZNMktplace,5999,Activity expenses,6.96,1.16,5.80
Children and Young Peoples Services,Head of Early Help Inclusion & Vulnerable Children.,088115,Young Parents Programme 088115,Supplies and Services,384302,Miscellaneous Expenses,10-Apr-2022,000008078856492 - 1,AMZNMktplace,5999,Activity expenses,0.04,,0.04
Children and Young Peoples Services,Head of Early Help Inclusion & Vulnerable Children.,088115,Young Parents Programme 088115,Supplies and Services,384302,Miscellaneous Expenses,10-Apr-2022,000008078856504,AMZNMktplace,5999,Activity expenses,15.72,2.62,13.10
Children and Young Peoples Services,Head of Early Help Inclusion & Vulnerable Children.,088115,Young Parents Programme 088115,Supplies and Services,384302,Miscellaneous Expenses,10-Apr-2022,000008078856504 - 1,AMZNMktplace,5999,Activity expenses,0.04,,0.04
Children and Young Peoples Services,Head of Early Help Inclusion & Vulnerable Children.,088115,Young Parents Programme 088115,Supplies and Services,384302,Miscellaneous Expenses,10-Apr-2022,000008078856510,AMZNMktplace,5999,Activity expenses,20.97,3.51,17.46
Children and Young Peoples Services,Head of Early Help Inclusion & Vulnerable Children.,088115,Young Parents Programme 088115,Supplies and Services,384302,Miscellaneous Expenses,10-Apr-2022,000008078856524,AMZNMKTPLACE AMAZON.CO,5999,Activity expenses,86.64,14.46,72.18
Children and Young Peoples Services,Head of Early Help Inclusion & Vulnerable Children.,088115,Young Parents Programme 088115,Supplies and Services,384302,Miscellaneous Expenses,10-Apr-2022,000008078856530,AMZNMKTPLACE AMAZON.CO,5999,Activity expenses,45.36,7.56,37.80
Children and Young Peoples Services,Head of Early Help Inclusion & Vulnerable Children.,088115,Young Parents Programme 088115,Supplies and Services,384302,Miscellaneous Expenses,10-Apr-2022,000008078856530 - 1,AMZNMKTPLACE AMAZON.CO,5999,Activity expenses,0.18,,0.18
Resources BK0010,Procurement Sales & Business Services,065503,Business Support - Spectrum,Supplies and Services,304403,Equipment and Materials,10-Apr-2022,000008078856534,AMZNMktplace,5999,Other consumables,125.75,21.00,104.75
Children and Young Peoples Services,Head of Childrens Social Care,085332,Middlestone Moor CU,Supplies and Services,324117,Provisions E324,10-Apr-2022,000008078856954,PPOINT_ WASHINGTON VIL,5411,Catering costs - provisions,6.30,0.00,6.30
Children and Young Peoples Services,Head of Childrens Social Care,085332,Middlestone Moor CU,Supplies and Services,324117,Provisions E324,10-Apr-2022,000008078856958,ASDA SUPERSTORE 4987,5411,Catering costs - provisions,30.26,0.00,30.26
Children and Young Peoples Services,Head of Childrens Social Care,085551,Short Break Services-Park Hse Sher,Supplies and Services,324117,Provisions E324,10-Apr-2022,000008078857274,TESCO STORES 2371,5411,Catering costs - provisions,35.20,0.00,35.20
Children and Young Peoples Services,Head of Childrens Social Care,085551,Short Break Services-Park Hse Sher,Supplies and Services,324117,Provisions E324,10-Apr-2022,000008078857280,TESCO STORES 2371,5411,Catering costs - provisions,13.05,0.00,13.05
Neighbourhoods and Climate Change,Environmental Services,031200,North Pennines Core,Supplies and Services,344033,Telephones,10-Apr-2022,000008078857302,ZOOM.US 888-799-9666,4814,Telephones general-all costs,134.40,0.00,134.40
Children and Young Peoples Services,Head of Education and Skills,071801,Selby Cottage Childcare Centre,Supplies and Services,304403,Equipment and Materials,10-Apr-2022,000008086141124,AMZNMKTPLACE AMAZON.CO,5999,Other consumables,64.95,10.85,54.10
